Workbook

Sheet BD (hidden)
A1: No. Of | B1: fecha of | C1: Oficio | D1: fecha oficio | E1: documentación | F1: no. | G1: medio electronico | H1: no. | I1: remitente | J1: cargo | K1: codigo ente | L1: nombre ente | M1: región | N1: habitantes | O1: presupuesto | P1: año | Q1: modificación | R1: no. | S1: año | T1: acta no. | U1: fecha acuerdo | V1: acuerdo no. | W1: aprobado acta | X1: modificación acta | Y1: aporbado formato | Z1: modificado formato | AA1: Formato 1 | AB1: Formato 2 | AC1: formato 3 | AD1: Formato 4 | AE1: Formato 5 | AF1: Formato 6 | AG1: Formato 7 | AH1: Formato 8 | AI1: Formato 9 | AJ1: Formato 10 | AK1: Formato 11 | AL1: Formato 12 | AM1: I1 | AN1: I2 | AO1: I3 | AP1: I4 | AQ1: I5 | AR1: I6 | AS1: I7 | AT1: I8 | AU1: I9 | AV1: I10 | AW1: I11 | AX1: I12 | AY1: I13 | AZ1: I14 | BA1: I15 | BB1: I16 | BC1: I17 | BD1: fecha elaboro | BE1: elaboró | BF1: revisó
A2: =FU!B9 -> 0 | B2: =FU!E9 -> 00:00:00 | C2: =FU!L9 -> 0 | D2: =FU!T9 -> 00:00:00 | E2: =FU!Y9 -> 0 | F2: =FU!AD9 -> 0 | G2: =FU!AF9 -> 0 | H2: =FU!AL9 -> 0 | I2: =FU!B11 -> 0 | J2: =FU!AA11 -> 0 | K2: =FU!B14 -> 704900 | L2: =FU!K14 -> Jilotlán de los Dolores | M2: =FU!B12 -> Sur | N2: =FU!C12 -> 9545 | O2: =FU!B18 -> 0 | P2: =FU!Q18 -> 0 | Q2: =FU!U18 -> 0 | R2: =FU!AH18 -> 0 | S2: =FU!AJ18 -> 0 | T2: =FU!B25 -> 0 | U2: =FU!H25 -> 00:00:00 | V2: =FU!M25 -> 0 | W2: =FU!Z23 -> 0 | X2: =FU!Z24 -> 0 | Y2: =FU!AG23 -> 0 | Z2: =FU!AG24 -> 0 | AA2: =FU!B28 -> X | AB2: =FU!$B29 -> X | AC2: =FU!$B30 -> X | AD2: =FU!$B31 -> X | AE2: =FU!$B32 -> X | AF2: =FU!$B33 -> X | AG2: =FU!$B34 -> X | AH2: =FU!$B35 ->  | AI2: =FU!$B36 -> X | AJ2: =FU!$B37 -> 0 | AK2: =FU!$B38 -> 0 | AL2: =FU!$B39 -> 0 | AM2: =FU!$B66 -> • | AN2: =FU!$B67 -> • No se envía el acta de aprobación al presupuesto. | AO2: =FU!$B68 -> • | AP2: =FU!$B69 -> • | AQ2: =FU!$B70 -> • | AR2: =FU!$B71 -> • | AS2: =FU!$B72 -> • Se observa diferencia entre la estimación de ingresos fiscales (11) y los egresos pagaderos con dicha fuente de financiamiento. | AT2: =FU!$B73 -> • | AU2: =FU!$B74 -> • Se observa diferencia entre la estimación de ingresos propios (14) y los egresos pagaderos con dicha fuente de financiamiento. | AV2: =FU!$B75 -> • Se observa diferencia entre la estimación de ingresos de recursos federales de libre disposición (15) y los egresos pagaderos con dicha fuente de financiamiento. | AW2: =FU!$B76 -> • Se observa diferencia entre la estimación de ingresos de recursos estatales de libre disposición (16) y los egresos pagaderos con dicha fuente de financiamiento. | AX2: =FU!$B77 -> • | AY2: =FU!$B78 -> • Se observa diferencia entre la estimación de ingresos de recursos federales etiquetados (25) y los egresos pagaderos con dicha fuente de financiamiento. | AZ2: =FU!$B79 -> • | BA2: =FU!$B80 -> • | BB2: =FU!$B81 -> • | BC2: =FU!$B82 -> • | BD2: =FU!S84 -> 0 | BE2: =FU!B88 -> 0 | BF2: =FU!Z88 -> 0
A4: 1000 | B4: IMPUESTOS | D4: ='CRI-M'!P2 -> 2,164,488
A5: 1100 | B5: Impuestos sobre los ingresos | D5: ='CRI-M'!P3 -> 0
A6: 1101 | B6: Impuestos sobre espectáculos públicos | C6: 11 | D6: ='CRI-M'!P4 -> 0
A7: 1200 | B7: Impuestos sobre el patrimonio | D7: ='CRI-M'!P5 -> 1,914,492
A8: 1201 | B8: Impuesto predial | C8: 11 | D8: ='CRI-M'!P6 -> 1,596,768
A9: 1202 | B9: Impuestos sobre transmisiones patrimoniales | C9: 11 | D9: ='CRI-M'!P7 -> 317,724
A10: 1203 | B10: Impuestos sobre negocios jurídicos | C10: 11 | D10: ='CRI-M'!P8 -> 0
A11: 1300 | B11: Impuestos sobre la producción, el consumo y las transacciones | D11: ='CRI-M'!P9 -> 0
A12: 1400 | B12: Impuestos al comercio exterior | D12: ='CRI-M'!P10 -> 0
A13: 1500 | B13: Impuestos sobre nóminas y asimilables | D13: ='CRI-M'!P11 -> 0
A14: 1600 | B14: Impuestos ecológicos | D14: ='CRI-M'!P12 -> 0
A15: 1700 | B15: Accesorios de impuestos | D15: ='CRI-M'!P13 -> 249,996
A16: 1701 | B16: Recargos | C16: 11 | D16: ='CRI-M'!P14 -> 249,996
A17: 1702 | B17: Actualizaciones | C17: 11 | D17: ='CRI-M'!P15 -> 0
A18: 1703 | B18: Multas | C18: 11 | D18: ='CRI-M'!P16 -> 0
A19: 1704 | B19: Gastos de ejecución | C19: 11 | D19: ='CRI-M'!P17 -> 0
A20: 1709 | B20: Otros no especificados | C20: 11 | D20: ='CRI-M'!P18 -> 0
A21: 1800 | B21: Otros impuestos | D21: ='CRI-M'!P19 -> 0
A22: 1801 | B22: Otros impuestos | C22: 11 | D22: ='CRI-M'!P20 -> 0
A23: 2000 | B23: CUOTAS Y APORTACIONES DE SEGURIDAD SOCIAL | D23: ='CRI-M'!P21 -> 0
A24: 2100 | B24: Aportaciones para fondos de vivienda | D24: ='CRI-M'!P22 -> 0
A25: 2200 | B25: Cuotas para la seguridad social | D25: ='CRI-M'!P23 -> 0
A26: 2300 | B26: Cuotas de ahorro para el retiro | D26: ='CRI-M'!P24 -> 0
A27: 2400 | B27: Otras cuotas y aportaciones para la seguridad social | D27: ='CRI-M'!P25 -> 0
A28: 2500 | B28: Accesorios de cuotas y aportaciones de seguridad social | D28: ='CRI-M'!P26 -> 0
A29: 3000 | B29: CONTRIBUCIONES DE MEJORAS | D29: ='CRI-M'!P27 -> 0
A30: 3100 | B30: Contribuciones de mejoras por obras públicas | D30: ='CRI-M'!P28 -> 0
A31: 3101 | B31: Contribuciones de mejoras por obras públicas | C31: 11 | D31: ='CRI-M'!P29 -> 0
A32: 4000 | B32: DERECHOS | D32: ='CRI-M'!P30 -> 2,166,732
A33: 4100 | B33: Derechos por el uso, goce, aprovechamiento o explotación de bienes de dominio público | D33: ='CRI-M'!P31 -> 16,740
A34: 4101 | B34: Derechos por el uso del piso | C34: 11 | D34: ='CRI-M'!P32 -> 0
A35: 4102 | B35: Derechos por el uso de los estacionamientos | C35: 11 | D35: ='CRI-M'!P33 -> 0
A36: 4103 | B36: Derechos de uso de cementerios y panteones municipales | C36: 11 | D36: ='CRI-M'!P34 -> 16,740
A37: 4104 | B37: Derechos de concesiones y demás inmuebles de propiedad municipal | C37: 11 | D37: ='CRI-M'!P35 -> 0
A38: 4200 | B38: Derechos a los hidrocarburos (Derogado) | D38: ='CRI-M'!P36 -> 0
A39: 4300 | B39: Derechos por prestación de servicios | D39: ='CRI-M'!P37 -> 2,149,992
A40: 4301 | B40: Derechos de licencias y permisos de giros | C40: 11 | D40: ='CRI-M'!P38 -> 143,268
A41: 4302 | B41: Derechos de licencias y permisos de anuncios | C41: 11 | D41: ='CRI-M'!P39 -> 6,708
A42: 4303 | B42: Derechos de licencias de construcción, reconstrucción, reparación o demolición de obras | C42: 11 | D42: ='CRI-M'!P40 -> 0
A43: 4304 | B43: Derechos de regularizaciones de los registros de obra | C43: 11 | D43: ='CRI-M'!P41 -> 0
A44: 4305 | B44: Derechos de alineamiento, designación de número oficial e inspección | C44: 11 | D44: ='CRI-M'!P42 -> 0
A45: 4306 | B45: Derechos de licencias de cambio de régimen de propiedad y urbanización | C45: 11 | D45: ='CRI-M'!P43 -> 0
A46: 4307 | B46: Derechos de servicios de obra | C46: 11 | D46: ='CRI-M'!P44 -> 0
A47: 4308 | B47: Derechos de servicios de sanidad | C47: 11 | D47: ='CRI-M'!P45 -> 0
A48: 4309 | B48: Derechos de servicio de limpieza, recolección, traslado, tratamiento y disposición final de residuos | C48: 11 | D48: ='CRI-M'!P46 -> 0
A49: 4310 | B49: Derechos de agua potable, drenaje, alcantarillado, tratamiento y disposición final de aguas residuales | C49: 11 | D49: ='CRI-M'!P47 -> 1,532,208
A50: 4311 | B50: Derechos del rastro | C50: 11 | D50: ='CRI-M'!P48 -> 102,588
A51: 4312 | B51: Derechos del registro civil | C51: 11 | D51: ='CRI-M'!P49 -> 243,468
A52: 4313 | B52: Derechos de las certificaciones | C52: 11 | D52: ='CRI-M'!P50 -> 105,384
A53: 4314 | B53: Derechos de los servicios de catastro | C53: 11 | D53: ='CRI-M'!P51 -> 16,368
A54: 4400 | B54: Otros derechos | D54: ='CRI-M'!P52 -> 0
A55: 4401 | B55: Otros derechos | C55: 11 | D55: ='CRI-M'!P53 -> 0
A56: 4500 | B56: Accesorios de derechos | D56: ='CRI-M'!P54 -> 0
A57: 4501 | B57: Recargos | C57: 11 | D57: ='CRI-M'!P55 -> 0
A58: 4502 | B58: Actualizaciones | C58: 11 | D58: ='CRI-M'!P56 -> 0
A59: 4503 | B59: Multas | C59: 11 | D59: ='CRI-M'!P57 -> 0
A60: 4504 | B60: Gastos de ejecución | C60: 11 | D60: ='CRI-M'!P58 -> 0
A61: 4509 | B61: Otros no especificados | C61: 11 | D61: ='CRI-M'!P59 -> 0
A62: 5000 | B62: PRODUCTOS | D62: ='CRI-M'!P60 -> 631,956
A63: 5100 | B63: Productos | D63: ='CRI-M'!P61 -> 631,956
A64: 5101 | B64: Uso, goce, aprovechamiento o explotación de bienes de dominio privado | C64: 11 | D64: ='CRI-M'!P62 -> 0
A65: 5102 | B65: Productos diversos | C65: 11 | D65: ='CRI-M'!P63 -> 631,956
A66: 5200 | B66: Productos de capital (Derogado) | D66: ='CRI-M'!P64 -> 0
A67: 6000 | B67: APROVECHAMIENTOS | D67: ='CRI-M'!P65 -> 86,436
A68: 6100 | B68: Aprovechamientos | D68: ='CRI-M'!P66 -> 0
A69: 6101 | B69: Aprovechamientos de las sanciones, multas, honorarios y donativos | C69: 11 | D69: ='CRI-M'!P67 -> 0
A70: 6102 | B70: Aprovechamientos de las indemnizaciones a favor del municipio | C70: 11 | D70: ='CRI-M'!P68 -> 0
A71: 6103 | B71: Otros aprovechamientos | C71: 11 | D71: ='CRI-M'!P69 -> 0
A72: 6200 | B72: Aprovechamientos patrimoniales | D72: ='CRI-M'!P70 -> 0
A73: 6201 | B73: Aprovechamientos por el uso o enajenación de bienes | C73: 11 | D73: ='CRI-M'!P71 -> 0
A74: 6202 | B74: Aprovechamientos por recuperación de capital o patrimonio invertido | C74: 11 | D74: ='CRI-M'!P72 -> 0
A75: 6300 | B75: Accesorios de aprovechamientos | D75: ='CRI-M'!P73 -> 86,436
A76: 6301 | B76: Recargos | C76: 11 | D76: ='CRI-M'!P74 -> 0
A77: 6302 | B77: Actualizaciones | C77: 11 | D77: ='CRI-M'!P75 -> 0
A78: 6303 | B78: Multas | C78: 11 | D78: ='CRI-M'!P76 -> 27,204
A79: 6304 | B79: Gastos de ejecución | C79: 11 | D79: ='CRI-M'!P77 -> 0
A80: 6309 | B80: Otros no especificados | C80: 11 | D80: ='CRI-M'!P78 -> 59,232
A81: 7000 | B81: INGRESOS POR VENTAS DE BIENES, PRESTACIÓN DE SERVICIOS Y OTROS INGRESOS | D81: ='CRI-M'!P79 -> 2,496
A82: 7100 | B82: Ingresos por venta de bienes y prestación de servicios de instituciones públicas de seguridad social | D82: ='CRI-M'!P80 -> 0
A83: 7101 | B83: Ingresos por venta de bienes y prestación de servicios de instituciones públicas de seguridad social | C83: 14 | D83: ='CRI-M'!P81 -> 0
A84: 7200 | B84: Ingresos por venta de bienes y prestación de servicios de empresas productivas del estado | D84: ='CRI-M'!P82 -> 0
A85: 7300 | B85: Ingresos por venta de bienes y prestación de servicios de entidades paraestatales y fideicomisos no empresariales y no financieros | D85: ='CRI-M'!P83 -> 0
A86: 7301 | B86: Ingresos por venta de bienes y prestación de servicios de entidades paraestatales y fideicomisos no empresariales y no financieros | C86: 14 | D86: ='CRI-M'!P84 -> 0
A87: 7400 | B87: Ingresos por venta de bienes y prestación de servicios de entidades paraestatales empresariales no financieras con participación estatal mayoritaria | D87: ='CRI-M'!P85 -> 0
A88: 7500 | B88: Ingresos por venta de bienes y prestación de servicios de entidades paraestatales empresariales financieras monetarias con participación estatal mayoritaria | D88: ='CRI-M'!P86 -> 0
A89: 7600 | B89: Ingresos por venta de bienes y prestación de servicios de entidades paraestatales empresariales financieras no monetarias con participación estatal mayoritaria | D89: ='CRI-M'!P87 -> 0
A90: 7700 | B90: Ingresos por venta de bienes y prestación de servicios de fideicomisos financieros públicos con participación estatal mayoritaria | D90: ='CRI-M'!P88 -> 0
A91: 7701 | B91: Ingresos por venta de bienes y prestación de servicios de fideicomisos financieros públicos con participación estatal mayoritaria | C91: 14 | D91: ='CRI-M'!P89 -> 0
A92: 7800 | B92: Ingresos por venta de bienes y prestación de servicios de los poderes legislativo y judicial, y de los órganos autónomos | D92: ='CRI-M'!P90 -> 0
A93: 7900 | B93: Otros ingresos | D93: ='CRI-M'!P91 -> 2,496
A94: 7901 | B94: Otros ingresos | C94: 14 | D94: ='CRI-M'!P92 -> 2,496
A95: 8000 | B95: PARTICIPACIONES, APORTACIONES, CONVENIOS, INCENTIVOS DERIVADOS DE LA COLABORACIÓN FISCAL Y FONDOS DISTINTOS DE LAS APORTACIONES | D95: ='CRI-M'!P93 -> 101,976,388
A96: 8100 | B96: Participaciones | D96: ='CRI-M'!P94 -> 87,692,704
A97: 8101 | B97: Fondo general de participaciones (federal) | C97: 15 | D97: ='CRI-M'!P95 -> 87,621,040
A98: 8102 | B98: Fondo de fomento municipal (federal) | C98: 15 | D98: ='CRI-M'!P96 -> 0
A99: 8103 | B99: Fondo de fiscalización y recaudación (federal) | C99: 15 | D99: ='CRI-M'!P97 -> 0
A100: 8104 | B100: Fondo de compensación (federal) | C100: 15 | D100: ='CRI-M'!P98 -> 0
A101: 8105 | B101: Fondo de extracción de hidrocarburos (federal) | C101: 15 | D101: ='CRI-M'!P99 -> 0
A102: 8106 | B102: Impuesto especial sobre producción y servicios (federal) | C102: 15 | D102: ='CRI-M'!P100 -> 0
A103: 8107 | B103: 0.136% de la recaudación federal participable (federal) | C103: 15 | D103: ='CRI-M'!P101 -> 0
A104: 8108 | B104: 3.17% sobre extracción de petróleo (federal) | C104: 15 | D104: ='CRI-M'!P102 -> 0
A105: 8109 | B105: Gasolinas y diésel (federal) | C105: 15 | D105: ='CRI-M'!P103 -> 0
A106: 8110 | B106: Fondo del impuesto sobre la renta (federal) | C106: 15 | D106: ='CRI-M'!P104 -> 0
A107: 8111 | B107: Fondo de estabilización de los ingresos de las entidades federativas (federal) | C107: 15 | D107: ='CRI-M'!P105 -> 0
A108: 8112 | B108: Participaciones del estado | C108: 16 | D108: ='CRI-M'!P106 -> 71,664
A109: 8200 | B109: Aportaciones | D109: ='CRI-M'!P107 -> 14,283,684
A110: 8201 | B110: Fondo de aportaciones para la infraestructura social municipal | C110: 25 | D110: ='CRI-M'!P108 -> 6,676,428
A111: 8202 | B111: Fondo de aportaciones para el fortalecimiento municipal | C111: 25 | D111: ='CRI-M'!P109 -> 7,607,256
A112: 8300 | B112: Convenios | D112: ='CRI-M'!P110 -> 0
A113: 8301 | B113: Convenios de protección social en salud | C113: 17 | D113: ='CRI-M'!P111 -> 0
A114: 8302 | B114: Convenios de descentralizados | C114: 17 | D114: ='CRI-M'!P112 -> 0
A115: 8303 | B115: Convenio de reasignación | C115: 17 | D115: ='CRI-M'!P113 -> 0
A116: 8304 | B116: Otros convenios y subsidios (Con ingresos de libre disposición) | C116: 17 | D116: ='CRI-M'!P114 -> 0
A117: 8304 | B117: Otros convenios y subsidios (Con ingresos etiquetados federales) | C117: 25 | D117: ='CRI-M'!P115 -> 0
A118: 8304 | B118: Otros convenios y subsidios (Con ingresos etiquetados estatales) | C118: 26 | D118: ='CRI-M'!P116 -> 0
A119: 8400 | B119: Incentivos derivados de la colaboración fiscal | D119: ='CRI-M'!P117 -> 0
A120: 8401 | B120: Tenencia o uso de vehículos | C120: 15 | D120: ='CRI-M'!P118 -> 0
A121: 8402 | B121: Fondo de compensación ISAN | C121: 15 | D121: ='CRI-M'!P119 -> 0
A122: 8403 | B122: Impuesto sobre automóviles nuevos | C122: 15 | D122: ='CRI-M'!P120 -> 0
A123: 8404 | B123: Fondo de compensación de repecos-intermedios | C123: 15 | D123: ='CRI-M'!P121 -> 0
A124: 8405 | B124: Otros incentivos económicos | C124: 15 | D124: ='CRI-M'!P122 -> 0
A125: 8500 | B125: Fondos distintos de aportaciones | D125: ='CRI-M'!P123 -> 0
A126: 8501 | B126: Fondo para entidades federativas y municipios productores de hidrocarburos | C126: 25 | D126: ='CRI-M'!P124 -> 0
A127: 8502 | B127: Fondo minero | C127: 25 | D127: ='CRI-M'!P125 -> 0
A128: 9000 | B128: TRANSFERENCIAS, ASIGNACIONES, SUBSIDIOS Y SUBVENCIONES Y PENSIONES Y JUBILACIONES | D128: ='CRI-M'!P126 -> 0
A129: 9100 | B129: Transferencias y asignaciones | D129: ='CRI-M'!P127 -> 0
A130: 9101 | B130: Transferencias y asignaciones (Con ingresos de libre disposición) | C130: 17 | D130: ='CRI-M'!P128 -> 0
A131: 9101 | B131: Transferencias y asignaciones (Con ingresos etiquetados federales) | C131: 27 | D131: ='CRI-M'!P129 -> 0
A132: 9101 | B132: Transferencias y asignaciones (Con ingresos etiquetados estatales) | C132: 26 | D132: ='CRI-M'!P130 -> 0
A133: 9200 | B133: Transferencias al resto del sector público (derogado) | D133: ='CRI-M'!P131 -> 0
A134: 9300 | B134: Subsidios y subvenciones | D134: ='CRI-M'!P132 -> 0
A135: 9301 | B135: Subsidios y subvenciones (Con ingresos de libre disposición) | C135: 17 | D135: ='CRI-M'!P133 -> 0
A136: 9301 | B136: Subsidios y subvenciones (Con ingresos etiquetados federales) | C136: 27 | D136: ='CRI-M'!P134 -> 0
A137: 9301 | B137: Subsidios y subvenciones (Con ingresos etiquetados estatales) | C137: 26 | D137: ='CRI-M'!P135 -> 0
A138: 9400 | B138: Ayudas sociales (derogado) | D138: ='CRI-M'!P136 -> 0
A139: 9500 | B139: Pensiones y jubilaciones | D139: ='CRI-M'!P137 -> 0
A140: 9501 | B140: Pensiones y jubilaciones | C140: 17 | D140: ='CRI-M'!P138 -> 0
A141: 9600 | B141: Transferencias a fideicomisos, mandatos y análogos (derogado) | D141: ='CRI-M'!P139 -> 0
A142: 9700 | B142: Transferencias del fondo mexicano del petróleo para la estabilización y el desarrollo | D142: ='CRI-M'!P140 -> 0
A143: 9701 | B143: Transferencias del fondo mexicano del petróleo para la estabilización y el desarrollo | C143: 17 | D143: ='CRI-M'!P141 -> 0
A144: 0 | B144: INGRESOS DERIVADOS DE FINANCIAMIENTO | D144: ='CRI-M'!P142 -> 0
A145: 100 | B145: Endeudamiento interno | D145: ='CRI-M'!P143 -> 0
A146: 200 | B146: Endeudamiento externo | D146: ='CRI-M'!P144 -> 0
A147: 300 | B147: Financiamiento interno | D147: ='CRI-M'!P145 -> 0
A148: 301 | B148: Financiamiento interno | C148: 12 | D148: ='CRI-M'!P146 -> 0
A149: ESTIMACIÓN DE INGRESOS | D149: ='CRI-M'!P147 -> 107,028,496
A150: 1000 | B150: SERVICIOS PERSONALES | D150: ='COG-M'!P2 -> 24,871,540
A151: 1100 | B151: REMUNERACIONES AL PERSONAL DE CARÁCTER PERMANENTE | D151: ='COG-M'!P3 -> 14,517,724
A152: 111 | B152: Dietas | C152: 11 | D152: ='COG-M'!P4 -> 1,879,200
C153: 12 | D153: ='COG-M'!P5 -> 0
C154: 13 | D154: ='COG-M'!P6 -> 0
C155: 14 | D155: ='COG-M'!P7 -> 0
C156: 15 | D156: ='COG-M'!P8 -> 0
C157: 16 | D157: ='COG-M'!P9 -> 0
C158: 17 | D158: ='COG-M'!P10 -> 0
C159: 25 | D159: ='COG-M'!P11 -> 0
C160: 26 | D160: ='COG-M'!P12 -> 0
C161: 27 | D161: ='COG-M'!P13 -> 0
A162: 112 | B162: Haberes | D162: ='COG-M'!P14 -> 0
A163: 113 | B163: Sueldos base al personal permanente | C163: 11 | D163: ='COG-M'!P15 -> 12,638,524
C164: 12 | D164: ='COG-M'!P16 -> 0
C165: 13 | D165: ='COG-M'!P17 -> 0
C166: 14 | D166: ='COG-M'!P18 -> 0
C167: 15 | D167: ='COG-M'!P19 -> 0
C168: 16 | D168: ='COG-M'!P20 -> 0
C169: 17 | D169: ='COG-M'!P21 -> 0
C170: 25 | D170: ='COG-M'!P22 -> 0
C171: 26 | D171: ='COG-M'!P23 -> 0
C172: 27 | D172: ='COG-M'!P24 -> 0
A173: 114 | B173: Remuneraciones por adscripción laboral en el extranjero | C173: 11 | D173: ='COG-M'!P25 -> 0
C174: 12 | D174: ='COG-M'!P26 -> 0
C175: 13 | D175: ='COG-M'!P27 -> 0
C176: 14 | D176: ='COG-M'!P28 -> 0
C177: 15 | D177: ='COG-M'!P29 -> 0
C178: 16 | D178: ='COG-M'!P30 -> 0
C179: 17 | D179: ='COG-M'!P31 -> 0
C180: 25 | D180: ='COG-M'!P32 -> 0
C181: 26 | D181: ='COG-M'!P33 -> 0
C182: 27 | D182: ='COG-M'!P34 -> 0
A183: 1200 | B183: REMUNERACIONES AL PERSONAL DE CARÁCTER TRANSITORIO | D183: ='COG-M'!P35 -> 7,924,668
A184: 121 | B184: Honorarios asimilables a salarios | C184: 11 | D184: ='COG-M'!P36 -> 0
C185: 12 | D185: ='COG-M'!P37 -> 0
C186: 13 | D186: ='COG-M'!P38 -> 0
C187: 14 | D187: ='COG-M'!P39 -> 0
C188: 15 | D188: ='COG-M'!P40 -> 0
C189: 16 | D189: ='COG-M'!P41 -> 0
C190: 17 | D190: ='COG-M'!P42 -> 0
C191: 25 | D191: ='COG-M'!P43 -> 0
C192: 26 | D192: ='COG-M'!P44 -> 0
C193: 27 | D193: ='COG-M'!P45 -> 0
A194: 122 | B194: Sueldos base al personal eventual | C194: 11 | D194: ='COG-M'!P46 -> 7,924,668
C195: 12 | D195: ='COG-M'!P47 -> 0
C196: 13 | D196: ='COG-M'!P48 -> 0
C197: 14 | D197: ='COG-M'!P49 -> 0
C198: 15 | D198: ='COG-M'!P50 -> 0
C199: 16 | D199: ='COG-M'!P51 -> 0
C200: 17 | D200: ='COG-M'!P52 -> 0
C201: 25 | D201: ='COG-M'!P53 -> 0
... 3194 more rows

Sheet FU (hidden)
K3: VERIFICACIÓN Y ANÁLISIS DE DOCUMENTACIÓN
K4: Dirección de Profesionalización y Seguimiento
B6: INFORMACIÓN DE RECEPCIÓN
B7: DATOS OFICIALÍA DE PARTES | L7: OFICIO DE REMISIÓN | W7: INFORMACIÓN QUE SE ACOMPAÑA
B8: No. | E8: Fecha de recepción | L8: No. de oficio | T8: Fecha del oficio | Y8: Documentación | AD8: No. | AF8: Medio electrónico | AL8: No.
B10: Nombre del remitente | AA10: Cargo
B12: =LOOKUP(K14,M111:M472,N111:N472) -> Sur | C12: =LOOKUP(K14,M111:M472,O111:O472) -> 9545
B13: CÓDIGO DEL ENTE | K13: NOMBRE DEL ENTE PÚBLICO
B14: =LOOKUP(K14,M111:M474,L111:L474) -> 704900 | K14: =Inconsistencias!B6 -> Jilotlán de los Dolores
B17: OBLIGACIÓN O DOCUMENTACIÓN REMITIDA | Q17: EJERCICIO | U17: OBLIGACIÓN O DOCUMENTACIÓN REMITIDA | AJ17: EJERCICIO
C18: Presupuesto de egresos | V18: Modificación al presupuesto de egresos | AG18: No.
B19: DOCUMENTACIÓN REMITIDA CORRESPONDE A UNA: | T19: Normal | AB19: Complementaria | AJ19: No.
B21: INFORMACIÓN DE LA APROBACIÓN AL PRESUPUESTO DE EGRESOS Y SUS MODIFICACIONES
B22: ACTA DE APROBACIÓN | S22: PRESUPUESTO | Z22: SEGÚN ACTA | AG22: SEGÚN FORMATO
S23: Aprobado
B24: Acta Número | H24: Fecha Acuerdo | M24: Acuerdo Número | S24: Modificado
S25: Vigente | Z25: =SUM(Z23:AF24) -> 0 | AG25: =SUM(AG23:AM24) -> 0
B26: VERIFICACIÓN DE CUMPLIMIENTO
B27: PRESUPUESTO DE EGRESOS Y SUS MODIFICACIONES
B28: =Inconsistencias!B17 -> X | C28: Resultado y proyección de ingresos - LDF
B29: =Inconsistencias!B18 -> X | C29: Estimación de ingresos (Clasificación por rubro de ingresos de libre disposición y etiquetados)
B30: =Inconsistencias!B19 -> X | C30: Resultado y proyección de egresos - LDF
B31: =Inconsistencias!B20 -> X | C31: Presupuesto de egresos (Clasificador por objeto del gasto y fuente de financiamiento)
B32: =Inconsistencias!B21 -> X | C32: Presupuesto de egresos (Clasificador por tipo de gasto, fuente de financiamiento y objeto del gasto)
B33: =Inconsistencias!B22 -> X | C33: Presupuesto de egresos (Clasificación funcional del gasto)
B34: =Inconsistencias!B23 -> X | C34: Presupuesto de egresos (Clasificación administrativa)
B35: =Inconsistencias!B24 ->  | C35: Informe sobre estudios actuariales - LDF
B36: =Inconsistencias!B25 -> X | C36: Plantilla de personal de carácter permanente
C37: Ficha informe para la evaluación del desempeño
C38: Matriz de inficadores para resultados por programa
C39: Informe de programas sin matriz de indicadores
B40: I N G R E S O S
C41: Impuestos | AH41: ='CRI-DE'!F2 -> 2,164,488
C42: Cuotas y aportaciones de seguridad social | AH42: ='CRI-DE'!F21 -> 0
C43: Contribuciones de mejoras | AH43: ='CRI-DE'!F27 -> 0
C44: Derechos | AH44: ='CRI-DE'!F30 -> 2,166,732
C45: Productos | AH45: ='CRI-DE'!F60 -> 631,956
C46: Aprovechamientos | AH46: ='CRI-DE'!F65 -> 86,436
C47: Ingresos por venta de bienes, prestación de servicios y otros ingresos | AH47: ='CRI-DE'!F79 -> 2,496
C48: Participaciones, aportaciones, convenios, incentivos derivados de la colaboración fiscal y fondos distintos de las aportaciones | AH48: ='CRI-DE'!F93 -> 101,976,388
C49: Transferencias, asignaciones, subsidios y subvenciones y pensiones y jubilaciones | AH49: ='CRI-DE'!F124 -> 0
C50: Ingresos derivados de financiamiento | AH50: ='CRI-DE'!F136 -> 0
AG51: ESTIMACIÓN DE INGRESOS | AH51: =SUM(AH41:AM50) -> 107,028,496
B52: E G R E S O S
C53: Servicios personales | AH53: ='COG-RYP'!E3 -> 24,871,540
C54: Materiales y suministros | AH54: ='COG-RYP'!E4 -> 21,524,220
C55: Servicios generales | AH55: ='COG-RYP'!E5 -> 28,688,652
C56: Transferencias, asignaciones, subsidios y otras ayudas | AH56: ='COG-RYP'!E6 -> 8,791,056
C57: Bienes muebles, inmuebles e intangibles | AH57: ='COG-RYP'!E7 -> 2,052,348
C58: Inversión pública | AH58: ='COG-RYP'!E8 -> 17,815,452
C59: Inversiones financieras y otras provisiones | AH59: ='COG-RYP'!E9 -> 0
C60: Participaciones y aportaciones | AH60: ='COG-RYP'!E10 -> 0
C61: Deuda pública | AH61: ='COG-RYP'!E11 -> 0
AG62: PRESUPUESTO DE EGRESOS | AH62: =SUM(AH53:AM61) -> 103,743,268
B64: INCONSISTENCIAS
B65: Inconsistencia
B66: ="• "&L93 -> •
B67: • No se envía el acta de aprobación al presupuesto.
B68: •
B69: •
B70: •
B71: •
B72: • Se observa diferencia entre la estimación de ingresos fiscales (11) y los egresos pagaderos con dicha fuente de financiamiento.
B73: •
B74: • Se observa diferencia entre la estimación de ingresos propios (14) y los egresos pagaderos con dicha fuente de financiamiento.
B75: • Se observa diferencia entre la estimación de ingresos de recursos federales de libre disposición (15) y los egresos pagaderos con dicha fuente de financiamiento.
B76: • Se observa diferencia entre la estimación de ingresos de recursos estatales de libre disposición (16) y los egresos pagaderos con dicha fuente de financiamiento.
B77: •
B78: • Se observa diferencia entre la estimación de ingresos de recursos federales etiquetados (25) y los egresos pagaderos con dicha fuente de financiamiento.
B79: •
B80: •
B81: •
B82: •
R84: Guadalajara, Jalisco; a
B87: ELABORÓ | Z87: REVISÓ
L93: =IF(L94="No se envía el acta de aprobación al presupuesto.","",IF(AF9>0,"","No adjunta la información del presupuesto en formato electrónico.")) -> 
L94: =IF(B25="","No se envía el acta de aprobación al presupuesto.","") -> No se envía el acta de aprobación al presupuesto.
L95: =IF(H25>44195,"El presupuesto se aprobó despues del 30 de diciembre, incumpliendo lo establecido en el art. 218 de la LHM.","") -> 
L96: =IF(L94="No se envía el acta de aprobación al presupuesto.","",IF(H25>0,IF(Z25=0,"En el acta unicamente hace referencia a la aprobación del presupuesto sin indicar por cuanto se aprobo.",IF(Z25=AG25,"","Existe diferencia entre lo establecido en el acta de aprobación y la información remitida en los formatos del presupuesto.")))) -> 
L97: =IF(L94="No se envía el acta de aprobación al presupuesto.","",Inconsistencias!B28) -> 
L98: =Inconsistencias!B45 -> 
L99: =Inconsistencias!B46 -> Se observa diferencia entre la estimación de ingresos fiscales (11) y los egresos pagaderos con dicha fuente de financiamiento.
L100: =Inconsistencias!B48 -> 
L101: =Inconsistencias!B50 -> Se observa diferencia entre la estimación de ingresos propios (14) y los egresos pagaderos con dicha fuente de financiamiento.
L102: =Inconsistencias!B52 -> Se observa diferencia entre la estimación de ingresos de recursos federales de libre disposición (15) y los egresos pagaderos con dicha fuente de financiamiento.
L103: =Inconsistencias!B54 -> Se observa diferencia entre la estimación de ingresos de recursos estatales de libre disposición (16) y los egresos pagaderos con dicha fuente de financiamiento.
L104: =Inconsistencias!B56 -> 
L105: =Inconsistencias!B58 -> Se observa diferencia entre la estimación de ingresos de recursos federales etiquetados (25) y los egresos pagaderos con dicha fuente de financiamiento.
L106: =Inconsistencias!B60 -> 
L107: =Inconsistencias!B62 -> 
L108: =Inconsistencias!B65 -> 
L109: =Inconsistencias!B67 -> 
L111: 700100 | M111: Acatic | N111: Altos sur | O111: 21206
L112: 700200 | M112: Acatlán de Juárez | N112: Lagunas | O112: 23241
L113: 702,305 | M113: Administración de Estacionómetros para la Asistencia Social del Municipio de Zapotlán el Grande | N113: Sur | O113: 100534
L114: 700012 | M114: Agencia Metropolitana de Seguridad Pública del Área Metropolitana de Guadalajara | N114: Centro | O114: 1495189
L115: 709302 | M115: Agua y Saneamiento del Municipio de Tepatitlán | N115: Altos sur | O115: 136123
L116: 700300 | M116: Ahualulco de Mercado | N116: Valles | O116: 21714
L117: 703904 | M117: Albergue "Las Cuadritas" Fray Antonio Alcalde | N117: Centro | O117: 1495189
L118: 700400 | M118: Amacueca | N118: Sur | O118: 5545
L119: 700500 | M119: Amatitán | N119: Valles | O119: 14648
L120: 700600 | M120: Ameca | N120: Valles | O120: 57340
L121: 700800 | M121: Arandas | N121: Altos sur | O121: 72812
L122: 700003 | M122: Asociación Intermunicipal para la Protección del Medio Ambiente y el Desarrollo Sustentable del Lago de Chapala | N122: Ciénega | O122: 48839
L123: 701000 | M123: Atemajac de Brizuela | N123: Sur | O123: 6655
L124: 701100 | M124: Atengo | N124: Sierra de Amula | O124: 5400
L125: 701200 | M125: Atenguillo | N125: Costa Sierra Occidente | O125: 4115
L126: 701300 | M126: Atotonilco el Alto | N126: Ciénega | O126: 57717
L127: 701400 | M127: Atoyac | N127: Lagunas | O127: 8276
L128: 701500 | M128: Autlán de Navarro | N128: Sierra de Amula | O128: 57559
L129: 701600 | M129: Ayotlán | N129: Ciénega | O129: 38291
L130: 701700 | M130: Ayutla | N130: Costa Sierra Occidente | O130: 12664
L131: 701900 | M131: Bolaños | N131: Norte | O131: 6820
L132: 702000 | M132: Cabo Corrientes | N132: Costa Sierra Occidente | O132: 10,029
L133: 711700 | M133: Cañadas de Obregón | N133: Altos sur | O133: 4,152
L134: 702100 | M134: Casimiro Castillo | N134: Costa sur | O134: 21475
L135: 709704 | M135: Centro de Estimulación para Personas con Discapacidad Intelectual de Tlajomulco de Zúñiga | N135: Centro | O135: 416626
L136: 703000 | M136: Chapala | N136: Sureste | O136: 48839
L137: 703100 | M137: Chimaltitán | N137: Norte | O137: 3771
L138: 703200 | M138: Chiquilistlán | N138: Sierra de Amula | O138: 5814
L139: 702200 | M139: Cihuatlán | N139: Costa sur | O139: 39020
L140: 702400 | M140: Cocula | N140: Lagunas | O140: 26174
L141: 702500 | M141: Colotlán | N141: Norte | O141: 18091
L142: 702600 | M142: Concepción de Buenos Aires | N142: Sureste | O142: 5933
L143: 709802 | M143: Consejo Municipal contra las Adicciones en San Pedro Tlaquepaque | N143: Centro | O143: 608114
L144: 700302 | M144: Consejo Municipal del Deporte de Ahualulco de Mercado | N144: Valles | O144: 21714
L145: 703302 | M145: Consejo Municipal del Deporte de Degollado, Jalisco | N145: Ciénega | O145: 21132
L146: 703902 | M146: Consejo Municipal del Deporte de Guadalajara | N146: Centro | O146: 1495189
L147: 705002 | M147: Consejo Municipal del Deporte de Jocotepec | N147: Sureste | O147: 42164
L148: 701802 | M148: Consejo Municipal del Deporte de La Barca | N148: Ciénega | O148: 64269
L149: 706705 | M149: Consejo Municipal del Deporte de Puerto Vallarta | N149: Costa Sierra Occidente | O149: 255681
L150: 709806 | M150: Consejo Municipal del Deporte de San Pedro Tlaquepaque | N150: Centro | O150: 608114
L151: 710103 | M151: Consejo Municipal del Deporte de Tonalá | N151: Centro | O151: 478689
L152: 711804 | M152: Consejo Municipal del Deporte de Yahualica de González Gallo | N152: Altos Sur | O152: 22284
L153: 712002 | M153: Consejo Municipal del Deporte de Zapopan | N153: Centro | O153: 1243756
L154: 703907 | M154: Consejo Social de Cooperación para el Desarrollo Urbano de Guadalajara | N154: Centro | O154: 1495189
L155: 702700 | M155: Cuautitlán de García Barragán | N155: Costa Sur | O155: 17322
L156: 702800 | M156: Cuautla | N156: Sierra de Amula | O156: 2171
L157: 702900 | M157: Cuquío | N157: Centro | O157: 17795
L158: 703300 | M158: Degollado | N158: Ciénega | O158: 21132
L159: 700101 | M159: DIF Municipal de Acatic | N159: Altos Sur | O159: 21206
L160: 700201 | M160: DIF Municipal de Acatlán de Juárez | N160: Lagunas | O160: 23241
L161: 700301 | M161: DIF Municipal de Ahualulco de Mercado | N161: Valles | O161: 21714
L162: 700401 | M162: DIF Municipal de Amacueca | N162: Lagunas | O162: 5545
L163: 700501 | M163: DIF Municipal de Amatitán | N163: Valles | O163: 14648
L164: 700601 | M164: DIF Municipal de Ameca | N164: Valles | O164: 57340
L165: 700801 | M165: DIF Municipal de Arandas | N165: Altos Sur | O165: 72812
L166: 701001 | M166: DIF Municipal de Atemajac de Brizuela | N166: Lagunas | O166: 6655
L167: 701101 | M167: DIF Municipal de Atengo | N167: Sierra de Amula | O167: 5400
L168: 701201 | M168: DIF Municipal de Atenguillo | N168: Costa Sierra Occidental | O168: 4115
L169: 701301 | M169: DIF Municipal de Atotonilco el Alto | N169: Ciénega | O169: 57717
L170: 701401 | M170: DIF Municipal de Atoyac | N170: Lagunas | O170: 8276
L171: 701501 | M171: DIF Municipal de Autlán de Navarro | N171: Sierra de Amula | O171: 57559
L172: 701601 | M172: DIF Municipal de Ayotlán | N172: Ciénega | O172: 38291
L173: 701701 | M173: DIF Municipal de Ayutla | N173: Costa Sierra Occidental | O173: 12664
L174: 701901 | M174: DIF Municipal de Bolaños | N174: Norte | O174: 6820
L175: 702001 | M175: DIF Municipal de Cabo Corrientes | N175: Costa Sierra Occidental | O175: 10029
L176: 711701 | M176: DIF Municipal de Cañadas de Obregón | N176: Altos Sur | O176: 4152
L177: 702101 | M177: DIF Municipal de Casimiro Castillo | N177: Costa Sur | O177: 21475
L178: 703001 | M178: DIF Municipal de Chapala | N178: Sureste | O178: 48839
L179: 703101 | M179: DIF Municipal de Chimaltitán | N179: Norte | O179: 3771
L180: 703201 | M180: DIF Municipal de Chiquilistlán | N180: Sierra de Amula | O180: 5814
L181: 702201 | M181: DIF Municipal de Cihuatlán | N181: Costa Sur | O181: 39020
L182: 702401 | M182: DIF Municipal de Cocula | N182: Lagunas | O182: 26174
L183: 702501 | M183: DIF Municipal de Colotlán | N183: Norte | O183: 18091
L184: 702601 | M184: DIF Municipal de Concepción de Buenos Aires | N184: Sureste | O184: 5933
L185: 702701 | M185: DIF Municipal de Cuautitlán de García Barragán | N185: Costa Sur | O185: 17322
L186: 702801 | M186: DIF Municipal de Cuautla | N186: Sierra de Amula | O186: 2171
L187: 702901 | M187: DIF Municipal de Cuquío | N187: Centro | O187: 17795
L188: 703301 | M188: DIF Municipal de Degollado | N188: Ciénega | O188: 21132
L189: 703401 | M189: DIF Municipal de Ejutla | N189: Sierra de Amula | O189: 2082
L190: 700901 | M190: DIF Municipal de El Arenal | N190: Valles | O190: 17545
L191: 703701 | M191: DIF Municipal de El Grullo | N191: Sierra de Amula | O191: 23845
L192: 705401 | M192: DIF Municipal de El Limón | N192: Sierra de Amula | O192: 5499
L193: 707001 | M193: DIF Municipal de El Salto | N193: Centro | O193: 138226
L194: 703501 | M194: DIF Municipal de Encarnación de Díaz | N194: Altos Norte | O194: 51396
L195: 703601 | M195: DIF Municipal de Etzatlán | N195: Valles | O195: 18632
L196: 707901 | M196: DIF Municipal de Gómez Farías | N196: Sur | O196: 14011
L197: 703801 | M197: DIF Municipal de Guachinango | N197: Costa Sierra Occidental | O197: 4323
L198: 703901 | M198: DIF Municipal de Guadalajara | N198: Centro | O198: 1495189
L199: 704001 | M199: DIF Municipal de Hostotipaquillo | N199: Valles | O199: 10284
L200: 704101 | M200: DIF Municipal de Huejúcar | N200: Norte | O200: 6084
L201: 704201 | M201: DIF Municipal de Huejuquilla el Alto | N201: Norte | O201: 8781
L202: 704401 | M202: DIF Municipal de Ixtlahuacán de los Membrillos | N202: Centro | O202: 41060
L203: 704501 | M203: DIF Municipal de Ixtlahuacán del Río | N203: Centro | O203: 19005
L204: 704601 | M204: DIF Municipal de Jalostotitlán | N204: Altos Sur | O204: 31948
L205: 704701 | M205: DIF Municipal de Jamay | N205: Ciénega | O205: 22881
L206: 704801 | M206: DIF Municipal de Jesús María | N206: Altos Sur | O206: 18634
L207: 704901 | M207: DIF Municipal de Jilotlán de los Dolores | N207: Sur | O207: 9545
L208: 705001 | M208: DIF Municipal de Jocotepec | N208: Sureste | O208: 42164
L209: 705101 | M209: DIF Municipal de Juanacatlán | N209: Centro | O209: 13218
L210: 705201 | M210: DIF Municipal de Juchitlán | N210: Sierra de Amula | O210: 5515
L211: 701801 | M211: DIF Municipal de La Barca | N211: Ciénega | O211: 64269
L212: 704301 | M212: DIF Municipal de La Huerta | N212: Costa Sur | O212: 23428
L213: 705701 | M213: DIF Municipal de La Manzanilla de la Paz | N213: Sureste | O213: 3755
L214: 705301 | M214: DIF Municipal de Lagos de Moreno | N214: Altos Norte | O214: 153817
L215: 705501 | M215: DIF Municipal de Magdalena | N215: Valles | O215: 21321
L216: 705801 | M216: DIF Municipal de Mascota | N216: Costa Sierra Occidental | O216: 14245
L217: 705901 | M217: DIF Municipal de Mazamitla | N217: Sureste | O217: 13225
L218: 706001 | M218: DIF Municipal de Mexticacán | N218: Altos Sur | O218: 6034
... 256 more rows

Sheet Inconsistencias
B2: PRESUPUESTO DE EGRESOS 2021
B3: INFORMACIÓN ADICIONAL
B5: NOMBRE DEL ENTE PÚBLICO
B6: Jilotlán de los Dolores
B9: DOCUMENTO REMITIDO | M9: EJERCICIO | Q9: DOCUMENTACIÓN CORRESPONDE A:
C10: Presupuesto de egresos | M10: 2021 | R10: Normal
C11: Modificación al presupuesto | M11: 2021 | R11: Complementaria | AA11: No.
B12: La modificación al presupuesto es la No. | Q12: Se acompaña respaldo electrónico
B13: INFORMACIÓN DE APROBACIÓN DEL PRESUPUESTO
B14: Acta número | H14: Fecha del acuerdo | O14: Acuerdo número
B16: FORMATOS ELABORADOS
B17: =IF(('CRI-RYP'!D24+'CRI-RYP'!F24)>0,IF('CRI-RYP'!F24>0,"X",""),"") -> X | C17: Resultado y proyección de ingresos - LDF.
B18: =IF('CRI-DE'!F141>0,"X","") -> X | C18: Estimación de ingresos (Clasificación por rubro de ingresos de libre disposición y etiquetados).
B19: =IF(('COG-RYP'!D24+'COG-RYP'!F24)>0,IF('COG-RYP'!F24>0,"X",""),"") -> X | C19: Resultado y proyección de egresos - LDF.
B20: =IF('COG-FF'!M429>0,"X","") -> X | C20: Presupuesto de egresos (Clasificador por objeto del gasto y fuente de financiamiento).
B21: =IF('CTG-FF'!M8>0,"X","") -> X | C21: Presupuesto de egresos (Clasificador por tipo de gasto, fuente de financiamiento y objeto del gasto).
B22: =IF(CF!C146>0,"X","") -> X | C22: Presupuesto de egresos (Clasificación funcional del gasto).
B23: =IF(CA!D76>0,"X","") -> X | C23: Presupuesto de egresos (Clasificación administrativa).
B24: =IF(SUM(EA!B48:F48)>2017,"X","") ->  | C24: Informe sobre estudios actuariales - LDF.
B25: =IF(Plantilla!O429>0,"X","") -> X | C25: Plantilla de personal de carácter permanente.
B26: Se considera que los formatos han sido correctamente elaborados, salvo que se generen las siguientes:
B27: Inconsistencia relacionada con la elaboración de formatos:
B28: =IF(SUM(C35:C43)>0,"No se elaboró el o los formato(s) de: ","")&B35&B36&B37&B38&B39&B40&B41&B42&B43 -> No se elaboró el o los formato(s) de: Informe sobre estudios actuariales - LDF.
B35: =IF(B17="X","",C17) ->  | C35: =IF(B17="X",0,1) -> 0
B36: =IF(B18="X","",C18) ->  | C36: =IF(B18="X",0,1) -> 0
C37: 0
C38: 0
C39: 0
C40: 0
C41: 0
B42: Informe sobre estudios actuariales - LDF. | C42: 1
C43: 0
B44: Inconsistencia relacionada con el equilibrio ingreso vs. gasto:
B45: =IF(ABS('CRI-RYP'!E24-'COG-RYP'!E24)>=1000,"El total de la estimación de ingresos es diferente al total del presupuesto de egresos.","") -> 
B46: =IF(ABS(SUM('CRI-M'!P2+'CRI-M'!P21+'CRI-M'!P27+'CRI-M'!P30+'CRI-M'!P60+'CRI-M'!P65)-'CTG-FF'!C8)>=1000,"Se observa diferencia entre la estimación de ingresos fiscales (11) y los egresos pagaderos con dicha fuente de financiamiento.","") -> Se observa diferencia entre la estimación de ingresos fiscales (11) y los egresos pagaderos con dicha fuente de financiamiento.
B48: =IF(ABS('CRI-M'!P146-'CTG-FF'!D8)>=1000,"Se observa diferencia entre la estimación de financiamiento interno (12) y los egresos pagaderos con dicha fuente de financiamiento.","") -> 
B50: =IF(ABS('CRI-M'!P79-'CTG-FF'!F8)>=1000,"Se observa diferencia entre la estimación de ingresos propios (14) y los egresos pagaderos con dicha fuente de financiamiento.","") -> Se observa diferencia entre la estimación de ingresos propios (14) y los egresos pagaderos con dicha fuente de financiamiento.
B52: =IF(ABS((SUM('CRI-M'!P95:P105)+SUM('CRI-M'!P118:P122))-'CTG-FF'!G8)>=1000,"Se observa diferencia entre la estimación de ingresos de recursos federales de libre disposición (15) y los egresos pagaderos con dicha fuente de financiamiento.","") -> Se observa diferencia entre la estimación de ingresos de recursos federales de libre disposición (15) y los egresos pagaderos con dicha fuente de financiamiento.
B54: =IF(ABS('CRI-M'!P106-'CTG-FF'!H8)>=1000,"Se observa diferencia entre la estimación de ingresos de recursos estatales de libre disposición (16) y los egresos pagaderos con dicha fuente de financiamiento.","") -> Se observa diferencia entre la estimación de ingresos de recursos estatales de libre disposición (16) y los egresos pagaderos con dicha fuente de financiamiento.
B56: =IF(ABS((SUM('CRI-M'!P111:P114)+'CRI-M'!P128+'CRI-M'!P133+'CRI-M'!P138+'CRI-M'!P141)-'CTG-FF'!I8)>=1000,"Se observa diferencia entre la estimación de ingresos de otros recursos de libre disposición (17) y los egresos pagaderos con dicha fuente de financiamiento.","") -> 
B58: =IF(ABS('CRI-M'!P107+'CRI-M'!P115+'CRI-M'!P123-'CTG-FF'!J8)>=1000,"Se observa diferencia entre la estimación de ingresos de recursos federales etiquetados (25) y los egresos pagaderos con dicha fuente de financiamiento.","") -> Se observa diferencia entre la estimación de ingresos de recursos federales etiquetados (25) y los egresos pagaderos con dicha fuente de financiamiento.
B60: =IF(ABS('CRI-M'!P116+'CRI-M'!C130+'CRI-M'!C135-'CTG-FF'!K8)>=1000,"Se observa diferencia entre la estimación de ingresos de recursos estatales etiquetados (26) y los egresos pagaderos con dicha fuente de financiamiento.","") -> 
B62: =IF(ABS(('CRI-M'!P129+'CRI-M'!P134)-'CTG-FF'!L8)>=1000,"Se observa diferencia entre la estimación de ingresos otros recursos de transferencia federal etiquetados (27) y los egresos pagaderos con dicha fuente de financiamiento.","") -> 
B64: Inconsistencia relacionada con el monto presupuestado en sus diferentes clasificadores:
B65: =IF(CF!C146=0,"",IF(ABS('COG-RYP'!E24-CF!C146)>=1000,"El total del presupuesto de egresos en su clasificación por objeto del gasto difiere con el total de los egresos por clasificación funcional del gasto.","")) -> 
B67: =IF(CA!D76=0,"",IF(ABS('COG-RYP'!E24-CA!D76)>=1000,"El total del presupuesto de egresos en su clasificación por objeto del gasto difiere con el total de los egresos en la clasificación administrativa.","")) -> 
B69: Gráficos

Sheet CRI-M
A1: CRI-LI | C1: FF | D1: ENERO | E1: FEBRERO | F1: MARZO | G1: ABRIL | H1: MAYO | I1: JUNIO | J1: JULIO | K1: AGOSTO | L1: SEPTIEMBRE | M1: OCTUBRE | N1: NOVIEMBRE | O1: DICIEMBRE | P1: TOTAL
A2: 1000 | B2: IMPUESTOS | D2: =D3+D5+D9+D10+D11+D12+D13+D19 -> 180,374 | E2: =E3+E5+E9+E10+E11+E12+E13+E19 -> 180,374 | F2: 180,374 | G2: 180,374 | H2: 180,374 | I2: 180,374 | J2: 180,374 | K2: 180,374 | L2: 180,374 | M2: 180,374 | N2: 180,374 | O2: 180,374 | P2: =SUM(D2:O2) -> 2,164,488
A3: 1100 | B3: Impuestos sobre los ingresos | D3: =SUM(D4) -> 0 | E3: =SUM(E4) -> 0 | F3: 0 | G3: 0 | H3: 0 | I3: 0 | J3: 0 | K3: 0 | L3: 0 | M3: 0 | N3: 0 | O3: 0 | P3: =SUM(D3:O3) -> 0
A4: 1101 | B4: Impuestos sobre espectáculos públicos | C4: 11 | P4: 0
A5: 1200 | B5: Impuestos sobre el patrimonio | D5: =SUM(D6:D8) -> 159,541 | E5: =SUM(E6:E8) -> 159,541 | F5: 159,541 | G5: 159,541 | H5: 159,541 | I5: 159,541 | J5: 159,541 | K5: 159,541 | L5: 159,541 | M5: 159,541 | N5: 159,541 | O5: 159,541 | P5: 1,914,492
A6: 1201 | B6: Impuesto predial | C6: 11 | D6: 133,064 | E6: 133,064 | F6: 133,064 | G6: 133,064 | H6: 133,064 | I6: 133,064 | J6: 133,064 | K6: 133,064 | L6: 133,064 | M6: 133,064 | N6: 133,064 | O6: 133,064 | P6: 1,596,768
A7: 1202 | B7: Impuestos sobre transmisiones patrimoniales | C7: 11 | D7: 26,477 | E7: 26,477 | F7: 26,477 | G7: 26,477 | H7: 26,477 | I7: 26,477 | J7: 26,477 | K7: 26,477 | L7: 26,477 | M7: 26,477 | N7: 26,477 | O7: 26,477 | P7: 317,724
A8: 1203 | B8: Impuestos sobre negocios jurídicos | C8: 11 | P8: 0
A9: 1300 | B9: Impuestos sobre la producción, el consumo y las transacciones | D9: 0 | E9: 0 | F9: 0 | G9: 0 | H9: 0 | I9: 0 | J9: 0 | K9: 0 | L9: 0 | M9: 0 | N9: 0 | O9: 0 | P9: 0
A10: 1400 | B10: Impuestos al comercio exterior | D10: 0 | E10: 0 | F10: 0 | G10: 0 | H10: 0 | I10: 0 | J10: 0 | K10: 0 | L10: 0 | M10: 0 | N10: 0 | O10: 0 | P10: 0
A11: 1500 | B11: Impuestos sobre nóminas y asimilables | D11: 0 | E11: 0 | F11: 0 | G11: 0 | H11: 0 | I11: 0 | J11: 0 | K11: 0 | L11: 0 | M11: 0 | N11: 0 | O11: 0 | P11: 0
A12: 1600 | B12: Impuestos ecológicos | D12: 0 | E12: 0 | F12: 0 | G12: 0 | H12: 0 | I12: 0 | J12: 0 | K12: 0 | L12: 0 | M12: 0 | N12: 0 | O12: 0 | P12: 0
A13: 1700 | B13: Accesorios de impuestos | D13: =SUM(D14:D18) -> 20,833 | E13: =SUM(E14:E18) -> 20,833 | F13: 20,833 | G13: 20,833 | H13: 20,833 | I13: 20,833 | J13: 20,833 | K13: 20,833 | L13: 20,833 | M13: 20,833 | N13: 20,833 | O13: 20,833 | P13: 249,996
A14: 1701 | B14: Recargos | C14: 11 | D14: 20,833 | E14: 20,833 | F14: 20,833 | G14: 20,833 | H14: 20,833 | I14: 20,833 | J14: 20,833 | K14: 20,833 | L14: 20,833 | M14: 20,833 | N14: 20,833 | O14: 20,833 | P14: 249,996
A15: 1702 | B15: Actualizaciones | C15: 11 | P15: 0
A16: 1703 | B16: Multas | C16: 11 | P16: 0
A17: 1704 | B17: Gastos de ejecución | C17: 11 | P17: 0
A18: 1709 | B18: Otros no especificados | C18: 11 | P18: 0
A19: 1800 | B19: Otros impuestos | D19: =SUM(D20) -> 0 | E19: =SUM(E20) -> 0 | F19: 0 | G19: 0 | H19: 0 | I19: 0 | J19: 0 | K19: 0 | L19: 0 | M19: 0 | N19: 0 | O19: 0 | P19: 0
A20: 1801 | B20: Otros impuestos | C20: 11 | P20: 0
A21: 2000 | B21: CUOTAS Y APORTACIONES DE SEGURIDAD SOCIAL | D21: =SUM(D22:D26) -> 0 | E21: =SUM(E22:E26) -> 0 | F21: 0 | G21: 0 | H21: 0 | I21: 0 | J21: 0 | K21: 0 | L21: 0 | M21: 0 | N21: 0 | O21: 0 | P21: 0
A22: 2100 | B22: Aportaciones para fondos de vivienda | P22: 0
A23: 2200 | B23: Cuotas para la seguridad social | P23: 0
A24: 2300 | B24: Cuotas de ahorro para el retiro | P24: 0
A25: 2400 | B25: Otras cuotas y aportaciones para la seguridad social | P25: 0
A26: 2500 | B26: Accesorios de cuotas y aportaciones de seguridad social | P26: 0
A27: 3000 | B27: CONTRIBUCIONES DE MEJORAS | D27: =SUM(D28) -> 0 | E27: =SUM(E28) -> 0 | F27: 0 | G27: 0 | H27: 0 | I27: 0 | J27: 0 | K27: 0 | L27: 0 | M27: 0 | N27: 0 | O27: 0 | P27: 0
A28: 3100 | B28: Contribuciones de mejoras por obras públicas | D28: =SUM(D29) -> 0 | E28: 0 | F28: 0 | G28: 0 | H28: 0 | I28: 0 | J28: 0 | K28: 0 | L28: 0 | M28: 0 | N28: 0 | O28: 0 | P28: 0
A29: 3101 | B29: Contribuciones de mejoras por obras públicas | C29: 11 | P29: 0
A30: 4000 | B30: DERECHOS | D30: =D31+D36+D37+D52+D54 -> 180,561 | E30: =E31+E36+E37+E52+E54 -> 180,561 | F30: 180,561 | G30: 180,561 | H30: 180,561 | I30: 180,561 | J30: 180,561 | K30: 180,561 | L30: 180,561 | M30: 180,561 | N30: 180,561 | O30: 180,561 | P30: 2,166,732
A31: 4100 | B31: Derechos por el uso, goce, aprovechamiento o explotación de bienes de dominio público | D31: =SUM(D32:D35) -> 1,395 | E31: =SUM(E32:E35) -> 1,395 | F31: 1,395 | G31: 1,395 | H31: 1,395 | I31: 1,395 | J31: 1,395 | K31: 1,395 | L31: 1,395 | M31: 1,395 | N31: 1,395 | O31: 1,395 | P31: 16,740
A32: 4101 | B32: Derechos por el uso del piso | C32: 11 | P32: 0
A33: 4102 | B33: Derechos por el uso de los estacionamientos | C33: 11 | P33: 0
A34: 4103 | B34: Derechos de uso de cementerios y panteones municipales | C34: 11 | D34: 1,395 | E34: 1,395 | F34: 1,395 | G34: 1,395 | H34: 1,395 | I34: 1,395 | J34: 1,395 | K34: 1,395 | L34: 1,395 | M34: 1,395 | N34: 1,395 | O34: 1,395 | P34: 16,740
A35: 4104 | B35: Derechos de concesiones y demás inmuebles de propiedad municipal | C35: 11 | P35: 0
A36: 4200 | B36: Derechos a los hidrocarburos (Derogado) | P36: 0
A37: 4300 | B37: Derechos por prestación de servicios | D37: =SUM(D38:D51) -> 179,166 | E37: =SUM(E38:E51) -> 179,166 | F37: 179,166 | G37: 179,166 | H37: 179,166 | I37: 179,166 | J37: 179,166 | K37: 179,166 | L37: 179,166 | M37: 179,166 | N37: 179,166 | O37: 179,166 | P37: 2,149,992
A38: 4301 | B38: Derechos de licencias y permisos de giros | C38: 11 | D38: 11,939 | E38: 11,939 | F38: 11,939 | G38: 11,939 | H38: 11,939 | I38: 11,939 | J38: 11,939 | K38: 11,939 | L38: 11,939 | M38: 11,939 | N38: 11,939 | O38: 11,939 | P38: 143,268
A39: 4302 | B39: Derechos de licencias y permisos de anuncios | C39: 11 | D39: 559 | E39: 559 | F39: 559 | G39: 559 | H39: 559 | I39: 559 | J39: 559 | K39: 559 | L39: 559 | M39: 559 | N39: 559 | O39: 559 | P39: 6,708
A40: 4303 | B40: Derechos de licencias de construcción, reconstrucción, reparación o demolición de obras | C40: 11 | P40: 0
A41: 4304 | B41: Derechos de regularizaciones de los registros de obra | C41: 11 | P41: 0
A42: 4305 | B42: Derechos de alineamiento, designación de número oficial e inspección | C42: 11 | P42: 0
A43: 4306 | B43: Derechos de licencias de cambio de régimen de propiedad y urbanización | C43: 11 | P43: 0
A44: 4307 | B44: Derechos de servicios de obra | C44: 11 | P44: 0
A45: 4308 | B45: Derechos de servicios de sanidad | C45: 11 | P45: 0
A46: 4309 | B46: Derechos de servicio de limpieza, recolección, traslado, tratamiento y disposición final de residuos | C46: 11 | P46: 0
A47: 4310 | B47: Derechos de agua potable, drenaje, alcantarillado, tratamiento y disposición final de aguas residuales | C47: 11 | D47: 127,684 | E47: 127,684 | F47: 127,684 | G47: 127,684 | H47: 127,684 | I47: 127,684 | J47: 127,684 | K47: 127,684 | L47: 127,684 | M47: 127,684 | N47: 127,684 | O47: 127,684 | P47: 1,532,208
A48: 4311 | B48: Derechos del rastro | C48: 11 | D48: 8,549 | E48: 8,549 | F48: 8,549 | G48: 8,549 | H48: 8,549 | I48: 8,549 | J48: 8,549 | K48: 8,549 | L48: 8,549 | M48: 8,549 | N48: 8,549 | O48: 8,549 | P48: 102,588
A49: 4312 | B49: Derechos del registro civil | C49: 11 | D49: 20,289 | E49: 20,289 | F49: 20,289 | G49: 20,289 | H49: 20,289 | I49: 20,289 | J49: 20,289 | K49: 20,289 | L49: 20,289 | M49: 20,289 | N49: 20,289 | O49: 20,289 | P49: 243,468
A50: 4313 | B50: Derechos de las certificaciones | C50: 11 | D50: 8,782 | E50: 8,782 | F50: 8,782 | G50: 8,782 | H50: 8,782 | I50: 8,782 | J50: 8,782 | K50: 8,782 | L50: 8,782 | M50: 8,782 | N50: 8,782 | O50: 8,782 | P50: 105,384
A51: 4314 | B51: Derechos de los servicios de catastro | C51: 11 | D51: 1,364 | E51: 1,364 | F51: 1,364 | G51: 1,364 | H51: 1,364 | I51: 1,364 | J51: 1,364 | K51: 1,364 | L51: 1,364 | M51: 1,364 | N51: 1,364 | O51: 1,364 | P51: 16,368
A52: 4400 | B52: Otros derechos | D52: =SUM(D53) -> 0 | E52: =SUM(E53) -> 0 | F52: 0 | G52: 0 | H52: 0 | I52: 0 | J52: 0 | K52: 0 | L52: 0 | M52: 0 | N52: 0 | O52: 0 | P52: 0
A53: 4401 | B53: Otros derechos | C53: 11 | P53: 0
A54: 4500 | B54: Accesorios de derechos | D54: =SUM(D55:D59) -> 0 | E54: =SUM(E55:E59) -> 0 | F54: 0 | G54: 0 | H54: 0 | I54: 0 | J54: 0 | K54: 0 | L54: 0 | M54: 0 | N54: 0 | O54: 0 | P54: 0
A55: 4501 | B55: Recargos | C55: 11 | P55: 0
A56: 4502 | B56: Actualizaciones | C56: 11 | P56: 0
A57: 4503 | B57: Multas | C57: 11 | P57: 0
A58: 4504 | B58: Gastos de ejecución | C58: 11 | P58: 0
A59: 4509 | B59: Otros no especificados | C59: 11 | P59: 0
A60: 5000 | B60: PRODUCTOS | D60: =D61+D64 -> 52,663 | E60: =E61+E64 -> 52,663 | F60: 52,663 | G60: 52,663 | H60: 52,663 | I60: 52,663 | J60: 52,663 | K60: 52,663 | L60: 52,663 | M60: 52,663 | N60: 52,663 | O60: 52,663 | P60: 631,956
A61: 5100 | B61: Productos | D61: =SUM(D62:D63) -> 52,663 | E61: =SUM(E62:E63) -> 52,663 | F61: 52,663 | G61: 52,663 | H61: 52,663 | I61: 52,663 | J61: 52,663 | K61: 52,663 | L61: 52,663 | M61: 52,663 | N61: 52,663 | O61: 52,663 | P61: 631,956
A62: 5101 | B62: Uso, goce, aprovechamiento o explotación de bienes de dominio privado | C62: 11 | P62: 0
A63: 5102 | B63: Productos diversos | C63: 11 | D63: 52,663 | E63: 52,663 | F63: 52,663 | G63: 52,663 | H63: 52,663 | I63: 52,663 | J63: 52,663 | K63: 52,663 | L63: 52,663 | M63: 52,663 | N63: 52,663 | O63: 52,663 | P63: 631,956
A64: 5200 | B64: Productos de capital (Derogado) | P64: 0
A65: 6000 | B65: APROVECHAMIENTOS | D65: =D66+D70+D73 -> 7,203 | E65: =E66+E70+E73 -> 7,203 | F65: 7,203 | G65: 7,203 | H65: 7,203 | I65: 7,203 | J65: 7,203 | K65: 7,203 | L65: 7,203 | M65: 7,203 | N65: 7,203 | O65: 7,203 | P65: 86,436
A66: 6100 | B66: Aprovechamientos | D66: =SUM(D67:D69) -> 0 | E66: =SUM(E67:E69) -> 0 | F66: 0 | G66: 0 | H66: 0 | I66: 0 | J66: 0 | K66: 0 | L66: 0 | M66: 0 | N66: 0 | O66: 0 | P66: 0
A67: 6101 | B67: Aprovechamientos de las sanciones, multas, honorarios y donativos | C67: 11 | P67: =SUM(D67:O67) -> 0
A68: 6102 | B68: Aprovechamientos de las indemnizaciones a favor del municipio | C68: 11 | P68: 0
A69: 6103 | B69: Otros aprovechamientos | C69: 11 | P69: 0
A70: 6200 | B70: Aprovechamientos patrimoniales | D70: =SUM(D71:D72) -> 0 | E70: =SUM(E71:E72) -> 0 | F70: 0 | G70: 0 | H70: 0 | I70: 0 | J70: 0 | K70: 0 | L70: 0 | M70: 0 | N70: 0 | O70: 0 | P70: 0
A71: 6201 | B71: Aprovechamientos por el uso o enajenación de bienes | C71: 11 | P71: 0
A72: 6202 | B72: Aprovechamientos por recuperación de capital o patrimonio invertido | C72: 11 | P72: 0
A73: 6300 | B73: Accesorios de aprovechamientos | D73: =SUM(D74:D78) -> 7,203 | E73: =SUM(E74:E78) -> 7,203 | F73: 7,203 | G73: 7,203 | H73: 7,203 | I73: 7,203 | J73: 7,203 | K73: 7,203 | L73: 7,203 | M73: 7,203 | N73: 7,203 | O73: 7,203 | P73: 86,436
A74: 6301 | B74: Recargos | C74: 11 | P74: 0
A75: 6302 | B75: Actualizaciones | C75: 11 | P75: 0
A76: 6303 | B76: Multas | C76: 11 | D76: 2,267 | E76: 2,267 | F76: 2,267 | G76: 2,267 | H76: 2,267 | I76: 2,267 | J76: 2,267 | K76: 2,267 | L76: 2,267 | M76: 2,267 | N76: 2,267 | O76: 2,267 | P76: 27,204
A77: 6304 | B77: Gastos de ejecución | C77: 11 | P77: 0
A78: 6309 | B78: Otros no especificados | C78: 11 | D78: 4,936 | E78: 4,936 | F78: 4,936 | G78: 4,936 | H78: 4,936 | I78: 4,936 | J78: 4,936 | K78: 4,936 | L78: 4,936 | M78: 4,936 | N78: 4,936 | O78: 4,936 | P78: 59,232
A79: 7000 | B79: INGRESOS POR VENTAS DE BIENES, PRESTACIÓN DE SERVICIOS Y OTROS INGRESOS | D79: =D80+D82+D83+D85+D86+D87+D88+D90+D91 -> 208 | E79: =E80+E82+E83+E85+E86+E87+E88+E90+E91 -> 208 | F79: 208 | G79: 208 | H79: 208 | I79: 208 | J79: 208 | K79: 208 | L79: 208 | M79: 208 | N79: 208 | O79: 208 | P79: 2,496
A80: 7100 | B80: Ingresos por venta de bienes y prestación de servicios de instituciones públicas de seguridad social | D80: =SUM(D81) -> 0 | E80: =SUM(E81) -> 0 | F80: 0 | G80: 0 | H80: 0 | I80: 0 | J80: 0 | K80: 0 | L80: 0 | M80: 0 | N80: 0 | O80: 0 | P80: 0
A81: 7101 | B81: Ingresos por venta de bienes y prestación de servicios de instituciones públicas de seguridad social | C81: 14 | P81: 0
A82: 7200 | B82: Ingresos por venta de bienes y prestación de servicios de empresas productivas del estado | P82: 0
A83: 7300 | B83: Ingresos por venta de bienes y prestación de servicios de entidades paraestatales y fideicomisos no empresariales y no financieros | D83: =SUM(D84) -> 0 | E83: =SUM(E84) -> 0 | F83: 0 | G83: 0 | H83: 0 | I83: 0 | J83: 0 | K83: 0 | L83: 0 | M83: 0 | N83: 0 | O83: 0 | P83: 0
A84: 7301 | B84: Ingresos por venta de bienes y prestación de servicios de entidades paraestatales y fideicomisos no empresariales y no financieros | C84: 14 | P84: 0
A85: 7400 | B85: Ingresos por venta de bienes y prestación de servicios de entidades paraestatales empresariales no financieras con participación estatal mayoritaria | P85: 0
A86: 7500 | B86: Ingresos por venta de bienes y prestación de servicios de entidades paraestatales empresariales financieras monetarias con participación estatal mayoritaria | P86: 0
A87: 7600 | B87: Ingresos por venta de bienes y prestación de servicios de entidades paraestatales empresariales financieras no monetarias con participación estatal mayoritaria | P87: 0
A88: 7700 | B88: Ingresos por venta de bienes y prestación de servicios de fideicomisos financieros públicos con participación estatal mayoritaria | D88: =SUM(D89) -> 0 | E88: =SUM(E89) -> 0 | F88: 0 | G88: 0 | H88: 0 | I88: 0 | J88: 0 | K88: 0 | L88: 0 | M88: 0 | N88: 0 | O88: 0 | P88: 0
A89: 7701 | B89: Ingresos por venta de bienes y prestación de servicios de fideicomisos financieros públicos con participación estatal mayoritaria | C89: 14 | P89: 0
A90: 7800 | B90: Ingresos por venta de bienes y prestación de servicios de los poderes legislativo y judicial, y de los órganos autónomos | P90: 0
A91: 7900 | B91: Otros ingresos | D91: =SUM(D92) -> 208 | E91: =SUM(E92) -> 208 | F91: 208 | G91: 208 | H91: 208 | I91: 208 | J91: 208 | K91: 208 | L91: 208 | M91: 208 | N91: 208 | O91: 208 | P91: 2,496
A92: 7901 | B92: Otros ingresos | C92: 14 | D92: 208 | E92: 208 | F92: 208 | G92: 208 | H92: 208 | I92: 208 | J92: 208 | K92: 208 | L92: 208 | M92: 208 | N92: 208 | O92: 208 | P92: 2,496
A93: 8000 | B93: PARTICIPACIONES, APORTACIONES, CONVENIOS, INCENTIVOS DERIVADOS DE LA COLABORACIÓN FISCAL Y FONDOS DISTINTOS DE LAS APORTACIONES | D93: =D94+D107+D110+D117+D123 -> 8,498,031 | E93: =E94+E107+E110+E117+E123 -> 8,498,031 | F93: 8,498,031 | G93: 8,498,031 | H93: 8,498,031 | I93: 8,498,031 | J93: 8,498,031 | K93: 8,498,031 | L93: 8,498,031 | M93: 8,498,031 | N93: 8,498,031 | O93: 8,498,047 | P93: 101,976,388
A94: 8100 | B94: Participaciones | D94: =SUM(D95:D106) -> 7,307,724 | E94: =SUM(E95:E106) -> 7,307,724 | F94: 7,307,724 | G94: 7,307,724 | H94: 7,307,724 | I94: 7,307,724 | J94: 7,307,724 | K94: 7,307,724 | L94: 7,307,724 | M94: 7,307,724 | N94: 7,307,724 | O94: 7,307,740 | P94: 87,692,704
A95: 8101 | B95: Fondo general de participaciones (federal) | C95: 15 | D95: 7,301,752 | E95: 7,301,752 | F95: 7,301,752 | G95: 7,301,752 | H95: 7,301,752 | I95: 7,301,752 | J95: 7,301,752 | K95: 7,301,752 | L95: 7,301,752 | M95: 7,301,752 | N95: 7,301,752 | O95: 7,301,768 | P95: 87,621,040
A96: 8102 | B96: Fondo de fomento municipal (federal) | C96: 15 | P96: 0
A97: 8103 | B97: Fondo de fiscalización y recaudación (federal) | C97: 15 | P97: 0
A98: 8104 | B98: Fondo de compensación (federal) | C98: 15 | P98: 0
A99: 8105 | B99: Fondo de extracción de hidrocarburos (federal) | C99: 15 | P99: 0
A100: 8106 | B100: Impuesto especial sobre producción y servicios (federal) | C100: 15 | P100: 0
A101: 8107 | B101: 0.136% de la recaudación federal participable (federal) | C101: 15 | P101: 0
A102: 8108 | B102: 3.17% sobre extracción de petróleo (federal) | C102: 15 | P102: 0
A103: 8109 | B103: Gasolinas y diésel (federal) | C103: 15 | P103: 0
A104: 8110 | B104: Fondo del impuesto sobre la renta (federal) | C104: 15 | P104: 0
A105: 8111 | B105: Fondo de estabilización de los ingresos de las entidades federativas (federal) | C105: 15 | P105: 0
A106: 8112 | B106: Participaciones del estado | C106: 16 | D106: 5,972 | E106: 5,972 | F106: 5,972 | G106: 5,972 | H106: 5,972 | I106: 5,972 | J106: 5,972 | K106: 5,972 | L106: 5,972 | M106: 5,972 | N106: 5,972 | O106: 5,972 | P106: 71,664
A107: 8200 | B107: Aportaciones | D107: =SUM(D108:D109) -> 1,190,307 | E107: =SUM(E108:E109) -> 1,190,307 | F107: 1,190,307 | G107: 1,190,307 | H107: 1,190,307 | I107: 1,190,307 | J107: 1,190,307 | K107: 1,190,307 | L107: 1,190,307 | M107: 1,190,307 | N107: 1,190,307 | O107: 1,190,307 | P107: 14,283,684
A108: 8201 | B108: Fondo de aportaciones para la infraestructura social municipal | C108: 25 | D108: 556,369 | E108: 556,369 | F108: 556,369 | G108: 556,369 | H108: 556,369 | I108: 556,369 | J108: 556,369 | K108: 556,369 | L108: 556,369 | M108: 556,369 | N108: 556,369 | O108: 556,369 | P108: 6,676,428
A109: 8202 | B109: Fondo de aportaciones para el fortalecimiento municipal | C109: 25 | D109: 633,938 | E109: 633,938 | F109: 633,938 | G109: 633,938 | H109: 633,938 | I109: 633,938 | J109: 633,938 | K109: 633,938 | L109: 633,938 | M109: 633,938 | N109: 633,938 | O109: 633,938 | P109: 7,607,256
A110: 8300 | B110: Convenios | D110: =SUM(D111:D116) -> 0 | E110: =SUM(E111:E116) -> 0 | F110: 0 | G110: 0 | H110: 0 | I110: 0 | J110: 0 | K110: 0 | L110: 0 | M110: 0 | N110: 0 | O110: =SUM(O111:O116) -> 0 | P110: =SUM(D110:O110) -> 0
A111: 8301 | B111: Convenios de protección social en salud | C111: 17 | P111: 0
A112: 8302 | B112: Convenios de descentralizados | C112: 17 | P112: 0
A113: 8303 | B113: Convenio de reasignación | C113: 17 | P113: 0
A114: 8304 | B114: Otros convenios y subsidios (Con ingresos de libre disposición) | C114: 17 | P114: 0
A115: 8304 | B115: Otros convenios y subsidios (Con ingresos etiquetados federales) | C115: 25 | P115: 0
A116: 8304 | B116: Otros convenios y subsidios (Con ingresos etiquetados estatales) | C116: 26 | P116: =SUM(D116:O116) -> 0
A117: 8400 | B117: Incentivos derivados de la colaboración fiscal | D117: =SUM(D118:D122) -> 0 | E117: =SUM(E118:E122) -> 0 | F117: 0 | G117: 0 | H117: 0 | I117: 0 | J117: 0 | K117: 0 | L117: 0 | M117: 0 | N117: 0 | O117: 0 | P117: 0
A118: 8401 | B118: Tenencia o uso de vehículos | C118: 15 | P118: 0
A119: 8402 | B119: Fondo de compensación ISAN | C119: 15 | P119: 0
A120: 8403 | B120: Impuesto sobre automóviles nuevos | C120: 15 | P120: 0
A121: 8404 | B121: Fondo de compensación de repecos-intermedios | C121: 15 | P121: 0
A122: 8405 | B122: Otros incentivos económicos | C122: 15 | P122: 0
A123: 8500 | B123: Fondos distintos de aportaciones | D123: =SUM(D124:D125) -> 0 | E123: =SUM(E124:E125) -> 0 | F123: 0 | G123: 0 | H123: 0 | I123: 0 | J123: 0 | K123: 0 | L123: 0 | M123: 0 | N123: 0 | O123: 0 | P123: 0
A124: 8501 | B124: Fondo para entidades federativas y municipios productores de hidrocarburos | C124: 25 | P124: 0
A125: 8502 | B125: Fondo minero | C125: 25 | P125: 0
A126: 9000 | B126: TRANSFERENCIAS, ASIGNACIONES, SUBSIDIOS Y SUBVENCIONES Y PENSIONES Y JUBILACIONES | D126: =D127+D131+D132+D136+D137+D139+D140 -> 0 | E126: =E127+E131+E132+E136+E137+E139+E140 -> 0 | F126: 0 | G126: 0 | H126: 0 | I126: 0 | J126: 0 | K126: 0 | L126: 0 | M126: 0 | N126: 0 | O126: 0 | P126: 0
A127: 9100 | B127: Transferencias y asignaciones | D127: =SUM(D128:D130) -> 0 | E127: =SUM(E128:E130) -> 0 | F127: =SUM(F128:F130) -> 0 | G127: 0 | H127: 0 | I127: 0 | J127: 0 | K127: 0 | L127: 0 | M127: 0 | N127: 0 | O127: =SUM(O128:O130) -> 0 | P127: =SUM(D127:O127) -> 0
A128: 9101 | B128: Transferencias y asignaciones (Con ingresos de libre disposición) | C128: 17 | P128: =SUM(D128:O128) -> 0
A129: 9101 | B129: Transferencias y asignaciones (Con ingresos etiquetados federales) | C129: 27 | P129: 0
A130: 9101 | B130: Transferencias y asignaciones (Con ingresos etiquetados estatales) | C130: 26 | P130: 0
A131: 9200 | B131: Transferencias al resto del sector público (derogado) | P131: 0
A132: 9300 | B132: Subsidios y subvenciones | D132: =SUM(D133:D135) -> 0 | E132: =SUM(E133:E135) -> 0 | F132: =SUM(F133:F135) -> 0 | G132: 0 | H132: 0 | I132: 0 | J132: 0 | K132: 0 | L132: 0 | M132: 0 | N132: 0 | O132: =SUM(O133:O135) -> 0 | P132: =SUM(D132:O132) -> 0
A133: 9301 | B133: Subsidios y subvenciones (Con ingresos de libre disposición) | C133: 17 | P133: =SUM(D133:O133) -> 0
A134: 9301 | B134: Subsidios y subvenciones (Con ingresos etiquetados federales) | C134: 27 | P134: 0
A135: 9301 | B135: Subsidios y subvenciones (Con ingresos etiquetados estatales) | C135: 26 | P135: 0
A136: 9400 | B136: Ayudas sociales (derogado) | P136: 0
A137: 9500 | B137: Pensiones y jubilaciones | D137: =SUM(D138) -> 0 | E137: =SUM(E138) -> 0 | F137: 0 | G137: 0 | H137: 0 | I137: 0 | J137: 0 | K137: 0 | L137: 0 | M137: 0 | N137: 0 | O137: 0 | P137: 0
A138: 9501 | B138: Pensiones y jubilaciones | C138: 17 | P138: 0
A139: 9600 | B139: Transferencias a fideicomisos, mandatos y análogos (derogado) | P139: 0
A140: 9700 | B140: Transferencias del fondo mexicano del petróleo para la estabilización y el desarrollo | D140: =SUM(D141) -> 0 | E140: =SUM(E141) -> 0 | F140: 0 | G140: 0 | H140: 0 | I140: 0 | J140: 0 | K140: 0 | L140: 0 | M140: 0 | N140: 0 | O140: 0 | P140: 0
A141: 9701 | B141: Transferencias del fondo mexicano del petróleo para la estabilización y el desarrollo | C141: 17 | P141: 0
A142: 0000 | B142: INGRESOS DERIVADOS DE FINANCIAMIENTO | D142: =D143+D144+D145 -> 0 | E142: =E143+E144+E145 -> 0 | F142: 0 | G142: 0 | H142: 0 | I142: 0 | J142: 0 | K142: 0 | L142: 0 | M142: 0 | N142: 0 | O142: 0 | P142: 0
A143: 0100 | B143: Endeudamiento interno | P143: 0
A144: 0200 | B144: Endeudamiento externo | P144: 0
A145: 0300 | B145: Financiamiento interno | D145: =SUM(D146) -> 0 | E145: =SUM(E146) -> 0 | F145: 0 | G145: 0 | H145: 0 | I145: 0 | J145: 0 | K145: 0 | L145: 0 | M145: 0 | N145: 0 | O145: 0 | P145: 0
A146: 0301 | B146: Financiamiento interno | C146: 12 | P146: 0
A147: ESTIMACIÓN DE INGRESOS | D147: =D2+D21+D27+D30+D60+D65+D79+D93+D126+D142 -> 8,919,040 | E147: =E2+E21+E27+E30+E60+E65+E79+E93+E126+E142 -> 8,919,040 | F147: 8,919,040 | G147: 8,919,040 | H147: 8,919,040 | I147: 8,919,040 | J147: 8,919,040 | K147: 8,919,040 | L147: 8,919,040 | M147: 8,919,040 | N147: 8,919,040 | O147: 8,919,056 | P147: 107,028,496

Sheet COG-M
A1: COG | B1: DESCRIPCIÓN | C1: FF | D1: ENERO | E1: FEBRERO | F1: MARZO | G1: ABRIL | H1: MAYO | I1: JUNIO | J1: JULIO | K1: AGOSTO | L1: SEPTIEMBRE | M1: OCTUBRE | N1: NOVIEMBRE | O1: DICIEMBRE | P1: TOTAL
A2: 1000 | B2: SERVICIOS PERSONALES | D2: =D3+D35+D67+D130+D171+D232+D243 -> 2,072,628 | E2: 2,072,628 | F2: 2,072,628 | G2: 2,072,628 | H2: 2,072,628 | I2: 2,072,628 | J2: 2,072,628 | K2: 2,072,628 | L2: 2,072,628 | M2: 2,072,628 | N2: 2,072,628 | O2: 2,072,628 | P2: 24,871,540
A3: 1100 | B3: REMUNERACIONES AL PERSONAL DE CARÁCTER PERMANENTE | D3: =SUM(D4:D31) -> 1,209,810 | E3: 1,209,810 | F3: 1,209,810 | G3: 1,209,810 | H3: 1,209,810 | I3: 1,209,810 | J3: 1,209,810 | K3: 1,209,810 | L3: 1,209,810 | M3: 1,209,810 | N3: 1,209,810 | O3: 1,209,810 | P3: 14,517,724
A4: 111 | B4: Dietas | C4: 11 | D4: =(SUMIF(Plantilla!$E$3:$E$4,C4,Plantilla!$H$3:$H$4))/12 -> 156,600 | E4: =D4 -> 156,600 | F4: =E4 -> 156,600 | G4: 156,600 | H4: 156,600 | I4: 156,600 | J4: 156,600 | K4: 156,600 | L4: 156,600 | M4: 156,600 | N4: 156,600 | O4: 156,600 | P4: =SUM(D4:O4) -> 1,879,200
C5: 12 | P5: =SUM(D5:O5) -> 0
C6: 13 | P6: 0
C7: 14 | P7: 0
C8: 15 | D8: =(SUMIF(Plantilla!$E$3:$E$4,C8,Plantilla!$H$3:$H$4))/12 -> 0 | E8: =D8 -> 0 | F8: 0 | G8: 0 | H8: 0 | I8: 0 | J8: 0 | K8: 0 | L8: 0 | M8: 0 | N8: 0 | O8: 0 | P8: =SUM(D8:O8) -> 0
C9: 16 | D9: =(SUMIF(Plantilla!$E$3:$E$4,C9,Plantilla!$H$3:$H$4))/12 -> 0 | E9: =D9 -> 0 | F9: 0 | G9: 0 | H9: 0 | I9: 0 | J9: 0 | K9: 0 | L9: 0 | M9: 0 | N9: 0 | O9: 0 | P9: 0
C10: 17 | D10: =(SUMIF(Plantilla!$E$3:$E$4,C10,Plantilla!$H$3:$H$4))/12 -> 0 | E10: =D10 -> 0 | F10: 0 | G10: 0 | H10: 0 | I10: 0 | J10: 0 | K10: 0 | L10: 0 | M10: 0 | N10: 0 | O10: 0 | P10: 0
C11: 25 | P11: 0
C12: 26 | P12: 0
C13: 27 | P13: 0
A14: 112 | B14: Haberes | P14: =SUM(D14:O14) -> 0
A15: 113 | B15: Sueldos base al personal permanente | C15: 11 | D15: =(SUMIF(Plantilla!$E$5:$E$428,'COG-M'!C15,Plantilla!$H$5:$H$428))/12 -> 1,053,210 | E15: =D15 -> 1,053,210 | F15: =E15 -> 1,053,210 | G15: 1,053,210 | H15: 1,053,210 | I15: 1,053,210 | J15: 1,053,210 | K15: 1,053,210 | L15: 1,053,210 | M15: 1,053,210 | N15: 1,053,210 | O15: 1,053,210 | P15: =SUM(D15:O15) -> 12,638,524
C16: 12 | P16: =SUM(D16:O16) -> 0
C17: 13 | P17: 0
C18: 14 | D18: =(SUMIF(Plantilla!$E$5:$E$428,'COG-M'!C18,Plantilla!$H$5:$H$428))/12 -> 0 | E18: =D18 -> 0 | F18: 0 | G18: 0 | H18: 0 | I18: 0 | J18: 0 | K18: 0 | L18: 0 | M18: 0 | N18: 0 | O18: 0 | P18: =SUM(D18:O18) -> 0
C19: 15 | D19: =(SUMIF(Plantilla!$E$5:$E$428,'COG-M'!C19,Plantilla!$H$5:$H$428))/12 -> 0 | E19: =D19 -> 0 | F19: 0 | G19: 0 | H19: 0 | I19: 0 | J19: 0 | K19: 0 | L19: 0 | M19: 0 | N19: 0 | O19: 0 | P19: 0
C20: 16 | D20: =(SUMIF(Plantilla!$E$5:$E$428,'COG-M'!C20,Plantilla!$H$5:$H$428))/12 -> 0 | E20: =D20 -> 0 | F20: 0 | G20: 0 | H20: 0 | I20: 0 | J20: 0 | K20: 0 | L20: 0 | M20: 0 | N20: 0 | O20: 0 | P20: 0
C21: 17 | D21: =(SUMIF(Plantilla!$E$5:$E$428,'COG-M'!C21,Plantilla!$H$5:$H$428))/12 -> 0 | E21: =D21 -> 0 | F21: 0 | G21: 0 | H21: 0 | I21: 0 | J21: 0 | K21: 0 | L21: 0 | M21: 0 | N21: 0 | O21: 0 | P21: 0
C22: 25 | D22: =(SUMIF(Plantilla!$E$5:$E$428,'COG-M'!C22,Plantilla!$H$5:$H$428))/12 -> 0 | E22: =D22 -> 0 | F22: 0 | G22: 0 | H22: 0 | I22: 0 | J22: 0 | K22: 0 | L22: 0 | M22: 0 | N22: 0 | O22: 0 | P22: 0
C23: 26 | P23: 0
C24: 27 | P24: 0
A25: 114 | B25: Remuneraciones por adscripción laboral en el extranjero | C25: 11 | P25: =SUM(D25:O25) -> 0
C26: 12 | P26: =SUM(D26:O26) -> 0
C27: 13 | P27: 0
C28: 14 | P28: 0
C29: 15 | P29: =SUM(D29:O29) -> 0
C30: 16 | P30: 0
C31: 17 | P31: 0
C32: 25 | P32: 0
C33: 26 | P33: 0
C34: 27 | P34: 0
A35: 1200 | B35: REMUNERACIONES AL PERSONAL DE CARÁCTER TRANSITORIO | D35: =SUM(D36:D66) -> 660,389 | E35: =SUM(E36:E66) -> 660,389 | F35: 660,389 | G35: 660,389 | H35: 660,389 | I35: 660,389 | J35: 660,389 | K35: 660,389 | L35: 660,389 | M35: 660,389 | N35: 660,389 | O35: 660,389 | P35: =SUM(P36:P66) -> 7,924,668
A36: 121 | B36: Honorarios asimilables a salarios | C36: 11 | P36: =SUM(D36:O36) -> 0
C37: 12 | P37: =SUM(D37:O37) -> 0
C38: 13 | P38: 0
C39: 14 | P39: =SUM(D39:O39) -> 0
C40: 15 | P40: 0
C41: 16 | P41: 0
C42: 17 | P42: 0
C43: 25 | P43: 0
C44: 26 | P44: 0
C45: 27 | P45: 0
A46: 122 | B46: Sueldos base al personal eventual | C46: 11 | D46: 660,389 | E46: 660,389 | F46: 660,389 | G46: 660,389 | H46: 660,389 | I46: 660,389 | J46: 660,389 | K46: 660,389 | L46: 660,389 | M46: 660,389 | N46: 660,389 | O46: 660,389 | P46: 7,924,668
C47: 12 | P47: 0
C48: 13 | P48: 0
C49: 14 | P49: 0
C50: 15 | P50: 0
C51: 16 | P51: 0
C52: 17 | P52: 0
C53: 25 | P53: 0
C54: 26 | P54: 0
C55: 27 | P55: 0
A56: 123 | B56: Retribuciones por servicios de carácter social | C56: 11 | P56: 0
C57: 12 | P57: 0
C58: 13 | P58: 0
C59: 14 | P59: 0
C60: 15 | P60: 0
C61: 16 | P61: 0
C62: 17 | P62: 0
C63: 25 | P63: 0
C64: 26 | P64: 0
C65: 27 | P65: 0
A66: 124 | B66: Retribución a los representantes de los trabajadores y de los patrones en la Junta de Conciliación y Arbitraje | P66: =SUM(D66:O66) -> 0
A67: 1300 | B67: REMUNERACIONES ADICIONALES Y ESPECIALES | D67: =SUM(D68:D126) -> 188,500 | E67: 188,500 | F67: 188,500 | G67: 188,500 | H67: 188,500 | I67: 188,500 | J67: 188,500 | K67: 188,500 | L67: 188,500 | M67: 188,500 | N67: 188,500 | O67: 188,500 | P67: 2,262,000
A68: 131 | B68: Primas por años de servicios efectivos prestados | C68: 11 | P68: =SUM(D68:O68) -> 0
C69: 12 | P69: 0
C70: 13 | P70: 0
C71: 14 | P71: 0
C72: 15 | P72: 0
C73: 16 | P73: 0
C74: 17 | P74: 0
C75: 25 | P75: 0
C76: 26 | P76: 0
C77: 27 | P77: 0
A78: 132 | B78: Primas de vacaciones, dominical y gratificación de fin de año | C78: 11 | D78: 188,500 | E78: 188,500 | F78: 188,500 | G78: 188,500 | H78: 188,500 | I78: 188,500 | J78: 188,500 | K78: 188,500 | L78: 188,500 | M78: 188,500 | N78: 188,500 | O78: 188,500 | P78: 2,262,000
C79: 12 | P79: 0
C80: 13 | P80: 0
C81: 14 | P81: 0
C82: 15 | P82: 0
C83: 16 | P83: 0
C84: 17 | P84: 0
C85: 25 | P85: 0
C86: 26 | P86: 0
C87: 27 | P87: 0
A88: 133 | B88: Horas extraordinarias | C88: 11 | P88: 0
C89: 12 | P89: 0
C90: 13 | P90: 0
C91: 14 | P91: 0
C92: 15 | P92: 0
C93: 16 | P93: 0
C94: 17 | P94: 0
C95: 25 | P95: 0
C96: 26 | P96: 0
C97: 27 | P97: 0
A98: 134 | B98: Compensaciones | C98: 11 | P98: 0
C99: 12 | P99: 0
C100: 13 | P100: 0
C101: 14 | P101: 0
C102: 15 | P102: 0
C103: 16 | P103: 0
C104: 17 | P104: 0
C105: 25 | P105: 0
C106: 26 | P106: 0
C107: 27 | P107: 0
A108: 135 | B108: Sobrehaberes | P108: 0
A109: 136 | B109: Asignaciones de técnico, de mando, por comisión, de vuelo y de técnico especial | P109: 0
A110: 137 | B110: Honorarios especiales | C110: 11 | P110: 0
C111: 12 | P111: 0
C112: 13 | P112: 0
C113: 14 | P113: 0
C114: 15 | P114: 0
C115: 16 | P115: 0
C116: 17 | P116: 0
C117: 25 | P117: 0
C118: 26 | P118: 0
C119: 27 | P119: 0
A120: 138 | B120: Participaciones por vigilancia en el cumplimiento de la leyes y custodia de valores | C120: 11 | P120: 0
C121: 12 | P121: 0
C122: 13 | P122: 0
C123: 14 | P123: 0
C124: 15 | P124: 0
C125: 16 | P125: 0
C126: 17 | P126: 0
C127: 25 | P127: 0
C128: 26 | P128: 0
C129: 27 | P129: 0
A130: 1400 | B130: SEGURIDAD SOCIAL | D130: =SUM(D131:D167) -> 0 | E130: =SUM(E131:E167) -> 0 | F130: 0 | G130: 0 | H130: 0 | I130: 0 | J130: 0 | K130: 0 | L130: 0 | M130: 0 | N130: 0 | O130: 0 | P130: 0
A131: 141 | B131: Aportaciones de seguridad social | C131: 11 | P131: =SUM(D131:O131) -> 0
C132: 12 | P132: =SUM(D132:O132) -> 0
C133: 13 | P133: 0
C134: 14 | P134: =SUM(D134:O134) -> 0
C135: 15 | P135: 0
C136: 16 | P136: 0
C137: 17 | P137: 0
C138: 25 | P138: 0
C139: 26 | P139: 0
C140: 27 | P140: 0
A141: 142 | B141: Aportaciones a fondos de vivienda | C141: 11 | P141: 0
C142: 12 | P142: 0
C143: 13 | P143: 0
C144: 14 | P144: 0
C145: 15 | P145: 0
C146: 16 | P146: 0
C147: 17 | P147: 0
C148: 25 | P148: 0
C149: 26 | P149: 0
C150: 27 | P150: 0
A151: 143 | B151: Aportaciones al sistema para el retiro | C151: 11 | P151: 0
C152: 12 | P152: 0
C153: 13 | P153: 0
C154: 14 | P154: 0
C155: 15 | P155: 0
C156: 16 | P156: 0
C157: 17 | P157: 0
C158: 25 | P158: 0
C159: 26 | P159: 0
C160: 27 | P160: 0
A161: 144 | B161: Aportaciones para seguros | C161: 11 | P161: 0
C162: 12 | P162: 0
C163: 13 | P163: 0
C164: 14 | P164: 0
C165: 15 | P165: 0
C166: 16 | P166: 0
C167: 17 | P167: 0
C168: 25 | P168: 0
C169: 26 | P169: 0
C170: 27 | P170: 0
A171: 1500 | B171: OTRAS PRESTACIONES SOCIALES Y ECONÓMICAS | D171: =SUM(D172:D228) -> 13,929 | E171: 13,929 | F171: 13,929 | G171: 13,929 | H171: 13,929 | I171: 13,929 | J171: 13,929 | K171: 13,929 | L171: 13,929 | M171: 13,929 | N171: 13,929 | O171: 13,929 | P171: 167,148
A172: 151 | B172: Cuotas para el fondo de ahorro y fondo de trabajo | C172: 11 | P172: =SUM(D172:O172) -> 0
C173: 12 | P173: 0
C174: 13 | P174: 0
C175: 14 | P175: 0
C176: 15 | P176: 0
C177: 16 | P177: 0
C178: 17 | P178: 0
C179: 25 | P179: 0
C180: 26 | P180: 0
C181: 27 | P181: 0
A182: 152 | B182: Indemnizaciones | C182: 11 | D182: 13,929 | E182: 13,929 | F182: 13,929 | G182: 13,929 | H182: 13,929 | I182: 13,929 | J182: 13,929 | K182: 13,929 | L182: 13,929 | M182: 13,929 | N182: 13,929 | O182: 13,929 | P182: 167,148
C183: 12 | P183: 0
C184: 13 | P184: 0
C185: 14 | P185: 0
C186: 15 | P186: 0
C187: 16 | P187: 0
C188: 17 | P188: 0
C189: 25 | P189: 0
C190: 26 | P190: 0
C191: 27 | P191: 0
A192: 153 | B192: Prestaciones y haberes de retiro | C192: 11 | P192: 0
C193: 12 | P193: 0
C194: 13 | P194: 0
C195: 14 | P195: 0
C196: 15 | P196: 0
C197: 16 | P197: 0
C198: 17 | P198: 0
C199: 25 | P199: 0
C200: 26 | P200: 0
... 2829 more rows

Sheet CRI-RYP
B1: Resultado 2018 | C1: Resultado 2019 | D1: Resultado 2020 | E1: Estimación 2021 | F1: Proyección 2022 | G1: Proyección 2023 | H1: Proyección 2024
A2: INGRESOS DE LIBRE DISPOSCIÓN
A3: Impuestos | B3: 1,549,609 | C3: 1,288,786 | D3: 2,371,430 | E3: ='CRI-DE'!F2 -> 2,164,488 | F3: 2,693,184 | G3: 2,800,911 | H3: 2,940,956
A4: Cuotas y aportaciones de seguridad social | E4: ='CRI-DE'!F21 -> 0
A5: Contribuciones de mejoras | E5: ='CRI-DE'!F27 -> 0
A6: Derechos | B6: 1,257,680 | C6: 1,036,405 | D6: 1,965,329 | E6: ='CRI-DE'!F30 -> 2,166,732 | F6: 2,231,968 | G6: 2,321,247 | H6: 2,437,309
A7: Productos | E7: ='CRI-DE'!F60 -> 631,956
A8: Aprovechamientos | B8: 15,693 | C8: 9,499 | D8: 78,400 | E8: ='CRI-DE'!F65 -> 86,436 | F8: 89,042 | G8: 92,603 | H8: 97,233
A9: Ingresos por venta de bienes y prestación de servicios | E9: ='CRI-DE'!F79 -> 2,496 | F9: 2,544 | G9: 2,646 | H9: 2,778
A10: Participaciones | B10: 75,912,765 | C10: 156,182,780 | D10: 79,313,101 | E10: ='CRI-DE'!F94 -> 87,692,704 | F10: 90,074,311 | G10: 93,677,284 | H10: 98,361,148
A11: Incentivos derivados de la colaboración fiscal | C11: 77,419 | E11: ='CRI-DE'!F115 -> 0
A12: Transferencias y asignaciones | C12: 300,000 | E12: ='CRI-DE'!D124 -> 0
A13: Convenios | E13: ='CRI-DE'!D110 -> 0
A14: Otros ingresos de libre disposición | E14: 0
A15: Total de ingresos de libre disposición | B15: =SUM(B3:B14) -> 78,735,747 | C15: =SUM(C3:C14) -> 158,894,889 | D15: 83,728,260 | E15: 92,744,812 | F15: 95,091,049 | G15: 98,894,691 | H15: 103,839,424
A16: TRANSFERENCIAS FEDERALES ETIQUETADAS
A17: Aportaciones | B17: 11,525,466 | C17: 4,263,079 | D17: 12,955,714 | E17: ='CRI-DE'!E107 -> 14,283,684 | F17: 14,713,546 | G17: 15,302,087 | H17: 16,067,191
A18: Convenios | E18: ='CRI-DE'!E110 -> 0
A19: Fondos distintos de aportaciones | E19: ='CRI-DE'!E121 -> 0
A20: Transferencias, asignaciones, subsidios y subvenciones y pensiones y jubilaciones | E20: ='CRI-DE'!E124 -> 0
A21: Otras transferencias federales etiquetadas | B21: 319,300 | E21: 0
A22: Total de ingresos etiquetados | B22: =SUM(B17:B21) -> 11,844,766 | C22: 4,263,079 | D22: 12,955,714 | E22: 14,283,684 | F22: 14,713,546 | G22: 15,302,087 | H22: 16,067,191
A23: Ingresos derivados de financiamientos | B23: =B29 -> 0 | C23: =C29 -> 2,236 | D23: =D29 -> 0 | E23: =E29 -> 0
A24: TOTAL DE INGRESOS | B24: =B15+B22+B23 -> 90,580,513 | C24: =C15+C22+C23 -> 163,160,204 | D24: 96,683,974 | E24: 107,028,496 | F24: 109,804,595 | G24: 114,196,778 | H24: 119,906,615
A26: DATOS INFORMATIVOS
A27: Ingresos derivados de financiamientos con fuente de pago de recursos de libre disposición | C27: 2,236 | E27: ='CRI-DE'!D136 -> 0
A28: Ingresos derivados de financiamientos con fuente de pago de transferencias federales etiquetadas | E28: ='CRI-DE'!E136 -> 0
A29: Ingresos derivados de financiamiento | B29: =SUM(B27:B28) -> 0 | C29: 2,236 | D29: 0 | E29: 0 | F29: 0 | G29: 0 | H29: 0
A35: =SUM(B24:H24) -> 801,361,175

Sheet COG-RYP
B1: Resultado 2018 | C1: Resultado 2019 | D1: Resultado 2020 | E1: Presupuesto 2021 | F1: Proyección 2022 | G1: Proyección 2023 | H1: Proyección 2024
A2: GASTOS NO ETIQUETADO
A3: Servicios personales | B3: 28,527,510 | C3: 24,493,132 | D3: 24,069,197 | E3: =SUM('COG-FF'!C3:I3) -> 24,871,540
A4: Materiales y suministros | B4: 19,947,703 | C4: 19,079,170 | D4: 21,953,346 | E4: =SUM('COG-FF'!C40:I40) -> 21,524,220
A5: Servicios generales | B5: 29,258,711 | C5: 25,073,030 | D5: 24,914,472 | E5: =SUM('COG-FF'!C105:I105) -> 28,688,652
A6: Transferencias, asignaciones, subsidios y otras ayudas | B6: 12,838,475 | C6: 9,944,864 | D6: 8,373,533 | E6: =SUM('COG-FF'!C190:I190) -> 8,791,056
A7: Bienes muebles, inmuebles e intangibles | B7: 463,767 | C7: 345,609 | D7: 354,660 | E7: =SUM('COG-FF'!C250:I250) -> 2,052,348
A8: Inversion pública | B8: 147,715,484 | C8: 40,144,513 | D8: 8,251,812 | E8: =SUM('COG-FF'!C309:I309) -> 17,815,452
A9: Inversiones financieras y otras provisiones | E9: =SUM('COG-FF'!C331:I331) -> 0
A10: Participaciones y aportaciones | E10: =SUM('COG-FF'!C379:I379) -> 0
A11: Deuda pública | B11: 32,000 | E11: =SUM('COG-FF'!C397:I397) -> 0
A12: Total de gasto no etiquetado | B12: =SUM(B3:B11) -> 238,783,650 | C12: 119,080,318 | D12: 87,917,020 | E12: 103,743,268 | F12: 0 | G12: 0 | H12: 0
A13: GASTO ETIQUETADO
A14: Servicios personales | B14: 2,567,317 | E14: =SUM('COG-FF'!J3:L3) -> 0
A15: Materiales y suministros | B15: 160,656 | E15: =SUM('COG-FF'!J40:L40) -> 0
A16: Servicios generales | B16: 4,534,237 | E16: =SUM('COG-FF'!J105:L105) -> 0
A17: Transferencias, asignaciones, subsidios y otras ayudas | B17: 568,813 | E17: =SUM('COG-FF'!J190:L190) -> 0
A18: Bienes muebles, inmuebles e intangibles | E18: =SUM('COG-FF'!J250:L250) -> 0
A19: Inversion pública | B19: 14,024,744 | D19: 13,603,500 | E19: =SUM('COG-FF'!J309:L309) -> 3,285,228 | F19: 14,713,546 | G19: 15,302,087 | H19: 16,067,191
A20: Inversiones financieras y otras provisiones | E20: =SUM('COG-FF'!J331:L331) -> 0
A21: Participaciones y aportaciones | E21: =SUM('COG-FF'!J379:L379) -> 0
A22: Deuda pública | E22: =SUM('COG-FF'!J397:L397) -> 0
A23: Total de gasto etiquetado | B23: =SUM(B14:B22) -> 21,855,767 | C23: 0 | D23: 13,603,500 | E23: 3,285,228 | F23: 14,713,546 | G23: 15,302,087 | H23: 16,067,191
A24: TOTAL DE EGRESOS | B24: =B12+B23 -> 260,639,417 | C24: =C12+C23 -> 119,080,318 | D24: 101,520,520 | E24: 107,028,496 | F24: 14,713,546 | G24: 15,302,087 | H24: 16,067,191
B160: =SUM(B24:H24) -> 634,351,574

Sheet CF
A1: CF | B1: DESCRIPCIÓN | C1: TOTAL ANUAL
A3: 1 | B3: GOBIERNO | C3: =C4+C7+C12+C22+C24+C27+C31+C36 -> 107,028,496
A4: 11 | B4: LEGISLACIÓN | C4: =SUM(C5:C6) -> 0
A5: 111 | B5: Legislación
A6: 112 | B6: Fiscalización
A7: 12 | B7: JUSTICIA | C7: =SUM(C8:C11) -> 0
A8: 121 | B8: Impartición de justicia
A9: 122 | B9: Procuración de justicia
A10: 123 | B10: Reclusión y readaptación social
A11: 124 | B11: Derechos humanos
A12: 13 | B12: COORDINACIÓN DE LA POLÍTICA DE GOBIERNO | C12: =SUM(C13:C21) -> 0
A13: 131 | B13: Presidencia/Gubernatura
A14: 132 | B14: Política interior
A15: 133 | B15: Preservación y cuidado del patrimonio público
A16: 134 | B16: Función pública
A17: 135 | B17: Asuntos jurídicos
A18: 136 | B18: Organización de procesos electorales
A19: 137 | B19: Población
A20: 138 | B20: Territorio
A21: 139 | B21: Otros
A22: 14 | B22: RELACIONES EXTERIORES | C22: =SUM(C23:C23) -> 0
A23: 141 | B23: Relaciones exteriores
A24: 15 | B24: ASUNTOS FINANCIEROS Y HACENDARIOS | C24: =SUM(C25:C26) -> 107,028,496
A25: 151 | B25: Asuntos financieros
A26: 152 | B26: Asuntos hacendarios | C26: 107,028,496
A27: 16 | B27: SEGURIDAD NACIONAL | C27: =SUM(C28:C30) -> 0
A28: 161 | B28: Defensa
A29: 162 | B29: Marina
A30: 163 | B30: Inteligencia para la preservación de la seguridad nacional
A31: 17 | B31: ASUNTOS DE ORDEN PÚBLICO Y DE SEGURIDAD INTERIOR | C31: =SUM(C32:C35) -> 0
A32: 171 | B32: Policía
A33: 172 | B33: Protección civil
A34: 173 | B34: Otros asuntos de orden público y seguridad
A35: 174 | B35: Sistema nacional de seguridad pública
A36: 18 | B36: OTROS SERVICIOS GENERALES | C36: =SUM(C37:C41) -> 0
A37: 181 | B37: Servicios registrales, administrativos y patrimoniales
A38: 182 | B38: Servicios estadísticos
A39: 183 | B39: Servicios de comunicación y medios
A40: 184 | B40: Acceso a la información pública gubernamental
A41: 185 | B41: Otros
A42: 2 | B42: DESARROLLO SOCIAL | C42: =C43+C50+C58+C64+C69+C76+C86 -> 0
A43: 21 | B43: PROTECCIÓN AMBIENTAL | C43: =SUM(C44:C49) -> 0
A44: 211 | B44: Ordenación de desechos
A45: 212 | B45: Administración del agua
A46: 213 | B46: Ordenación de aguas residuales, drenaje y alcantarillado
A47: 214 | B47: Reducción de la contaminación
A48: 215 | B48: Protección de la diversidad biológica y del paisaje
A49: 216 | B49: Otros de protección ambiental
A50: 22 | B50: VIVIENDA Y SERVICIOS A LA COMUNIDAD | C50: =SUM(C51:C57) -> 0
A51: 221 | B51: Urbanización
A52: 222 | B52: Desarrollo comunitario
A53: 223 | B53: Abastecimiento de agua
A54: 224 | B54: Alumbrado público
A55: 225 | B55: Vivienda
A56: 226 | B56: Servicios comunales
A57: 227 | B57: Desarrollo regional
A58: 23 | B58: SALUD | C58: =SUM(C59:C63) -> 0
A59: 231 | B59: Prestación de servicios de salud a la comunidad
A60: 232 | B60: Prestación de servicios de salud a la persona
A61: 233 | B61: Generación de recursos para la salud
A62: 234 | B62: Rectoría del sistema de salud
A63: 235 | B63: Protección social en salud
A64: 24 | B64: RECREACIÓN, CULTURA Y OTRAS MANIFESTACIONES SOCIALES | C64: =SUM(C65:C68) -> 0
A65: 241 | B65: Deporte y recreación
A66: 242 | B66: Cultura
A67: 243 | B67: Radio, televisión y editoriales
A68: 244 | B68: Asuntos religiosos y otras manifestaciones sociales
A69: 25 | B69: EDUCACIÓN | C69: =SUM(C70:C75) -> 0
A70: 251 | B70: Educación básica
A71: 252 | B71: Educación media superior
A72: 253 | B72: Educación superior
A73: 254 | B73: Posgrado
A74: 255 | B74: Educación para adultos
A75: 256 | B75: Otros servicios educativos y actividades inherentes
A76: 26 | B76: PROTECCIÓN SOCIAL | C76: =SUM(C77:C85) -> 0
A77: 261 | B77: Enfermedades e incapacidad
A78: 262 | B78: Edad avanzada
A79: 263 | B79: Familia e hijos
A80: 264 | B80: Desempleo
A81: 265 | B81: Alimentación y nutrición
A82: 266 | B82: Apoyo social para la vivienda
A83: 267 | B83: Indígenas
A84: 268 | B84: Otros grupos vulnerables
A85: 269 | B85: Otros de seguridad social y asistencia social
A86: 27 | B86: OTROS ASUNTOS SOCIALES | C86: =SUM(C87:C87) -> 0
A87: 271 | B87: Otros asuntos sociales
A88: 3 | B88: DESARROLLO ECONÓMICO | C88: =C89+C92+C99+C106+C110+C117+C119+C122+C127 -> 0
A89: 31 | B89: ASUNTOS ECONÓMICOS, COMERCIALES Y LABORALES EN GENERAL | C89: =SUM(C90:C91) -> 0
A90: 311 | B90: Asuntos económicos y comerciales en general
A91: 312 | B91: Asuntos laborales generales
A92: 32 | B92: AGROPECUARÍA, SILVICULTURA, PESCA Y CAZA | C92: =SUM(C93:C98) -> 0
A93: 321 | B93: Agropecuaria
A94: 322 | B94: Silvicultura
A95: 323 | B95: Acuacultura, pesca y caza
A96: 324 | B96: Agroindustrial
A97: 325 | B97: Hidroagrícola
A98: 326 | B98: Apoyo financiero a la banca y seguro agropecuario
A99: 33 | B99: COMBUSTIBLE Y ENERGÍA | C99: =SUM(C100:C105) -> 0
A100: 331 | B100: Carbón y otros combustibles minerales sólidos
A101: 332 | B101: Petróleo y gas natural (hidrocarburos)
A102: 333 | B102: Combustibles Nucleares
A103: 334 | B103: Otros combustibles
A104: 335 | B104: Electricidad
A105: 336 | B105: Energía no Eléctrica
A106: 34 | B106: MINERÍA, MANUFACTURAS Y CONSTRUCCIÓN | C106: =SUM(C107:C109) -> 0
A107: 341 | B107: Extracción de recursos minerales excepto los combustibles minerales
A108: 342 | B108: Manufacturas
A109: 343 | B109: Construcción
A110: 35 | B110: TRANSPORTE | C110: =SUM(C111:C116) -> 0
A111: 351 | B111: Transporte por carretera
A112: 352 | B112: Transporte por agua y puertos
A113: 353 | B113: Transporte por ferrocarril
A114: 354 | B114: Transporte aéreo
A115: 355 | B115: Transporte por oleoductos y gasoductos y otros sistemas de transporte
A116: 356 | B116: Otros relacionados con transporte
A117: 36 | B117: COMUNICACIONES | C117: =SUM(C118:C118) -> 0
A118: 361 | B118: Comunicaciones
A119: 37 | B119: TURISMO | C119: =SUM(C120:C121) -> 0
A120: 371 | B120: Turismo
A121: 372 | B121: Hoteles y restaurantes
A122: 38 | B122: CIENCIA, TECNOLOGÍA E INNOVACIÓN | C122: =SUM(C123:C126) -> 0
A123: 381 | B123: Investigación científica
A124: 382 | B124: Desarrollo tecnológico
A125: 383 | B125: Servicios científicos y tecnológicos
A126: 384 | B126: Innovación
A127: 39 | B127: OTRAS INDUSTRIAS Y OTROS ASUNTOS ECONÓMICOS | C127: =SUM(C128:C130) -> 0
A128: 391 | B128: Comercio, distribución, almacenamiento y depósito
A129: 392 | B129: Otras industrias
A130: 393 | B130: Otros asuntos económicos
A131: 4 | B131: OTRAS NO CLASIFICADAS EN FUNCIONES ANTERIORES | C131: =C132+C135+C139+C144 -> 0
A132: 41 | B132: TRANSACCIONES DE LA DEUDA PÚBLICA/COSTO FINANCIERO DE LA DEUDA | C132: =SUM(C133:C134) -> 0
A133: 411 | B133: Deuda pública interna
A134: 412 | B134: Deuda pública externa
A135: 42 | B135: TRANSFERENCIAS, PARTICIPACIONES Y APORTACIONES ENTRE DIFERENTES NIVELES Y ORDENES DE GOBIERNO | C135: =SUM(C136:C138) -> 0
A136: 421 | B136: Transferencia entre diferentes niveles y ordenes de gobierno
A137: 422 | B137: Participaciones entre diferentes niveles y ordenes de gobierno
A138: 423 | B138: Aportaciones entre diferentes niveles y ordenes de gobierno
A139: 43 | B139: SANEAMIENTO DEL SISTEMA FINANCIERO | C139: =SUM(C140:C143) -> 0
A140: 431 | B140: Saneamiento del sistema financiero
A141: 432 | B141: Apoyos IPAB
A142: 433 | B142: Banca de desarrollo
A143: 434 | B143: Apoyo a los programas de reestructura en unidades de inversión (UDIS)
A144: 44 | B144: ADEUDOS DE EJERCICIOS FISCALES ANTERIORES | C144: =SUM(C145:C145) -> 0
A145: 441 | B145: adeudos de ejercicios fiscales anteriores
B146: TOTAL DE EGRESOS | C146: =C3+C42+C88+C131 -> 107,028,496

Sheet CA
A1: CA | B1: UA | C1: NOMBRE DE LA UNIDAD RESPONSABLE | D1: TOTAL ANUAL
A3: 3.0.0.0.0. | C3: SECTOR PÚBLICO MUNICIPAL
A4: 3.1.1.0.0. | C4: GOBIERNO GENERAL MUNICIPAL
A5: 3.1.1.1.0. | C5: Gobierno Municipal
A6: 3.1.1.1.0. | B6: 1 | C6: Presidencia | D6: 69,237,144.00
A7: 3.1.1.1.0. | B7: 2 | C7: Obras Públicas | D7: 37,399,182.00
A8: 3.1.1.1.0. | B8: 0003 | C8: Planeación y Participación Ciudadana | D8: 392,170.00
C76: SUMA | D76: =SUM(D6:D75) -> 107,028,496.00

Sheet EA
B1: Pensiones y jubilaciones | C1: Salud | D1: Riesgos de trabajo | E1: Invalidez y vida | F1: Obras prestaciones sociales
A2: Tipo de sistema
A3: Prestación laboral o fondo general para trabajadores del municipio | B3: N/A | C3: N/A | D3: N/A | E3: N/A | F3: N/A
A4: Beneficio definido, contribución definida o mixto | B4: N/A | C4: N/A | D4: N/A | E4: N/A | F4: N/A
A5: Población afiliada
A6: Activos | B6: N/A | C6: N/A | D6: N/A | E6: N/A | F6: N/A
A7: Edad máxima | B7: N/A | C7: N/A | D7: N/A | E7: N/A | F7: N/A
A8: Edad mínima | B8: N/A | C8: N/A | D8: N/A | E8: N/A | F8: N/A
A9: Edad promedio | B9: N/A | C9: N/A | D9: N/A | E9: N/A | F9: N/A
A10: Pensionados y jubilados | B10: N/A | C10: N/A | D10: N/A | E10: N/A | F10: N/A
A11: Edad máxima | B11: N/A | C11: N/A | D11: N/A | E11: N/A | F11: N/A
A12: Edad mínima | B12: N/A | C12: N/A | D12: N/A | E12: N/A | F12: N/A
A13: Edad promedio | B13: N/A | C13: N/A | D13: N/A | E13: N/A | F13: N/A
A14: Beneficiarios | B14: N/A | C14: N/A | D14: N/A | E14: N/A | F14: N/A
A15: Promedio de años de servicio (trabajadores activos) | B15: N/A | C15: N/A | D15: N/A | E15: N/A | F15: N/A
A16: Aportación individual al plan de pensión como % del salario | B16: N/A | C16: N/A | D16: N/A | E16: N/A | F16: N/A
A17: Aportación del ente público al plan de pensión como % del salario | B17: N/A | C17: N/A | D17: N/A | E17: N/A | F17: N/A
A18: Crecimiento esperado de los pensionados y jubilados (como %) | B18: N/A | C18: N/A | D18: N/A | E18: N/A | F18: N/A
A19: Crecimiento esperado de los activos (como %) | B19: N/A | C19: N/A | D19: N/A | E19: N/A | F19: N/A
A20: Edad de jubilación o pensión | B20: N/A | C20: N/A | D20: N/A | E20: N/A | F20: N/A
A21: Esperanza de vida | B21: N/A | C21: N/A | D21: N/A | E21: N/A | F21: N/A
A22: Ingresos del fondo
A23: Ingresos anuales al fondo de pensiones | B23: N/A | C23: N/A | D23: N/A | E23: N/A | F23: N/A
A24: Nómina anual
A25: Activos | B25: N/A | C25: N/A | D25: N/A | E25: N/A | F25: N/A
A26: Pensiones y jubilados | B26: N/A | C26: N/A | D26: N/A | E26: N/A | F26: N/A
A27: Beneficiarios de pensionados y jubilados | B27: N/A | C27: N/A | D27: N/A | E27: N/A | F27: N/A
A28: Monto mensual por pensión
A29: Máximo | B29: N/A | C29: N/A | D29: N/A | E29: N/A | F29: N/A
A30: Mínimo | B30: N/A | C30: N/A | D30: N/A | E30: N/A | F30: N/A
A31: Promedio | B31: N/A | C31: N/A | D31: N/A | E31: N/A | F31: N/A
A32: Monto de la reserva | B32: N/A | C32: N/A | D32: N/A | E32: N/A | F32: N/A
A33: Valor presente de las obligaciones
A34: Pensiones y jubilaciones en curso de pago | B34: N/A | C34: N/A | D34: N/A | E34: N/A | F34: N/A
A35: Generación actual | B35: N/A | C35: N/A | D35: N/A | E35: N/A | F35: N/A
A36: Generaciones futuras | B36: N/A | C36: N/A | D36: N/A | E36: N/A | F36: N/A
A37: Valor presente de las contribuciones asociadas a los sueldos futuros de cotización X%
A38: Generación actual | B38: N/A | C38: N/A | D38: N/A | E38: N/A | F38: N/A
A39: Generaciones futuras | B39: N/A | C39: N/A | D39: N/A | E39: N/A | F39: N/A
A40: Otros ingresos | B40: N/A | C40: N/A | D40: N/A | E40: N/A | F40: N/A
A41: Déficit/superávit actuarial
A42: Generación actual | B42: N/A | C42: N/A | D42: N/A | E42: N/A | F42: N/A
A43: Generaciones futuras | B43: N/A | C43: N/A | D43: N/A | E43: N/A | F43: N/A
A44: Periodo de suficiencia
A45: Año de descapitalización | B45: N/A | C45: N/A | D45: N/A | E45: N/A | F45: N/A
A46: Tasa de rendimiento | B46: N/A | C46: N/A | D46: N/A | E46: N/A | F46: N/A
A47: Estudio actuarial
A48: Año de elaboración del estudio actuarial | B48: N/A | C48: N/A | D48: N/A | E48: N/A | F48: N/A
A49: Empresa que elaboró el estudio actuarial | B49: N/A | C49: N/A | D49: N/A | E49: N/A | F49: N/A
B53: =COUNTA(B6:F21,B3:F4,B23:F23,B25:F27,B29:F32,B34:F36,B38:F40,B42:F43,B45:F46,B48:F49) -> 190

Sheet Plantilla
A1: NOMBRE DE LA PLAZA | C1: ADSCRIPCIÓN DE LA PLAZA | D1: PARTIDA GENERICA | E1: FF | F1: No. PLAZAS | G1: 111-113 DIETAS Y SUELDO BASE | I1: 131 | J1: 132 | K1: 132 | L1: 133 | M1: 134 | N1: 1500 | O1: SUMA TOTAL DE REMUNERACIONES
G2: MENSUAL | H2: ANUAL | I2: PRIMAS POR AÑOS DE SERVICIOS EFECTIVOS PRESTADOS | J2: PRIMA VACACIONAL Y DOMINICAL | K2: GRATIFICACIÓN DE FIN DE AÑO (AGUINALDO) | L2: HORAS EXTRAORDINARIAS | M2: COMPENSACIONES | N2: OTRAS PRESTACIONES
A3: Regidores | C3: Sala de regidores | D3: 111 | E3: 11 | F3: 9 | G3: 16,000 | H3: =IF(E3="","SE REQUIERE ASIGNAR LA FUENTE DE FINANCIAMIENTO",IF(F3="","ES NECESARIO ESTABLECER EL NÚMERO DE PLAZAS",IF(G3="","SE NECESITA ESTABLECER UN MONTO MENSUAL",F3*G3*12))) -> 1,728,000 | J3: 23,999 | K3: 239,000 | O3: =SUM(H3:N3) -> 1,990,999
A4: Sindíco | C4: Sindicatura | D4: 111 | E4: 11 | F4: 1 | G4: 12,600 | H4: =IF(E4="","SE REQUIERE ASIGNAR LA FUENTE DE FINANCIAMIENTO",IF(F4="","ES NECESARIO ESTABLECER EL NÚMERO DE PLAZAS",IF(G4="","SE NECESITA ESTABLECER UN MONTO MENSUAL",F4*G4*12))) -> 151,200 | J4: 2,100 | K4: 21,000 | O4: =SUM(H4:N4) -> 174,300
A5: Secretario general | C5: Secretaría general | D5: 113 | E5: 11 | F5: 1 | G5: 11,550 | H5: 138,600 | J5: 1,925 | K5: 19,250 | O5: 159,775
A6: Presidente | C6: Presidencia | D6: 113 | E6: 11 | F6: 1 | G6: 30,000 | H6: 360,000 | J6: 5,000 | K6: 50,000 | O6: 415,000
A7: ASISTENTE DE SINDICATURA | D7: 113 | E7: 11 | F7: 1 | G7: 8,400 | H7: 100,800 | J7: 1,400 | K7: 14,000 | O7: 116,200
A8: DIR. DE DESARROLLO SOCIAL | D8: 113 | E8: 11 | F8: 1 | G8: 10,500 | H8: 126,000 | J8: 1,750 | K8: 17,500 | O8: 145,250
A9: DELEGADO DE LAS LOMAS | D9: 113 | E9: 11 | F9: 1 | G9: 10,500 | H9: 126,000 | J9: 1,750 | K9: 17,500 | O9: 145,250
A10: ASEO PARQUES Y JARDINES | D10: 113 | E10: 11 | F10: 1 | G10: 2,415 | H10: 28,980 | J10: 403 | K10: 4,025 | O10: 33,408
A11: RECOLECTOR DE BASURA | D11: 113 | E11: 11 | F11: 1 | G11: 3,465 | H11: 41,580 | J11: 578 | K11: 5,775 | O11: 47,933
A12: CHOFER DE LA AMBULANCIA | D12: 113 | E12: 11 | F12: 1 | G12: 4,830 | H12: 57,960 | J12: 805 | K12: 8,050 | O12: 66,815
A13: RECOLECTOR DE BASURA | D13: 113 | E13: 11 | F13: 1 | G13: 4,064 | H13: 48,762 | J13: 677 | K13: 6,773 | O13: 56,212
A14: FONTANERO | D14: 113 | E14: 11 | F14: 1 | G14: 5,250 | H14: 63,000 | J14: 875 | K14: 8,750 | O14: 72,625
A15: OFICIAL DEL REGISTRO CIVIL | D15: 113 | E15: 11 | F15: 1 | G15: 6,300 | H15: 75,600 | J15: 1,050 | K15: 10,500 | O15: 87,150
A16: ASEO PARQUES Y JARDINES | D16: 113 | E16: 11 | F16: 1 | G16: 2,415 | H16: 28,980 | J16: 403 | K16: 4,025 | O16: 33,408
A17: ASEO BAÑOS JUNTO AL CAMPO DE FUTBOL | D17: 113 | E17: 11 | F17: 1 | G17: 1,575 | H17: 18,900 | J17: 263 | K17: 2,625 | O17: 21,788
A18: ENC. DE ASEO CANCHA DE USOS MÚLTIPES Y ÁREA VERDE CENTRO DE SALUD | D18: 113 | E18: 11 | F18: 1 | G18: 2,100 | H18: 25,200 | J18: 350 | K18: 3,500 | O18: 29,050
A19: DELEGADO DE TAZUMBOS | D19: 113 | E19: 11 | F19: 1 | G19: 10,500 | H19: 126,000 | J19: 1,750 | K19: 17,500 | O19: 145,250
A20: ASEO PUBLICO DEL JARDÍN PRICIPAL TAZUMBOS | D20: 113 | E20: 11 | F20: 1 | G20: 4,725 | H20: 56,700 | J20: 788 | K20: 7,875 | O20: 65,363
A21: FONTANERO | D21: 113 | E21: 11 | F21: 1 | G21: 6,300 | H21: 75,600 | J21: 1,050 | K21: 10,500 | O21: 87,150
A22: OFICIAL DE REGISTRO CIVIL TAZUMBOS | D22: 113 | E22: 11 | F22: 1 | G22: 6,300 | H22: 75,600 | J22: 1,050 | K22: 10,500 | O22: 87,150
A23: SECRETARIA DE LA DELEGACIÓN | D23: 113 | E23: 11 | F23: 1 | G23: 5,250 | H23: 63,000 | J23: 875 | K23: 8,750 | O23: 72,625
A24: ASEO DE AVENIDA PRINCIPAL | D24: 113 | E24: 11 | F24: 1 | G24: 2,211 | H24: 26,536 | J24: 369 | K24: 3,686 | O24: 30,590
A25: ASEO PANTEÓN | D25: 113 | E25: 11 | F25: 1 | G25: 2,009 | H25: 24,104 | J25: 335 | K25: 3,348 | O25: 27,786
A26: ENCARGADO DE BASURERO | D26: 113 | E26: 11 | F26: 1 | G26: 2,009 | H26: 24,104 | J26: 335 | K26: 3,348 | O26: 27,786
A27: ENCARGADO DE REV. DE CLORADO DE AGUA | D27: 113 | E27: 11 | F27: 1 | G27: 4,200 | H27: 50,400 | J27: 700 | K27: 7,000 | O27: 58,100
A28: CHOFER CAMIÓN BASURA | D28: 113 | E28: 11 | F28: 1 | G28: 5,250 | H28: 63,000 | J28: 875 | K28: 8,750 | O28: 72,625
A29: ASEO PÚBLICO DE LA CANCHA MUNICIPAL | D29: 113 | E29: 11 | F29: 1 | G29: 2,375 | H29: 28,501 | J29: 396 | K29: 3,959 | O29: 32,856
A30: RECOLECTOR DE BASURA | D30: 113 | E30: 11 | F30: 1 | G30: 7,140 | H30: 85,680 | J30: 1,190 | K30: 11,900 | O30: 98,770
A31: MENSAJERO DE DELEGACIÓN TAZUMBOS | D31: 113 | E31: 11 | F31: 1 | G31: 2,211 | H31: 26,536 | J31: 369 | K31: 3,686 | O31: 30,590
A32: INTENDENTE DE LA CLÍNICA TAZUMBOS | D32: 113 | E32: 11 | F32: 1 | G32: 2,211 | H32: 26,536 | J32: 369 | K32: 3,686 | O32: 30,590
A33: BARRENDERA PLAZA DEL JARDÍN PRINCIPAL | D33: 113 | E33: 11 | F33: 1 | G33: 2,835 | H33: 34,020 | J33: 473 | K33: 4,725 | O33: 39,218
A34: FONTANERO DE LA PAROTA LIMÓN Y ANEXOS | D34: 113 | E34: 11 | F34: 1 | G34: 1,575 | H34: 18,900 | J34: 263 | K34: 2,625 | O34: 21,788
A35: ENC. HACIENDA MUNICIPAL | D35: 113 | E35: 11 | F35: 1 | G35: 17,325 | H35: 207,900 | J35: 2,888 | K35: 28,875 | O35: 239,663
A36: ENCARGADA DE EGRESOS | D36: 113 | E36: 11 | F36: 1 | G36: 10,500 | H36: 126,000 | J36: 1,750 | K36: 17,500 | O36: 145,250
A37: ENCARGADA DE INGRESOS | D37: 113 | E37: 11 | F37: 1 | G37: 8,400 | H37: 100,800 | J37: 1,400 | K37: 14,000 | O37: 116,200
A38: AUXILIAR TÉCNICO | D38: 113 | E38: 11 | F38: 1 | G38: 10,080 | H38: 120,960 | J38: 1,680 | K38: 16,800 | O38: 139,440
A39: ASESOR CONTABLE | D39: 113 | E39: 11 | F39: 1 | G39: 15,750 | H39: 189,000 | J39: 2,625 | K39: 26,250 | O39: 217,875
A40: AUXILIAR TÉCNICO | D40: 113 | E40: 11 | F40: 1 | G40: 10,080 | H40: 120,960 | J40: 1,680 | K40: 16,800 | O40: 139,440
A41: SECRETARIA DE HACIENDA | D41: 113 | E41: 11 | F41: 1 | G41: 8,400 | H41: 100,800 | J41: 1,400 | K41: 14,000 | O41: 116,200
A42: AUXILIAR DE INGRESOS Y EGRESOS | D42: 113 | E42: 11 | F42: 1 | G42: 6,825 | H42: 81,900 | J42: 1,138 | K42: 11,375 | O42: 94,413
A43: SECRETARIA DEL INSTITUTO DE LA JUENTUD | D43: 113 | E43: 11 | F43: 1 | G43: 5,250 | H43: 63,000 | J43: 875 | K43: 8,750 | O43: 72,625
A44: DIRECTOR DE OBRAS PUBLICAS | D44: 113 | E44: 11 | F44: 1 | G44: 13,650 | H44: 163,800 | J44: 2,275 | K44: 22,750 | O44: 188,825
A45: SECRETARIA DE OBRAS PÚBLICAS | D45: 113 | E45: 11 | F45: 1 | G45: 8,400 | H45: 100,800 | J45: 1,400 | K45: 14,000 | O45: 116,200
A46: AUXILIAR DE DIRECTOR DE OBRAS PÚBLICAS | D46: 113 | E46: 11 | F46: 1 | G46: 7,350 | H46: 88,200 | J46: 1,225 | K46: 12,250 | O46: 101,675
A47: ALBAÑIL DEL AYUNTAMIENTO | D47: 113 | E47: 11 | F47: 1 | G47: 6,300 | H47: 75,600 | J47: 1,050 | K47: 10,500 | O47: 87,150
A48: DIRECTORA DE CATASTRO MUNICIPAL | D48: 113 | E48: 11 | F48: 1 | G48: 12,600 | H48: 151,200 | J48: 2,100 | K48: 21,000 | O48: 174,300
A49: AUXILIAR DE CATASTRO MUNICIPAL | D49: 113 | E49: 11 | F49: 1 | G49: 11,550 | H49: 138,600 | J49: 1,925 | K49: 19,250 | O49: 159,775
A50: SEGUNDO COMANDANTE | D50: 113 | E50: 11 | F50: 1 | G50: 12,600 | H50: 151,200 | J50: 2,100 | K50: 21,000 | O50: 174,300
A51: POLICIA | D51: 113 | E51: 11 | F51: 1 | G51: 10,500 | H51: 126,000 | J51: 1,750 | K51: 17,500 | O51: 145,250
A52: POLICIA | D52: 113 | E52: 11 | F52: 1 | G52: 10,500 | H52: 126,000 | J52: 1,750 | K52: 17,500 | O52: 145,250
A53: POLICIA | D53: 113 | E53: 11 | F53: 1 | G53: 10,500 | H53: 126,000 | J53: 1,750 | K53: 17,500 | O53: 145,250
A54: POLICIA | D54: 113 | E54: 11 | F54: 1 | G54: 10,500 | H54: 126,000 | J54: 1,750 | K54: 17,500 | O54: 145,250
A55: PRIMER COMANDANTE | D55: 113 | E55: 11 | F55: 1 | G55: 12,600 | H55: 151,200 | J55: 2,100 | K55: 21,000 | O55: 174,300
A56: POLICIA | D56: 113 | E56: 11 | F56: 1 | G56: 10,500 | H56: 126,000 | J56: 1,750 | K56: 17,500 | O56: 145,250
A57: POLICIA | D57: 113 | E57: 11 | F57: 1 | G57: 10,500 | H57: 126,000 | J57: 1,750 | K57: 17,500 | O57: 145,250
A58: POLICIA | D58: 113 | E58: 11 | F58: 1 | G58: 10,500 | H58: 126,000 | J58: 1,750 | K58: 17,500 | O58: 145,250
A59: POLICIA | D59: 113 | E59: 11 | F59: 1 | G59: 10,500 | H59: 126,000 | J59: 1,750 | K59: 17,500 | O59: 145,250
A60: POLICIA | D60: 113 | E60: 11 | F60: 1 | G60: 10,500 | H60: 126,000 | J60: 1,750 | K60: 17,500 | O60: 145,250
A61: POLICIA | D61: 113 | E61: 11 | F61: 1 | G61: 10,500 | H61: 126,000 | J61: 1,750 | K61: 17,500 | O61: 145,250
A62: POLICIA | D62: 113 | E62: 11 | F62: 1 | G62: 10,500 | H62: 126,000 | J62: 1,750 | K62: 17,500 | O62: 145,250
A63: SECRETARIA DE POLICIA DE S.P. | D63: 113 | E63: 11 | F63: 1 | G63: 5,250 | H63: 63,000 | J63: 875 | K63: 8,750 | O63: 72,625
A64: OFICIAL DEL REGISTRO CIVIL | D64: 113 | E64: 11 | F64: 1 | G64: 8,400 | H64: 100,800 | J64: 1,400 | K64: 14,000 | O64: 116,200
A65: SECRETARIA DE REGISTRO CIVIL | D65: 113 | E65: 11 | F65: 1 | G65: 6,300 | H65: 75,600 | J65: 1,050 | K65: 10,500 | O65: 87,150
A66: ENCARGADA DE PRIMEROS AUXILIOS | D66: 113 | E66: 11 | F66: 1 | G66: 3,150 | H66: 37,800 | J66: 525 | K66: 5,250 | O66: 43,575
A67: OFICIAL DE SERVICIOS PÚBLICOS | D67: 113 | E67: 11 | F67: 1 | G67: 7,350 | H67: 88,200 | J67: 1,225 | K67: 12,250 | O67: 101,675
A68: AUX. DEL ENC. AGUA POTABLE Y ALCANTARILLADO | D68: 113 | E68: 11 | F68: 1 | G68: 8,400 | H68: =IF(E68="","SE REQUIERE ASIGNAR LA FUENTE DE FINANCIAMIENTO",IF(F68="","ES NECESARIO ESTABLECER EL NÚMERO DE PLAZAS",IF(G68="","SE NECESITA ESTABLECER UN MONTO MENSUAL",F68*G68*12))) -> 100,800 | J68: 1,400 | K68: 14,000 | O68: =SUM(H68:N68) -> 116,200
A69: ENCARGADO DE VALVULAS | D69: 113 | E69: 11 | F69: 1 | G69: 7,350 | H69: 88,200 | J69: 1,225 | K69: 12,250 | O69: 101,675
A70: ENC. DE AGUA POTABLE DEL RINCÓN | D70: 113 | E70: 11 | F70: 1 | G70: 3,150 | H70: 37,800 | J70: 525 | K70: 5,250 | O70: 43,575
A71: ENC. AGUA POTABLE SAN FRANCISCO | D71: 113 | E71: 11 | F71: 1 | G71: 4,200 | H71: 50,400 | J71: 700 | K71: 7,000 | O71: 58,100
A72: ASEO DE UNIDAD DEP. SAN FCO | D72: 113 | E72: 11 | F72: 1 | G72: 3,150 | H72: 37,800 | J72: 525 | K72: 5,250 | O72: 43,575
A73: ENCARGADO DE PARQUES Y JARDINES | D73: 113 | E73: 11 | F73: 1 | G73: 4,200 | H73: 50,400 | J73: 700 | K73: 7,000 | O73: 58,100
A74: ENC. AGUA POTABLE RANCHO VIEJO | D74: 113 | E74: 11 | F74: 1 | G74: 3,675 | H74: 44,100 | J74: 613 | K74: 6,125 | O74: 50,838
A75: ENC. AGUA POTABLE LA PRESA | D75: 113 | E75: 11 | F75: 1 | G75: 3,150 | H75: 37,800 | J75: 525 | K75: 5,250 | O75: 43,575
A76: ENC. AGUA POTABLE HUICHITILA | D76: 113 | E76: 11 | F76: 1 | G76: 3,150 | H76: 37,800 | J76: 525 | K76: 5,250 | O76: 43,575
A77: AGENTE MUNICIPAL DE RANCHO NUEVO | D77: 113 | E77: 11 | F77: 1 | G77: 5,775 | H77: 69,300 | J77: 963 | K77: 9,625 | O77: 79,888
A78: ENCARGADO DE ÁREAS VERDES | D78: 113 | E78: 11 | F78: 1 | G78: 4,200 | H78: 50,400 | J78: 700 | K78: 7,000 | O78: 58,100
A79: FONTANERO | D79: 113 | E79: 11 | F79: 1 | G79: 4,200 | H79: 50,400 | J79: 700 | K79: 7,000 | O79: 58,100
A80: ASEO PÚBLICO | D80: 113 | E80: 11 | F80: 1 | G80: 5,250 | H80: 63,000 | J80: 875 | K80: 8,750 | O80: 72,625
A81: SECRETARIA DE LA AGENCIA DE RANCHO NUEVO | D81: 113 | E81: 11 | F81: 1 | G81: 6,300 | H81: 75,600 | J81: 1,050 | K81: 10,500 | O81: 87,150
A82: INTENDENTE JARDÍN RANCHO NUEVO | D82: 113 | E82: 11 | F82: 1 | G82: 2,310 | H82: 27,720 | J82: 385 | K82: 3,850 | O82: 31,955
A83: ENCARGADO DE UNIDAD DEPORTIVA EN RANCHO NUEVO | D83: 113 | E83: 11 | F83: 1 | G83: 2,100 | H83: 25,200 | J83: 350 | K83: 3,500 | O83: 29,050
A84: REPRESENTANTE DEL SOYATAL | D84: 113 | E84: 11 | F84: 1 | G84: 2,100 | H84: 25,200 | J84: 350 | K84: 3,500 | O84: 29,050
A85: REPRESENTANTE DE LA MORA | D85: 113 | E85: 11 | F85: 1 | G85: 2,100 | H85: 25,200 | J85: 350 | K85: 3,500 | O85: 29,050
A86: REPRESENTANTE DE LA GUINARERA | D86: 113 | E86: 11 | F86: 1 | G86: 2,100 | H86: 25,200 | J86: 350 | K86: 3,500 | O86: 29,050
A87: REPRESENTANTE DE GALLARDO | D87: 113 | E87: 11 | F87: 1 | G87: 2,100 | H87: 25,200 | J87: 350 | K87: 3,500 | O87: 29,050
A88: ENCARGADO DE AREAS VERDES | D88: 113 | E88: 11 | F88: 1 | G88: 8,400 | H88: 100,800 | J88: 1,400 | K88: 14,000 | O88: 116,200
A89: ENCARGADO DE LA BODEGA | D89: 113 | E89: 11 | F89: 1 | G89: 7,350 | H89: 88,200 | J89: 1,225 | K89: 12,250 | O89: 101,675
A90: ENCARGADO CANCHA EMPASTADA | D90: 113 | E90: 11 | F90: 1 | G90: 4,200 | H90: 50,400 | J90: 700 | K90: 7,000 | O90: 58,100
A91: JEFE ADMINISTRADOR CEMENTERIO | D91: 113 | E91: 11 | F91: 1 | G91: 5,250 | H91: 63,000 | J91: 875 | K91: 8,750 | O91: 72,625
A92: DIRECTOR DE RASTRO MUNICIPAL | D92: 113 | E92: 11 | F92: 1 | G92: 10,500 | H92: 126,000 | J92: 1,750 | K92: 17,500 | O92: 145,250
A93: ADMINISTRADOR DEL RASTRO MUNICIPAL | D93: 113 | E93: 11 | F93: 1 | G93: 8,400 | H93: 100,800 | J93: 1,400 | K93: 14,000 | O93: 116,200
A94: MATADOR DEL RASTRO MUNICIPAL | D94: 113 | E94: 11 | F94: 1 | G94: 8,400 | H94: 100,800 | J94: 1,400 | K94: 14,000 | O94: 116,200
A95: DIRECTOR DE COMUNICACIÓN SOCIAL | D95: 113 | E95: 11 | F95: 1 | G95: 8,400 | H95: 100,800 | J95: 1,400 | K95: 14,000 | O95: 116,200
A96: AUX. CHOFER CENTRO DE SALUD JILOTLAN | D96: 113 | E96: 11 | F96: 1 | G96: 6,300 | H96: 75,600 | J96: 1,050 | K96: 10,500 | O96: 87,150
A97: CHOFER CENTRO DE SALUD JILOTLAN | D97: 113 | E97: 11 | F97: 1 | G97: 6,300 | H97: 75,600 | J97: 1,050 | K97: 10,500 | O97: 87,150
A98: AUX.DE CHOFER DE AMBULANCIA | D98: 113 | E98: 11 | F98: 1 | G98: 8,925 | H98: 107,100 | J98: 1,488 | K98: 14,875 | O98: 123,463
A99: CHOFER AMBULANCIA | D99: 113 | E99: 11 | F99: 1 | G99: 6,825 | H99: 81,900 | J99: 1,138 | K99: 11,375 | O99: 94,413
A100: ENCARGADO DE PROTECCIÓN DE DATOS PERSONALES Y ARCHIVO GENERAL | D100: 113 | E100: 11 | F100: 1 | G100: 6,300 | H100: 75,600 | J100: 1,050 | K100: 10,500 | O100: 87,150
A101: DIRECTOR DE PLANEACIÓN Y PARTICIPACIÓN CIUDADANA | D101: 113 | E101: 11 | F101: 1 | G101: 8,400 | H101: 100,800 | J101: 1,400 | K101: 14,000 | O101: 116,200
A102: CHOFER DE PIPA | D102: 113 | E102: 11 | F102: 1 | G102: 6,300 | H102: 75,600 | J102: 1,050 | K102: 10,500 | O102: 87,150
A103: RECOLECTOR | D103: 113 | E103: 11 | F103: 1 | G103: 7,350 | H103: 88,200 | J103: 1,225 | K103: 12,250 | O103: 101,675
A104: RECOLECTOR | D104: 113 | E104: 11 | F104: 1 | G104: 7,350 | H104: 88,200 | J104: 1,225 | K104: 12,250 | O104: 101,675
A105: RECOLECTOR | D105: 113 | E105: 11 | F105: 1 | G105: 7,350 | H105: 88,200 | J105: 1,225 | K105: 12,250 | O105: 101,675
A106: RECOLECTOR DE SAN FCO. | D106: 113 | E106: 11 | F106: 1 | G106: 2,211 | H106: 26,536 | J106: 369 | K106: 3,686 | O106: 30,590
A107: ASEO UNIDAD DEPORTIVA FUT-RAP | D107: 113 | E107: 11 | F107: 1 | G107: 2,625 | H107: 31,500 | J107: 438 | K107: 4,375 | O107: 36,313
A108: ASEO UNIDAD DEPORTIVA | D108: 113 | E108: 11 | F108: 1 | G108: 2,625 | H108: 31,500 | J108: 438 | K108: 4,375 | O108: 36,313
A109: ASEO PARQUECITO | D109: 113 | E109: 11 | F109: 1 | G109: 2,625 | H109: 31,500 | J109: 438 | K109: 4,375 | O109: 36,313
A110: ASEO CANCHA LAS LOMAS ALTAS | D110: 113 | E110: 11 | F110: 1 | G110: 1,575 | H110: 18,900 | J110: 263 | K110: 2,625 | O110: 21,788
A111: ASEO DE CALLE SALIDA TEPALCATEPEC | D111: 113 | E111: 11 | F111: 1 | G111: 2,100 | H111: 25,200 | J111: 350 | K111: 3,500 | O111: 29,050
A112: ASEO CANCHA ORILLA | D112: 113 | E112: 11 | F112: 1 | G112: 1,575 | H112: 18,900 | J112: 263 | K112: 2,625 | O112: 21,788
A113: BARRENDERA ASEO PÚBLICO | D113: 113 | E113: 11 | F113: 1 | G113: 2,314 | H113: 27,770 | J113: 386 | K113: 3,857 | O113: 32,013
A114: ASEO JARDÍN | D114: 113 | E114: 11 | F114: 1 | G114: 1,575 | H114: 18,900 | J114: 263 | K114: 2,625 | O114: 21,788
A115: ASEO JARDÍN | D115: 113 | E115: 11 | F115: 1 | G115: 1,890 | H115: 22,680 | J115: 315 | K115: 3,150 | O115: 26,145
A116: BARRENDERA ASEO PÚBLICO | D116: 113 | E116: 11 | F116: 1 | G116: 2,100 | H116: 25,200 | J116: 350 | K116: 3,500 | O116: 29,050
A117: ASEO PÚBLICO | D117: 113 | E117: 11 | F117: 1 | G117: 1,890 | H117: 22,680 | J117: 315 | K117: 3,150 | O117: 26,145
A118: DIRECTORA DE TURISMO | D118: 113 | E118: 11 | F118: 1 | G118: 5,250 | H118: 63,000 | J118: 875 | K118: 8,750 | O118: 72,625
A119: ASEO PÚBLICO | D119: 113 | E119: 11 | F119: 1 | G119: 1,575 | H119: 18,900 | J119: 263 | K119: 2,625 | O119: 21,788
A120: DIRECTOR DE DEPTO. AGROPECUARIO Y ECOLOGÍA | D120: 113 | E120: 11 | F120: 1 | G120: 11,550 | H120: 138,600 | J120: 1,925 | K120: 19,250 | O120: 159,775
A121: SECRETARIA DE AGROPECUARIO | D121: 113 | E121: 11 | F121: 1 | G121: 5,250 | H121: 63,000 | J121: 875 | K121: 8,750 | O121: 72,625
A122: AUXILIAR DE DEPTO. AGROPECUARIO | D122: 113 | E122: 11 | F122: 1 | G122: 5,250 | H122: 63,000 | J122: 875 | K122: 8,750 | O122: 72,625
A123: AUXILIAR DE DIR. DE DEPORTES | D123: 113 | E123: 11 | F123: 1 | G123: 8,400 | H123: 100,800 | J123: 1,400 | K123: 14,000 | O123: 116,200
A124: JEFE DE RECLUTAMIENTO | D124: 113 | E124: 11 | F124: 1 | G124: 10,500 | H124: 126,000 | J124: 1,750 | K124: 17,500 | O124: 145,250
A125: OFICIAL MAYOR | D125: 113 | E125: 11 | F125: 1 | G125: 13,650 | H125: 163,800 | J125: 2,275 | K125: 22,750 | O125: 188,825
A126: ENC. DE MAQUINARIA PESADA | D126: 113 | E126: 11 | F126: 1 | G126: 11,550 | H126: 138,600 | J126: 1,925 | K126: 19,250 | O126: 159,775
A127: DIRECTOR DE SERVICIOS PUBLICOS MUNICIPALES | D127: 113 | E127: 11 | F127: 1 | G127: 11,550 | H127: 138,600 | J127: 1,925 | K127: 19,250 | O127: 159,775
A128: OFICIAL DE SERVICIOS PÚBLICOS MUNICIPALES | D128: 113 | E128: 11 | F128: 1 | G128: 5,250 | H128: 63,000 | J128: 875 | K128: 8,750 | O128: 72,625
A129: OFICIAL DE SERVICIOS PÚBLICOS MUNICIPALES | D129: 113 | E129: 11 | F129: 1 | G129: 5,250 | H129: 63,000 | J129: 875 | K129: 8,750 | O129: 72,625
A130: ASEO EN LA CANCHA DE HUICHITILA | D130: 113 | E130: 11 | F130: 1 | G130: 2,100 | H130: 25,200 | J130: 350 | K130: 3,500 | O130: 29,050
A131: ENC. BAÑOS PÚBLICOS CABECERA | D131: 113 | E131: 11 | F131: 1 | G131: 1,575 | H131: 18,900 | J131: 263 | K131: 2,625 | O131: 21,788
A132: ASEO EN CALLE PASANDO PUENTE HIDALGO | D132: 113 | E132: 11 | F132: 1 | G132: 1,575 | H132: =IF(E132="","SE REQUIERE ASIGNAR LA FUENTE DE FINANCIAMIENTO",IF(F132="","ES NECESARIO ESTABLECER EL NÚMERO DE PLAZAS",IF(G132="","SE NECESITA ESTABLECER UN MONTO MENSUAL",F132*G132*12))) -> 18,900 | J132: 263 | K132: 2,625 | O132: =SUM(H132:N132) -> 21,788
A133: CONTRALORA MUNICIPAL | D133: 113 | E133: 11 | F133: 1 | G133: 12,600 | H133: 151,200 | J133: 2,100 | K133: 21,000 | O133: 174,300
A134: SECRETARIA DE CONTRALORÍA MUNICIPAL | D134: 113 | E134: 11 | F134: 1 | G134: 6,300 | H134: 75,600 | J134: 1,050 | K134: 10,500 | O134: 87,150
A135: ENCARGADO DEL PARQUE VEHICULAR | D135: 113 | E135: 11 | F135: 1 | G135: 11,550 | H135: 138,600 | J135: 1,925 | K135: 19,250 | O135: 159,775
A136: AUXILIAR DE PROTECCIÓN CIVIL | D136: 113 | E136: 11 | F136: 1 | G136: 5,250 | H136: 63,000 | J136: 875 | K136: 8,750 | O136: 72,625
A137: AUXILIAR DEL PARQUE VEHICULAR | D137: 113 | E137: 11 | F137: 1 | G137: 5,250 | H137: 63,000 | J137: 875 | K137: 8,750 | O137: 72,625
A138: CHOFER 1 DEL AYUNTAMIENTO | D138: 113 | E138: 11 | F138: 1 | G138: 11,550 | H138: 138,600 | J138: 1,925 | K138: 19,250 | O138: 159,775
A139: CHOFER 2 DEL AYUNTAMIENTO | D139: 113 | E139: 11 | F139: 1 | G139: 10,500 | H139: 126,000 | J139: 1,750 | K139: 17,500 | O139: 145,250
A140: CHOFER 3 DEL AYUNTAMIENTO | D140: 113 | E140: 11 | F140: 1 | G140: 8,400 | H140: 100,800 | J140: 1,400 | K140: 14,000 | O140: 116,200
A141: INTENDENTE MUNICIPAL CALLES | D141: 113 | E141: 11 | F141: 1 | G141: 3,150 | H141: 37,800 | J141: 525 | K141: 5,250 | O141: 43,575
A142: SECRETARIA DE TRANSPARENCIA | D142: 113 | E142: 11 | F142: 1 | G142: 5,250 | H142: 63,000 | J142: 875 | K142: 8,750 | O142: 72,625
A143: ENC. DE AGENDA DESDE LO LOCAL | D143: 113 | E143: 11 | F143: 1 | G143: 5,250 | H143: 63,000 | J143: 875 | K143: 8,750 | O143: 72,625
A144: SECRETARIA DE SECRETARIO GENERAL | D144: 113 | E144: 11 | F144: 1 | G144: 5,250 | H144: 63,000 | J144: 875 | K144: 8,750 | O144: 72,625
A145: OFICIAL DE SERVICIOS PÚBLICOS | D145: 113 | E145: 11 | F145: 1 | G145: 6,300 | H145: 75,600 | J145: 1,050 | K145: 10,500 | O145: 87,150
A146: OFICIAL DE SERVICIOS PÚBLICOS | D146: 113 | E146: 11 | F146: 1 | G146: 5,250 | H146: 63,000 | J146: 875 | K146: 8,750 | O146: 72,625
A147: CHOFER DE ESTUDIANTES | D147: 113 | E147: 11 | F147: 1 | G147: 7,350 | H147: 88,200 | J147: 1,225 | K147: 12,250 | O147: 101,675
A148: ASEO DE LA OFICINA DEL DEPTO DE EDUCACIÓN | D148: 113 | E148: 11 | F148: 1 | G148: 1,365 | H148: 16,380 | J148: 228 | K148: 2,275 | O148: 18,883
A149: ASEO SALÓN DE USOS MÚLTIPLES CABECERA | D149: 113 | E149: 11 | F149: 1 | G149: 3,150 | H149: 37,800 | J149: 525 | K149: 5,250 | O149: 43,575
A150: AUXILIAR DE SERVICIOS PÚBLICOS | D150: 113 | E150: 11 | F150: 1 | G150: 5,250 | H150: 63,000 | J150: 875 | K150: 8,750 | O150: 72,625
A151: ENCARGADA DE ASEO PÚBLICO | D151: 113 | E151: 11 | F151: 1 | G151: 1,365 | H151: 16,380 | J151: 228 | K151: 2,275 | O151: 18,883
A152: ASEO DE BAÑOS EN SALÓN USOS MÚLTIPLES | D152: 113 | E152: 11 | F152: 1 | G152: 1,365 | H152: 16,380 | J152: 228 | K152: 2,275 | O152: 18,883
A153: SECRETARIA DE EDUCACIÓN | D153: 113 | E153: 11 | F153: 1 | G153: 6,300 | H153: 75,600 | J153: 1,050 | K153: 10,500 | O153: 87,150
A154: DIRECTOR DE CULTURA | D154: 113 | E154: 11 | F154: 1 | G154: 10,500 | H154: 126,000 | J154: 1,750 | K154: 17,500 | O154: 145,250
A155: TRABAJADOR SOCIAL | D155: 113 | E155: 11 | F155: 1 | G155: 10,500 | H155: 126,000 | J155: 1,750 | K155: 17,500 | O155: 145,250
A156: DIRECTOR DE ALUMBRADO PUBLICO | D156: 113 | E156: 11 | F156: 1 | G156: 11,550 | H156: 138,600 | J156: 1,925 | K156: 19,250 | O156: 159,775
A157: SECRETARIA PARTICULAR DE PRESIDENTE | D157: 113 | E157: 11 | F157: 1 | G157: 7,350 | H157: 88,200 | J157: 1,225 | K157: 12,250 | O157: 101,675
A158: AUXILIAR DE PROTECIÓN CIVIL | D158: 113 | E158: 11 | F158: 1 | G158: 7,350 | H158: 88,200 | J158: 1,225 | K158: 12,250 | O158: 101,675
A159: ASESOR MUNICIPAL | D159: 113 | E159: 11 | F159: 1 | G159: 15,750 | H159: 189,000 | J159: 2,625 | K159: 26,250 | O159: 217,875
A160: ASESOR JURÍDICO | D160: 113 | E160: 11 | F160: 1 | G160: 15,750 | H160: 189,000 | J160: 2,625 | K160: 26,250 | O160: 217,875
A161: DIRECTOR DE ECOLOGIA | D161: 113 | E161: 11 | F161: 1 | G161: 15,750 | H161: 189,000 | J161: 2,625 | K161: 25,250 | O161: 216,875
D162: 113 | H162: SE REQUIERE ASIGNAR LA FUENTE DE FINANCIAMIENTO | O162: 0
D163: 113 | H163: SE REQUIERE ASIGNAR LA FUENTE DE FINANCIAMIENTO | O163: 0
D164: 113 | H164: SE REQUIERE ASIGNAR LA FUENTE DE FINANCIAMIENTO | O164: 0
D165: 113 | H165: SE REQUIERE ASIGNAR LA FUENTE DE FINANCIAMIENTO | O165: 0
D166: 113 | H166: SE REQUIERE ASIGNAR LA FUENTE DE FINANCIAMIENTO | O166: 0
D167: 113 | H167: SE REQUIERE ASIGNAR LA FUENTE DE FINANCIAMIENTO | O167: 0
D168: 113 | H168: SE REQUIERE ASIGNAR LA FUENTE DE FINANCIAMIENTO | O168: 0
D169: 113 | H169: SE REQUIERE ASIGNAR LA FUENTE DE FINANCIAMIENTO | O169: 0
D170: 113 | H170: SE REQUIERE ASIGNAR LA FUENTE DE FINANCIAMIENTO | O170: 0
D171: 113 | H171: SE REQUIERE ASIGNAR LA FUENTE DE FINANCIAMIENTO | O171: 0
D172: 113 | H172: SE REQUIERE ASIGNAR LA FUENTE DE FINANCIAMIENTO | O172: 0
D173: 113 | H173: SE REQUIERE ASIGNAR LA FUENTE DE FINANCIAMIENTO | O173: 0
D174: 113 | H174: SE REQUIERE ASIGNAR LA FUENTE DE FINANCIAMIENTO | O174: 0
D175: 113 | H175: SE REQUIERE ASIGNAR LA FUENTE DE FINANCIAMIENTO | O175: 0
D176: 113 | H176: SE REQUIERE ASIGNAR LA FUENTE DE FINANCIAMIENTO | O176: 0
D177: 113 | H177: SE REQUIERE ASIGNAR LA FUENTE DE FINANCIAMIENTO | O177: 0
D178: 113 | H178: SE REQUIERE ASIGNAR LA FUENTE DE FINANCIAMIENTO | O178: 0
D179: 113 | H179: SE REQUIERE ASIGNAR LA FUENTE DE FINANCIAMIENTO | O179: 0
D180: 113 | H180: SE REQUIERE ASIGNAR LA FUENTE DE FINANCIAMIENTO | O180: 0
D181: 113 | H181: SE REQUIERE ASIGNAR LA FUENTE DE FINANCIAMIENTO | O181: 0
D182: 113 | H182: SE REQUIERE ASIGNAR LA FUENTE DE FINANCIAMIENTO | O182: 0
D183: 113 | H183: SE REQUIERE ASIGNAR LA FUENTE DE FINANCIAMIENTO | O183: 0
D184: 113 | H184: SE REQUIERE ASIGNAR LA FUENTE DE FINANCIAMIENTO | O184: 0
D185: 113 | H185: SE REQUIERE ASIGNAR LA FUENTE DE FINANCIAMIENTO | O185: 0
D186: 113 | H186: SE REQUIERE ASIGNAR LA FUENTE DE FINANCIAMIENTO | O186: 0
D187: 113 | H187: SE REQUIERE ASIGNAR LA FUENTE DE FINANCIAMIENTO | O187: 0
D188: 113 | H188: SE REQUIERE ASIGNAR LA FUENTE DE FINANCIAMIENTO | O188: 0
D189: 113 | H189: SE REQUIERE ASIGNAR LA FUENTE DE FINANCIAMIENTO | O189: 0
D190: 113 | H190: SE REQUIERE ASIGNAR LA FUENTE DE FINANCIAMIENTO | O190: 0
D191: 113 | H191: SE REQUIERE ASIGNAR LA FUENTE DE FINANCIAMIENTO | O191: 0
D192: 113 | H192: SE REQUIERE ASIGNAR LA FUENTE DE FINANCIAMIENTO | O192: 0
D193: 113 | H193: SE REQUIERE ASIGNAR LA FUENTE DE FINANCIAMIENTO | O193: 0
D194: 113 | H194: SE REQUIERE ASIGNAR LA FUENTE DE FINANCIAMIENTO | O194: 0
D195: 113 | H195: SE REQUIERE ASIGNAR LA FUENTE DE FINANCIAMIENTO | O195: 0
D196: 113 | H196: =IF(E196="","SE REQUIERE ASIGNAR LA FUENTE DE FINANCIAMIENTO",IF(F196="","ES NECESARIO ESTABLECER EL NÚMERO DE PLAZAS",IF(G196="","SE NECESITA ESTABLECER UN MONTO MENSUAL",F196*G196*12))) -> SE REQUIERE ASIGNAR LA FUENTE DE FINANCIAMIENTO | O196: =SUM(H196:N196) -> 0
D197: 113 | H197: SE REQUIERE ASIGNAR LA FUENTE DE FINANCIAMIENTO | O197: 0
D198: 113 | H198: SE REQUIERE ASIGNAR LA FUENTE DE FINANCIAMIENTO | O198: 0
D199: 113 | H199: SE REQUIERE ASIGNAR LA FUENTE DE FINANCIAMIENTO | O199: 0
D200: 113 | H200: SE REQUIERE ASIGNAR LA FUENTE DE FINANCIAMIENTO | O200: 0
... 229 more rows

Sheet CRI-DE
A1: CRI-LI | B1: DESCRIPCIÓN | D1: INGRESOS DE LIBRE DISPOSICIÓN | E1: INGRESOS ETIQUETADOS | F1: TOTAL
A2: 10-00 | B2: IMPUESTOS | D2: =D3+D5+D9+D10+D11+D12+D13+D19 -> 2,164,488 | E2: =E3+E5+E9+E10+E11+E12+E13+E19 -> 0 | F2: =D2+E2 -> 2,164,488
A3: 11-00 | B3: Impuestos sobre los ingresos | D3: =SUM(D4) -> 0 | E3: =SUM(E4) -> 0 | F3: =D3+E3 -> 0
A4: 11-01 | C4: Impuestos sobre espectáculos públicos | D4: ='CRI-M'!P4 -> 0 | F4: 0
A5: 12-00 | B5: Impuestos sobre el patrimonio | D5: =SUM(D6:D8) -> 1,914,492 | E5: =SUM(E6:E8) -> 0 | F5: 1,914,492
A6: 12-01 | C6: Impuesto predial | D6: ='CRI-M'!P6 -> 1,596,768 | F6: 1,596,768
A7: 12-02 | C7: Impuestos sobre transmisiones patrimoniales | D7: ='CRI-M'!P7 -> 317,724 | F7: 317,724
A8: 12-03 | C8: Impuestos sobre negocios jurídicos | D8: ='CRI-M'!P8 -> 0 | F8: 0
A9: 13-00 | B9: Impuestos sobre la producción, el consumo y las transacciones | D9: 0 | E9: 0 | F9: 0
A10: 14-00 | B10: Impuestos al comercio exterior | D10: 0 | E10: 0 | F10: 0
A11: 15-00 | B11: Impuestos sobre nóminas y asimilables | D11: 0 | E11: 0 | F11: 0
A12: 16-00 | B12: Impuestos ecológicos | D12: 0 | E12: 0 | F12: 0
A13: 17-00 | B13: Accesorios de impuestos | D13: =SUM(D14:D18) -> 249,996 | E13: =SUM(E14:E18) -> 0 | F13: 249,996
A14: 17-01 | C14: Recargos | D14: ='CRI-M'!P14 -> 249,996 | F14: 249,996
A15: 17-02 | C15: Actualizaciones | D15: ='CRI-M'!P15 -> 0 | F15: 0
A16: 17-03 | C16: Multas | D16: ='CRI-M'!P16 -> 0 | F16: 0
A17: 17-04 | C17: Gastos de ejecución | D17: ='CRI-M'!P17 -> 0 | F17: 0
A18: 17-09 | C18: Otros no especificados | D18: ='CRI-M'!P18 -> 0 | F18: 0
A19: 18-00 | B19: Otros impuestos | D19: =SUM(D20) -> 0 | E19: =SUM(E20) -> 0 | F19: 0
A20: 18-01 | C20: Otros impuestos | D20: ='CRI-M'!P20 -> 0 | F20: 0
A21: 20-00 | B21: CUOTAS Y APORTACIONES DE SEGURIDAD SOCIAL | D21: =SUM(D22:D26) -> 0 | E21: =SUM(E22:E26) -> 0 | F21: 0
A22: 21-00 | B22: Aportaciones para fondos de vivienda | F22: 0
A23: 22-00 | B23: Cuotas para la seguirdad social | F23: 0
A24: 23-00 | B24: Cuotas de ahorro para el retiro | F24: 0
A25: 24-00 | B25: Otras cuotas y aportaciones para la seguirdad social | F25: 0
A26: 25-00 | B26: Accesorios de cuotas y aportaciones de seguirdad social | F26: 0
A27: 30-00 | B27: CONTRIBUCIONES DE MEJORAS | D27: =SUM(D28) -> 0 | E27: =SUM(E28) -> 0 | F27: 0
A28: 31-00 | B28: Contribuciones de mejoras por obras públicas | D28: =SUM(D29) -> 0 | E28: =SUM(E29) -> 0 | F28: 0
A29: 31-01 | C29: Contribuciones de mejoras por obras públicas | D29: ='CRI-M'!P29 -> 0 | F29: 0
A30: 40-00 | B30: DERECHOS | D30: =D31+D36+D37+D52+D54 -> 2,166,732 | E30: =E31+E36+E37+E52+E54 -> 0 | F30: 2,166,732
A31: 41-00 | B31: Derechos por el uso, goce, aprovechamiento o explotación de bienes de dominio público | D31: =SUM(D32:D35) -> 16,740 | E31: =SUM(E32:E35) -> 0 | F31: 16,740
A32: 41-01 | C32: Derechos por el uso del piso | D32: ='CRI-M'!P32 -> 0 | F32: 0
A33: 41-02 | C33: Derechos por el uso de los estacionamientos | D33: ='CRI-M'!P33 -> 0 | F33: 0
A34: 41-03 | C34: Derechos de uso de cementerios y panteones municipales | D34: ='CRI-M'!P34 -> 16,740 | F34: 16,740
A35: 41-04 | C35: Derechos de concesiones y demas inmuebles de propiedad municipal | D35: ='CRI-M'!P35 -> 0 | F35: 0
A36: 42-00 | B36: Derechos a los hidrocarburos (Derogado) | F36: 0
A37: 43-00 | B37: Derechos por prestación de servicios | D37: =SUM(D38:D51) -> 2,149,992 | E37: =SUM(E38:E51) -> 0 | F37: 2,149,992
A38: 43-01 | C38: Derechos de licencias y permisos de giros | D38: ='CRI-M'!P38 -> 143,268 | F38: 143,268
A39: 43-02 | C39: Derechos de licencias y permisos de anuncios | D39: ='CRI-M'!P39 -> 6,708 | F39: 6,708
A40: 43-03 | C40: Derechos de licencias de construcción, reconstrucción, reparación o demolición de obras | D40: ='CRI-M'!P40 -> 0 | F40: 0
A41: 43-04 | C41: Derechos de regularizaciones de los registros de obra | D41: ='CRI-M'!P41 -> 0 | F41: 0
A42: 43-05 | C42: Derechos de alineamiento, designación de número oficial e inspección | D42: ='CRI-M'!P42 -> 0 | F42: 0
A43: 43-06 | C43: Derechos de licencias de cambio de régimen de propiedad y urbanización | D43: ='CRI-M'!P43 -> 0 | F43: 0
A44: 43-07 | C44: Derechos de servicios de obra | D44: ='CRI-M'!P44 -> 0 | F44: 0
A45: 43-08 | C45: Derechos de servicios de sanidad | D45: ='CRI-M'!P45 -> 0 | F45: 0
A46: 43-09 | C46: Derechos de servicio de limpieza, recolección, traslado, tratamiento y disposición final de residuos | D46: ='CRI-M'!P46 -> 0 | F46: 0
A47: 43-10 | C47: Derechos de agua potable, drenaje, alcantarillado, tratamiento y disposición final de aguas residuales | D47: ='CRI-M'!P47 -> 1,532,208 | F47: 1,532,208
A48: 43-11 | C48: Derechos del rastro | D48: ='CRI-M'!P48 -> 102,588 | F48: 102,588
A49: 43-12 | C49: Derechos del registro civil | D49: ='CRI-M'!P49 -> 243,468 | F49: 243,468
A50: 43-13 | C50: Derechos de las certificaciones | D50: ='CRI-M'!P50 -> 105,384 | F50: 105,384
A51: 43-14 | C51: Derechos de los servicios de catastro | D51: ='CRI-M'!P51 -> 16,368 | F51: 16,368
A52: 44-00 | B52: Otros derechos | D52: =SUM(D53) -> 0 | E52: =SUM(E53) -> 0 | F52: 0
A53: 44-01 | C53: Otros derechos | D53: ='CRI-M'!P53 -> 0 | F53: 0
A54: 45-00 | B54: Accesorios de derechos | D54: =SUM(D55:D59) -> 0 | E54: =SUM(E55:E59) -> 0 | F54: 0
A55: 45-01 | C55: Recargos | D55: ='CRI-M'!P55 -> 0 | F55: 0
A56: 45-02 | C56: Actualizaciones | D56: ='CRI-M'!P56 -> 0 | F56: 0
A57: 45-03 | C57: Multas | D57: ='CRI-M'!P57 -> 0 | F57: 0
A58: 45-04 | C58: Gastos de ejecución | D58: ='CRI-M'!P58 -> 0 | F58: 0
A59: 45-09 | C59: Otros no especificados | D59: ='CRI-M'!P59 -> 0 | F59: 0
A60: 50-00 | B60: PRODUCTOS | D60: =D61+D64 -> 631,956 | E60: =E61+E64 -> 0 | F60: 631,956
A61: 51-00 | B61: Productos | D61: =SUM(D62:D63) -> 631,956 | E61: =SUM(E62:E63) -> 0 | F61: 631,956
A62: 51-01 | C62: Uso, goce, aprovechamiento o explotación de bienes de dominio privado | D62: ='CRI-M'!P62 -> 0 | F62: 0
A63: 51-02 | C63: Productos diversos | D63: ='CRI-M'!P63 -> 631,956 | F63: 631,956
A64: 52-00 | B64: Productos de capital (Derogado) | F64: 0
A65: 60-00 | B65: APROVECHAMIENTOS | D65: =D66+D70+D73 -> 86,436 | E65: =E66+E70+E73 -> 0 | F65: 86,436
A66: 61-00 | B66: Aprovechamientos | D66: =SUM(D67:D69) -> 0 | E66: =SUM(E67:E69) -> 0 | F66: 0
A67: 61-01 | C67: Aprovechamientos de las sanciones, multas, honorarios y donativos | D67: ='CRI-M'!P67 -> 0 | F67: =D67+E67 -> 0
A68: 61-02 | C68: Aprovechamientos de las indemnizaciones a favor del municipio | D68: ='CRI-M'!P68 -> 0 | F68: 0
A69: 61-03 | C69: Otros aprovechamientos | D69: ='CRI-M'!P69 -> 0 | F69: 0
A70: 62-00 | B70: Aprovechamientos patrimoniales | D70: =SUM(D71:D72) -> 0 | E70: =SUM(E71:E72) -> 0 | F70: 0
A71: 62-01 | C71: Aprovechamientos por el uso o enajenación de bienes | D71: ='CRI-M'!P71 -> 0 | F71: 0
A72: 62-02 | C72: Aporvechamientos por recuperación de capital o patrimonio invertido | D72: ='CRI-M'!P72 -> 0 | F72: 0
A73: 63-00 | B73: Accesorios de aprovechamientos | D73: =SUM(D74:D78) -> 86,436 | E73: =SUM(E74:E78) -> 0 | F73: 86,436
A74: 63-01 | C74: Recargos | D74: ='CRI-M'!P74 -> 0 | F74: 0
A75: 63-02 | C75: Actualizaciones | D75: ='CRI-M'!P75 -> 0 | F75: 0
A76: 63-03 | C76: Multas | D76: ='CRI-M'!P76 -> 27,204 | F76: 27,204
A77: 63-04 | C77: Gastos de ejecución | D77: ='CRI-M'!P77 -> 0 | F77: 0
A78: 63-09 | C78: Otros no especificados | D78: ='CRI-M'!P78 -> 59,232 | F78: 59,232
A79: 70-00 | B79: INGRESOS POR VENTAS DE BIENES, PRESTACIÓN DE SERVICIOS Y OTROS INGRESOS | D79: =D80+D82+D83+D85+D86+D87+D88+D90+D91 -> 2,496 | E79: =E80+E82+E83+E85+E86+E87+E88+E90+E91 -> 0 | F79: 2,496
A80: 71-00 | B80: Ingresos por venta de bienes y prestación de servicios de instituciones públicas de seguridad social | D80: =SUM(D81) -> 0 | E80: =SUM(E81) -> 0 | F80: 0
A81: 71-01 | C81: Ingresos por venta de bienes y prestación de servicios de instituciones públicas de seguridad social | D81: ='CRI-M'!P81 -> 0 | F81: 0
A82: 72-00 | B82: Ingresos por venta de bienes y prestación de servicios de empresas productivas del estado | F82: 0
A83: 73-00 | B83: Ingresos por venta de bienes y prestación de servicios de entidades paraestatales y fideicomisos no empresariales y no financieros | D83: =SUM(D84) -> 0 | E83: =SUM(E84) -> 0 | F83: 0
A84: 73-01 | C84: Ingresos por venta de bienes y prestación de servicios de entidades paraestatales y fideicomisos no empresariales y no financieros | D84: ='CRI-M'!P84 -> 0 | F84: 0
A85: 74-00 | B85: Ingresos por venta de bienes y prestación de servicios de entidades paraestatales empresariales no financieras con participación estatal mayoritaria | F85: 0
A86: 75-00 | B86: Ingresos por venta de bienes y prestación de servicios de entidades paraestatales empresariales financieras monetarias con participación estatal mayoritaria | F86: 0
A87: 76-00 | B87: Ingresos por venta de bienes y prestación de servicios de entidades paraestatales empresariales financieras no monetarias con participación estatal mayoritaria | F87: 0
A88: 77-00 | B88: Ingresos por venta de bienes y prestación de servicios de fideicomisos financieros públicos con participación estatal mayoritaria | D88: =SUM(D89) -> 0 | E88: =SUM(E89) -> 0 | F88: 0
A89: 77-01 | C89: Ingresos por venta de bienes y prestación de servicios de fideicomisos financieros públicos con participación estatal mayoritaria | D89: ='CRI-M'!P89 -> 0 | F89: 0
A90: 78-00 | B90: Ingresos por venta de bienes y prestación de servicios de los poderes legislativo y judicial, y de los órganos autónomos | F90: 0
A91: 79-00 | B91: Otros ingresos | D91: =SUM(D92) -> 2,496 | E91: =SUM(E92) -> 0 | F91: 2,496
A92: 79-01 | C92: Otros ingresos | D92: ='CRI-M'!P92 -> 2,496 | F92: 2,496
A93: 80-00 | B93: PARTICIPACIONES, APORTACIONES, CONVENIOS, INCENTIVOS DERIVADOS DE LA COLABORACIÓN FISCAL Y FONDOS DISTINTOS DE LAS APORTACIONES | D93: =D94+D107+D110+D115+D121 -> 87,692,704 | E93: =E94+E107+E110+E115+E121 -> 14,283,684 | F93: 101,976,388
A94: 81-00 | B94: Participaciones | D94: =SUM(D95:D106) -> 87,692,704 | E94: =SUM(E95:E106) -> 0 | F94: 87,692,704
A95: 81-01 | C95: Fondo general de participaciones (federal) | D95: ='CRI-M'!P95 -> 87,621,040 | F95: 87,621,040
A96: 81-02 | C96: Fondo de fomento municipal (federal) | D96: ='CRI-M'!P96 -> 0 | F96: 0
A97: 81-03 | C97: Fondo de fiscalización y recaudación (federal) | D97: ='CRI-M'!P97 -> 0 | F97: 0
A98: 81-04 | C98: Fondo de compensación (federal) | D98: ='CRI-M'!P98 -> 0 | F98: 0
A99: 81-05 | C99: Fondo de extracción de hidrocarburos (federal) | D99: ='CRI-M'!P99 -> 0 | F99: 0
A100: 81-06 | C100: Impuesto especial sobre producción y servicios (federal) | D100: ='CRI-M'!P100 -> 0 | F100: 0
A101: 81-07 | C101: 0.136% de la recaudación federal participable (federal) | D101: ='CRI-M'!P101 -> 0 | F101: 0
A102: 81-08 | C102: 3.17% sobre extracción de petróleo (federal) | D102: ='CRI-M'!P102 -> 0 | F102: 0
A103: 81-09 | C103: Gasolinas y diésel (federal) | D103: ='CRI-M'!P103 -> 0 | F103: 0
A104: 81-10 | C104: Fondo del impuesto sobre la renta (federal) | D104: ='CRI-M'!P104 -> 0 | F104: 0
A105: 81-11 | C105: Fondo de estabilización de los ingresos de las entidades federativas (federal) | D105: ='CRI-M'!P105 -> 0 | F105: 0
A106: 81-12 | C106: Participaciones del estado | D106: ='CRI-M'!P106 -> 71,664 | F106: 71,664
A107: 82-00 | B107: Aportaciones | D107: =SUM(D108:D109) -> 0 | E107: =SUM(E108:E109) -> 14,283,684 | F107: 14,283,684
A108: 82-01 | C108: Fondo de aportaciones para la infraestructura social municipal | E108: ='CRI-M'!P108 -> 6,676,428 | F108: 6,676,428
A109: 82-02 | C109: Fondo de aportaciones para el fortalecimiento municipal | E109: ='CRI-M'!P109 -> 7,607,256 | F109: 7,607,256
A110: 83-00 | B110: Convenios | D110: =SUM(D111:D114) -> 0 | E110: =SUM(E111:E114) -> 0 | F110: 0
A111: 83-01 | C111: Convenios de protección social en salud | E111: ='CRI-M'!P111 -> 0 | F111: 0
A112: 83-02 | C112: Convenios de descentralizados | E112: ='CRI-M'!P112 -> 0 | F112: 0
A113: 83-03 | C113: Convenio de reasignación | E113: ='CRI-M'!P113 -> 0 | F113: 0
A114: 83-04 | C114: Otros convenios y subsidios | D114: ='CRI-M'!P114 -> 0 | E114: ='CRI-M'!P115+'CRI-M'!P116 -> 0 | F114: 0
A115: 84-00 | B115: Incentivos derivados de la colaboración fiscal | D115: =SUM(D116:D120) -> 0 | E115: =SUM(E116:E120) -> 0 | F115: 0
A116: 84-01 | C116: Tenencia o uso de vehículos | D116: ='CRI-M'!P118 -> 0 | F116: 0
A117: 84-02 | C117: Fondo de compensación ISAN | D117: ='CRI-M'!P119 -> 0 | F117: 0
A118: 84-03 | C118: Impuesto sobre automóviles nuevos | D118: ='CRI-M'!P120 -> 0 | F118: 0
A119: 84-04 | C119: Fondo de compensación de repecos-intermedios | D119: ='CRI-M'!P121 -> 0 | F119: 0
A120: 84-05 | C120: Otros incentivos económicos | D120: ='CRI-M'!P122 -> 0 | F120: 0
A121: 85-00 | B121: Fondos distintos de aportaciones | D121: =SUM(D122:D123) -> 0 | E121: =SUM(E122:E123) -> 0 | F121: 0
A122: 85-01 | C122: Fondo para entidades federativas y municipios productores de hidrocarburos | E122: ='CRI-M'!P124 -> 0 | F122: 0
A123: 85-02 | C123: Fondo minero | E123: ='CRI-M'!P125 -> 0 | F123: 0
A124: 90-00 | B124: TRANSFERENCIAS, ASIGNACIONES, SUBSIDIOS Y SUBVENCIONES Y PENSIONES Y JUBILACIONES | D124: =D125+D127+D128+D130+D131+D133+D134 -> 0 | E124: =E125+E127+E128+E130+E131+E133+E134 -> 0 | F124: 0
A125: 91-00 | B125: Transferencias y asignaciones | D125: =SUM(D126) -> 0 | E125: =SUM(E126) -> 0 | F125: 0
A126: 91-01 | C126: Transferencias y asignaciones | D126: ='CRI-M'!P128 -> 0 | E126: ='CRI-M'!P129 -> 0 | F126: 0
A127: 92-00 | B127: Transferencias al resto del sector público (derogado) | F127: 0
A128: 93-00 | B128: Subsidios y subvenciones | D128: =SUM(D129) -> 0 | E128: =SUM(E129) -> 0 | F128: 0
A129: 93-01 | C129: Subsidios y subvenciones | D129: ='CRI-M'!P133 -> 0 | E129: ='CRI-M'!P134 -> 0 | F129: 0
A130: 94-00 | B130: Ayudas sociales (derogado) | F130: 0
A131: 95-00 | B131: Pensiones y juvilaciones | D131: =SUM(D132) -> 0 | E131: =SUM(E132) -> 0 | F131: =D131+E131 -> 0
A132: 95-01 | C132: Pensiones y juvilaciones | D132: ='CRI-M'!P138 -> 0 | F132: 0
A133: 96-00 | B133: Transferencias a fideicomisos, mandatos y análogos (derogado) | F133: 0
A134: 97-00 | B134: Transferencias del fondo mexicano del petróleo para la estabilización y el desarrollo | D134: =SUM(D135) -> 0 | E134: =SUM(E135) -> 0 | F134: 0
A135: 97-01 | C135: Transferencias del fondo mexicano del petróleo para la estabilización y el desarrollo | D135: ='CRI-M'!P141 -> 0 | F135: 0
A136: 00-00 | B136: INGRESOS DERIVADOS DE FINANCIAMIENTO | D136: =D137+D138+D139 -> 0 | E136: =E137+E138+E139 -> 0 | F136: 0
A137: 01-00 | B137: Endeudamiento interno | F137: 0
A138: 02-00 | B138: Endeudamiento externo | F138: 0
A139: 03-00 | B139: Financiamiento interno | D139: =SUM(D140) -> 0 | E139: =SUM(E140) -> 0 | F139: 0
A140: 03-01 | C140: Financiamiento interno | E140: ='CRI-M'!P146 -> 0 | F140: 0
A141: ESTIMACIÓN DE INGRESOS | D141: =D2+D21+D27+D30+D60+D65+D79+D93+D124+D136 -> 92,744,812 | E141: =E2+E21+E27+E30+E60+E65+E79+E93+E124+E136 -> 14,283,684 | F141: =F2+F21+F27+F30+F60+F65+F79+F93+F124+F136 -> 107,028,496

Sheet COG-FF
A1: COG-FF | B1: DESCRIPCIÓN | C1: 1. NO ETIQUETADO | J1: 2. ETIQUETADO | M1: TOTAL ANUAL
C2: 11 RECURSOS FISCALES | D2: 12 FINANCIAMIENTOS INTERNOS | E2: 13 FINANCIAMIENTOS EXTERNOS | F2: 14 INGRESOS PROPIOS | G2: 15 RECURSOS FEDERALES | H2: 16 RECURSOS ESTATALES | I2: 17 OTROS RECURSOS DE LIBRE DISPOSICIÓN | J2: 25 RECURSOS FEDERALES | K2: 26 RECURSOS ESTATALES | L2: 27 OTROS RECURSOS DE TRANSFERENCIAS FEDERALES ETIQUETADAS
A3: 1000 | B3: SERVICIOS PERSONALES | C3: =C4+C9+C14+C23+C28+C35+C37 -> 24,871,540 | D3: 0 | E3: 0 | F3: 0 | G3: 0 | H3: 0 | I3: 0 | J3: 0 | K3: 0 | L3: 0 | M3: =M4+M9+M14+M23+M28+M35+M37 -> 24,871,540
A4: 1100 | B4: REMUNERACIONES AL PERSONAL DE CARÁCTER PERMANENTE | C4: =SUM(C5:C8) -> 14,517,724 | D4: 0 | E4: 0 | F4: 0 | G4: 0 | H4: 0 | I4: 0 | J4: =SUM(J5:J8) -> 0 | K4: =SUM(K5:K8) -> 0 | L4: =SUM(L5:L8) -> 0 | M4: =SUM(M5:M8) -> 14,517,724
A5: 111 | B5: Dietas | C5: ='COG-M'!P4 -> 1,879,200 | D5: ='COG-M'!P5 -> 0 | E5: ='COG-M'!P6 -> 0 | F5: ='COG-M'!P7 -> 0 | G5: ='COG-M'!P8 -> 0 | H5: ='COG-M'!P9 -> 0 | I5: ='COG-M'!P10 -> 0 | J5: ='COG-M'!P11 -> 0 | K5: ='COG-M'!P12 -> 0 | L5: ='COG-M'!P13 -> 0 | M5: =SUM(C5:L5) -> 1,879,200
A6: 112 | B6: Haberes | M6: =SUM(C6:L6) -> 0
A7: 113 | B7: Sueldos base al personal permanente | C7: ='COG-M'!P15 -> 12,638,524 | D7: ='COG-M'!P16 -> 0 | E7: ='COG-M'!P17 -> 0 | F7: ='COG-M'!P18 -> 0 | G7: ='COG-M'!P19 -> 0 | H7: ='COG-M'!P20 -> 0 | I7: ='COG-M'!P21 -> 0 | J7: ='COG-M'!P22 -> 0 | K7: ='COG-M'!P23 -> 0 | L7: ='COG-M'!P24 -> 0 | M7: =SUM(C7:L7) -> 12,638,524
A8: 114 | B8: Remuneraciones por adscripción laboral en el extranjero | C8: ='COG-M'!P25 -> 0 | D8: ='COG-M'!P26 -> 0 | E8: ='COG-M'!P27 -> 0 | F8: ='COG-M'!P28 -> 0 | G8: ='COG-M'!P29 -> 0 | H8: ='COG-M'!P30 -> 0 | I8: ='COG-M'!P31 -> 0 | J8: ='COG-M'!P32 -> 0 | K8: ='COG-M'!P33 -> 0 | L8: ='COG-M'!P34 -> 0 | M8: =SUM(C8:L8) -> 0
A9: 1200 | B9: REMUNERACIONES AL PERSONAL DE CARÁCTER TRANSITORIO | C9: =SUM(C10:C13) -> 7,924,668 | D9: =SUM(D10:D13) -> 0 | E9: 0 | F9: 0 | G9: 0 | H9: 0 | I9: 0 | J9: 0 | K9: 0 | L9: 0 | M9: 7,924,668
A10: 121 | B10: Honorarios asimilables a salarios | C10: ='COG-M'!P36 -> 0 | D10: ='COG-M'!P37 -> 0 | E10: ='COG-M'!P38 -> 0 | F10: ='COG-M'!P39 -> 0 | G10: ='COG-M'!P40 -> 0 | H10: ='COG-M'!P41 -> 0 | I10: ='COG-M'!P42 -> 0 | J10: ='COG-M'!P43 -> 0 | K10: ='COG-M'!P44 -> 0 | L10: ='COG-M'!P45 -> 0 | M10: =SUM(C10:L10) -> 0
A11: 122 | B11: Sueldos base al personal eventual | C11: ='COG-M'!P46 -> 7,924,668 | D11: ='COG-M'!P47 -> 0 | E11: ='COG-M'!P48 -> 0 | F11: ='COG-M'!P49 -> 0 | G11: ='COG-M'!P50 -> 0 | H11: ='COG-M'!P51 -> 0 | I11: ='COG-M'!P52 -> 0 | J11: ='COG-M'!P53 -> 0 | K11: ='COG-M'!P54 -> 0 | L11: ='COG-M'!P55 -> 0 | M11: =SUM(C11:L11) -> 7,924,668
A12: 123 | B12: Retribuciones por servicios de carácter social | C12: ='COG-M'!P56 -> 0 | D12: ='COG-M'!P57 -> 0 | E12: ='COG-M'!P58 -> 0 | F12: ='COG-M'!P59 -> 0 | G12: ='COG-M'!P60 -> 0 | H12: ='COG-M'!P61 -> 0 | I12: ='COG-M'!P62 -> 0 | J12: ='COG-M'!P63 -> 0 | K12: ='COG-M'!P64 -> 0 | L12: ='COG-M'!P65 -> 0 | M12: =SUM(C12:L12) -> 0
A13: 124 | B13: Retribución a los representantes de los trabajadores y de los patrones en la Junta de Conciliación y Arbitraje | M13: =SUM(C13:L13) -> 0
A14: 1300 | B14: REMUNERACIONES ADICIONALES Y ESPECIALES | C14: =SUM(C15:C22) -> 2,262,000 | D14: 0 | E14: 0 | F14: 0 | G14: 0 | H14: 0 | I14: 0 | J14: 0 | K14: 0 | L14: 0 | M14: 2,262,000
A15: 131 | B15: Primas por años de servicios efectivos prestados | C15: ='COG-M'!P68 -> 0 | D15: ='COG-M'!P69 -> 0 | E15: ='COG-M'!P70 -> 0 | F15: ='COG-M'!P71 -> 0 | G15: ='COG-M'!P72 -> 0 | H15: ='COG-M'!P73 -> 0 | I15: ='COG-M'!P74 -> 0 | J15: ='COG-M'!P75 -> 0 | K15: ='COG-M'!P76 -> 0 | L15: ='COG-M'!P77 -> 0 | M15: =SUM(C15:L15) -> 0
A16: 132 | B16: Primas de vacaciones, dominical y gratificación de fin de año | C16: ='COG-M'!P78 -> 2,262,000 | D16: ='COG-M'!P79 -> 0 | E16: ='COG-M'!P80 -> 0 | F16: ='COG-M'!P81 -> 0 | G16: ='COG-M'!P82 -> 0 | H16: ='COG-M'!P83 -> 0 | I16: ='COG-M'!P84 -> 0 | J16: ='COG-M'!P85 -> 0 | K16: ='COG-M'!P86 -> 0 | L16: ='COG-M'!P87 -> 0 | M16: 2,262,000
A17: 133 | B17: Horas extraordinarias | C17: ='COG-M'!P88 -> 0 | D17: ='COG-M'!P89 -> 0 | E17: ='COG-M'!P90 -> 0 | F17: ='COG-M'!P91 -> 0 | G17: ='COG-M'!P92 -> 0 | H17: ='COG-M'!P93 -> 0 | I17: ='COG-M'!P94 -> 0 | J17: ='COG-M'!P95 -> 0 | K17: ='COG-M'!P96 -> 0 | L17: ='COG-M'!P97 -> 0 | M17: 0
A18: 134 | B18: Compensaciones | C18: ='COG-M'!P98 -> 0 | D18: ='COG-M'!P99 -> 0 | E18: ='COG-M'!P100 -> 0 | F18: ='COG-M'!P101 -> 0 | G18: ='COG-M'!P102 -> 0 | H18: ='COG-M'!P103 -> 0 | I18: ='COG-M'!P104 -> 0 | J18: ='COG-M'!P105 -> 0 | K18: ='COG-M'!P106 -> 0 | L18: ='COG-M'!P107 -> 0 | M18: 0
A19: 135 | B19: Sobrehaberes | M19: 0
A20: 136 | B20: Asignaciones de técnico, de mando, por comisión, de vuelo y de técnico especial | M20: 0
A21: 137 | B21: Honorarios especiales | C21: ='COG-M'!P110 -> 0 | D21: ='COG-M'!P111 -> 0 | E21: ='COG-M'!P112 -> 0 | F21: ='COG-M'!P113 -> 0 | G21: ='COG-M'!P114 -> 0 | H21: ='COG-M'!P115 -> 0 | I21: ='COG-M'!P116 -> 0 | J21: ='COG-M'!P117 -> 0 | K21: ='COG-M'!P118 -> 0 | L21: ='COG-M'!P119 -> 0 | M21: 0
A22: 138 | B22: Participaciones por vigilancia en el cumplimiento de la leyes y custodia de valores | C22: ='COG-M'!P120 -> 0 | D22: ='COG-M'!P121 -> 0 | E22: ='COG-M'!P122 -> 0 | F22: ='COG-M'!P123 -> 0 | G22: ='COG-M'!P124 -> 0 | H22: ='COG-M'!P125 -> 0 | I22: ='COG-M'!P126 -> 0 | J22: ='COG-M'!P127 -> 0 | K22: ='COG-M'!P128 -> 0 | L22: ='COG-M'!P129 -> 0 | M22: 0
A23: 1400 | B23: SEGURIDAD SOCIAL | C23: =SUM(C24:C27) -> 0 | D23: 0 | E23: 0 | F23: 0 | G23: 0 | H23: 0 | I23: 0 | J23: 0 | K23: 0 | L23: 0 | M23: 0
A24: 141 | B24: Aportaciones de seguridad social | C24: ='COG-M'!P131 -> 0 | D24: ='COG-M'!P132 -> 0 | E24: ='COG-M'!P133 -> 0 | F24: ='COG-M'!P134 -> 0 | G24: ='COG-M'!P135 -> 0 | H24: ='COG-M'!P136 -> 0 | I24: ='COG-M'!P137 -> 0 | J24: ='COG-M'!P138 -> 0 | K24: ='COG-M'!P139 -> 0 | L24: ='COG-M'!P140 -> 0 | M24: =SUM(C24:L24) -> 0
A25: 142 | B25: Aportaciones a fondos de vivienda | C25: ='COG-M'!P141 -> 0 | D25: ='COG-M'!P142 -> 0 | E25: ='COG-M'!P143 -> 0 | F25: ='COG-M'!P144 -> 0 | G25: ='COG-M'!P145 -> 0 | H25: ='COG-M'!P146 -> 0 | I25: ='COG-M'!P147 -> 0 | J25: ='COG-M'!P148 -> 0 | K25: ='COG-M'!P149 -> 0 | L25: ='COG-M'!P150 -> 0 | M25: =SUM(C25:L25) -> 0
A26: 143 | B26: Aportaciones al sistema para el retiro | C26: ='COG-M'!P151 -> 0 | D26: ='COG-M'!P152 -> 0 | E26: ='COG-M'!P153 -> 0 | F26: ='COG-M'!P154 -> 0 | G26: ='COG-M'!P155 -> 0 | H26: ='COG-M'!P156 -> 0 | I26: ='COG-M'!P157 -> 0 | J26: ='COG-M'!P158 -> 0 | K26: ='COG-M'!P159 -> 0 | L26: ='COG-M'!P160 -> 0 | M26: =SUM(C26:L26) -> 0
A27: 144 | B27: Aportaciones para seguros | C27: ='COG-M'!P161 -> 0 | D27: ='COG-M'!P162 -> 0 | E27: ='COG-M'!P163 -> 0 | F27: ='COG-M'!P164 -> 0 | G27: ='COG-M'!P165 -> 0 | H27: ='COG-M'!P166 -> 0 | I27: ='COG-M'!P167 -> 0 | J27: ='COG-M'!P168 -> 0 | K27: ='COG-M'!P169 -> 0 | L27: ='COG-M'!P170 -> 0 | M27: =SUM(C27:L27) -> 0
A28: 1500 | B28: OTRAS PRESTACIONES SOCIALES Y ECONÓMICAS | C28: =SUM(C29:C34) -> 167,148 | D28: 0 | E28: 0 | F28: 0 | G28: 0 | H28: 0 | I28: 0 | J28: 0 | K28: 0 | L28: 0 | M28: 167,148
A29: 151 | B29: Cuotas para el fondo de ahorro y fondo de trabajo | C29: ='COG-M'!P172 -> 0 | D29: ='COG-M'!P173 -> 0 | E29: ='COG-M'!P174 -> 0 | F29: ='COG-M'!P175 -> 0 | G29: ='COG-M'!P176 -> 0 | H29: ='COG-M'!P177 -> 0 | I29: ='COG-M'!P178 -> 0 | J29: ='COG-M'!P179 -> 0 | K29: ='COG-M'!P180 -> 0 | L29: ='COG-M'!P181 -> 0 | M29: =SUM(C29:L29) -> 0
A30: 152 | B30: Indemnizaciones | C30: ='COG-M'!P182 -> 167,148 | D30: ='COG-M'!P183 -> 0 | E30: ='COG-M'!P184 -> 0 | F30: ='COG-M'!P185 -> 0 | G30: ='COG-M'!P186 -> 0 | H30: ='COG-M'!P187 -> 0 | I30: ='COG-M'!P188 -> 0 | J30: ='COG-M'!P189 -> 0 | K30: ='COG-M'!P190 -> 0 | L30: ='COG-M'!P191 -> 0 | M30: 167,148
A31: 153 | B31: Prestaciones y haberes de retiro | C31: ='COG-M'!P192 -> 0 | D31: ='COG-M'!P193 -> 0 | E31: ='COG-M'!P194 -> 0 | F31: ='COG-M'!P195 -> 0 | G31: ='COG-M'!P196 -> 0 | H31: ='COG-M'!P197 -> 0 | I31: ='COG-M'!P198 -> 0 | J31: ='COG-M'!P199 -> 0 | K31: ='COG-M'!P200 -> 0 | L31: ='COG-M'!P201 -> 0 | M31: 0
A32: 154 | B32: Prestaciones contractuales | C32: ='COG-M'!P202 -> 0 | D32: ='COG-M'!P203 -> 0 | E32: ='COG-M'!P204 -> 0 | F32: ='COG-M'!P205 -> 0 | G32: ='COG-M'!P206 -> 0 | H32: ='COG-M'!P207 -> 0 | I32: ='COG-M'!P208 -> 0 | J32: ='COG-M'!P209 -> 0 | K32: ='COG-M'!P210 -> 0 | L32: ='COG-M'!P211 -> 0 | M32: 0
A33: 155 | B33: Apoyos a la capacitación de los servidores públicos | C33: ='COG-M'!P212 -> 0 | D33: ='COG-M'!P213 -> 0 | E33: ='COG-M'!P214 -> 0 | F33: ='COG-M'!P215 -> 0 | G33: ='COG-M'!P216 -> 0 | H33: ='COG-M'!P217 -> 0 | I33: ='COG-M'!P218 -> 0 | J33: ='COG-M'!P219 -> 0 | K33: ='COG-M'!P220 -> 0 | L33: ='COG-M'!P221 -> 0 | M33: 0
A34: 159 | B34: Otras prestaciones sociales y económicas | C34: ='COG-M'!P222 -> 0 | D34: ='COG-M'!P223 -> 0 | E34: ='COG-M'!P224 -> 0 | F34: ='COG-M'!P225 -> 0 | G34: ='COG-M'!P226 -> 0 | H34: ='COG-M'!P227 -> 0 | I34: ='COG-M'!P228 -> 0 | J34: ='COG-M'!P229 -> 0 | K34: ='COG-M'!P230 -> 0 | L34: ='COG-M'!P231 -> 0 | M34: 0
A35: 1600 | B35: PREVISIONES | C35: =SUM(C36) -> 0 | D35: 0 | E35: 0 | F35: 0 | G35: 0 | H35: 0 | I35: 0 | J35: 0 | K35: 0 | L35: 0 | M35: 0
A36: 161 | B36: Previsiones de carácter laboral, económica y de seguridad social | C36: ='COG-M'!P233 -> 0 | D36: ='COG-M'!P234 -> 0 | E36: ='COG-M'!P235 -> 0 | F36: ='COG-M'!P236 -> 0 | G36: ='COG-M'!P237 -> 0 | H36: ='COG-M'!P238 -> 0 | I36: ='COG-M'!P239 -> 0 | J36: ='COG-M'!P240 -> 0 | K36: ='COG-M'!P241 -> 0 | L36: ='COG-M'!P242 -> 0 | M36: =SUM(C36:L36) -> 0
A37: 1700 | B37: PAGO DE ESTÍMULOS A SERVIDORES PÚBLICOS | C37: =SUM(C38:C39) -> 0 | D37: 0 | E37: 0 | F37: 0 | G37: 0 | H37: 0 | I37: 0 | J37: 0 | K37: 0 | L37: 0 | M37: 0
A38: 171 | B38: Estímulos | C38: ='COG-M'!P244 -> 0 | D38: ='COG-M'!P245 -> 0 | E38: ='COG-M'!P246 -> 0 | F38: ='COG-M'!P247 -> 0 | G38: ='COG-M'!P248 -> 0 | H38: ='COG-M'!P249 -> 0 | I38: ='COG-M'!P250 -> 0 | J38: ='COG-M'!P251 -> 0 | K38: ='COG-M'!P252 -> 0 | L38: ='COG-M'!P253 -> 0 | M38: =SUM(C38:L38) -> 0
A39: 172 | B39: Recompensas | C39: ='COG-M'!P254 -> 0 | D39: ='COG-M'!P255 -> 0 | E39: ='COG-M'!P256 -> 0 | F39: ='COG-M'!P257 -> 0 | G39: ='COG-M'!P258 -> 0 | H39: ='COG-M'!P259 -> 0 | I39: ='COG-M'!P260 -> 0 | J39: ='COG-M'!P261 -> 0 | K39: ='COG-M'!P262 -> 0 | L39: ='COG-M'!P263 -> 0 | M39: =SUM(C39:L39) -> 0
A40: 2000 | B40: MATERIALES Y SUMINISTROS | C40: =C41+C50+C54+C64+C74+C82+C85+C91+C95 -> 21,524,220 | D40: 0 | E40: 0 | F40: 0 | G40: 0 | H40: 0 | I40: 0 | J40: =J41+J50+J54+J64+J74+J82+J85+J91+J95 -> 0 | K40: =K41+K50+K54+K64+K74+K82+K85+K91+K95 -> 0 | L40: =L41+L50+L54+L64+L74+L82+L85+L91+L95 -> 0 | M40: =M41+M50+M54+M64+M74+M82+M85+M91+M95 -> 21,524,220
A41: 2100 | B41: MATERIALES DE ADMINISTRACIÓN, EMISIÓN DE DOCUMENTOS Y ARTÍCULOS OFICIALES | C41: =SUM(C42:C49) -> 1,852,464 | D41: 0 | E41: 0 | F41: 0 | G41: 0 | H41: 0 | I41: 0 | J41: =SUM(J42:J49) -> 0 | K41: =SUM(K42:K49) -> 0 | L41: =SUM(L42:L49) -> 0 | M41: =SUM(M42:M49) -> 1,852,464
A42: 211 | B42: Materiales, útiles y equipos menores de oficina | C42: ='COG-M'!P266 -> 611,892 | D42: ='COG-M'!P267 -> 0 | E42: ='COG-M'!P268 -> 0 | F42: ='COG-M'!P269 -> 0 | G42: ='COG-M'!P270 -> 0 | H42: ='COG-M'!P271 -> 0 | I42: ='COG-M'!P272 -> 0 | J42: ='COG-M'!P273 -> 0 | K42: ='COG-M'!P274 -> 0 | L42: ='COG-M'!P275 -> 0 | M42: =SUM(C42:L42) -> 611,892
A43: 212 | B43: Materiales y útiles de impresión y reproducción | C43: ='COG-M'!P276 -> 599,712 | D43: ='COG-M'!P277 -> 0 | E43: ='COG-M'!P277 -> 0 | F43: ='COG-M'!P279 -> 0 | G43: ='COG-M'!P280 -> 0 | H43: ='COG-M'!P281 -> 0 | I43: ='COG-M'!P282 -> 0 | J43: ='COG-M'!P283 -> 0 | K43: ='COG-M'!P284 -> 0 | L43: ='COG-M'!P285 -> 0 | M43: 599,712
A44: 213 | B44: Material estadístico y geográfico | C44: ='COG-M'!P286 -> 0 | D44: ='COG-M'!P287 -> 0 | E44: ='COG-M'!P288 -> 0 | F44: ='COG-M'!P289 -> 0 | G44: ='COG-M'!P290 -> 0 | H44: ='COG-M'!P291 -> 0 | I44: ='COG-M'!P292 -> 0 | J44: ='COG-M'!P293 -> 0 | K44: ='COG-M'!P294 -> 0 | L44: ='COG-M'!P295 -> 0 | M44: 0
A45: 214 | B45: Materiales, útiles y equipos menores de tecnologías de la información y comunicaciones | C45: ='COG-M'!P296 -> 171,672 | D45: ='COG-M'!P297 -> 0 | E45: ='COG-M'!P298 -> 0 | F45: ='COG-M'!P299 -> 0 | G45: ='COG-M'!P300 -> 0 | H45: ='COG-M'!P301 -> 0 | I45: ='COG-M'!P302 -> 0 | J45: ='COG-M'!P303 -> 0 | K45: ='COG-M'!P304 -> 0 | L45: ='COG-M'!P305 -> 0 | M45: 171,672
A46: 215 | B46: Material impreso e información digital | C46: ='COG-M'!P306 -> 0 | D46: ='COG-M'!P307 -> 0 | E46: ='COG-M'!P308 -> 0 | F46: ='COG-M'!P309 -> 0 | G46: ='COG-M'!P310 -> 0 | H46: ='COG-M'!P311 -> 0 | I46: ='COG-M'!P312 -> 0 | J46: ='COG-M'!P313 -> 0 | K46: ='COG-M'!P314 -> 0 | L46: ='COG-M'!P315 -> 0 | M46: 0
A47: 216 | B47: Material de limpieza | C47: ='COG-M'!P316 -> 452,256 | D47: ='COG-M'!P317 -> 0 | E47: ='COG-M'!P318 -> 0 | F47: ='COG-M'!P319 -> 0 | G47: ='COG-M'!P320 -> 0 | H47: ='COG-M'!P321 -> 0 | I47: ='COG-M'!P322 -> 0 | J47: ='COG-M'!P323 -> 0 | K47: ='COG-M'!P324 -> 0 | L47: ='COG-M'!P325 -> 0 | M47: 452,256
A48: 217 | B48: Materiales y útiles de enseñanza | C48: ='COG-M'!P326 -> 0 | D48: ='COG-M'!P327 -> 0 | E48: ='COG-M'!P328 -> 0 | F48: ='COG-M'!P329 -> 0 | G48: ='COG-M'!P330 -> 0 | H48: ='COG-M'!P331 -> 0 | I48: ='COG-M'!P332 -> 0 | J48: ='COG-M'!P333 -> 0 | K48: ='COG-M'!P334 -> 0 | L48: ='COG-M'!P335 -> 0 | M48: 0
A49: 218 | B49: Materiales para el registro e identificación de bienes y personas | C49: ='COG-M'!P336 -> 16,932 | D49: ='COG-M'!P337 -> 0 | E49: ='COG-M'!P338 -> 0 | F49: ='COG-M'!P339 -> 0 | G49: ='COG-M'!P340 -> 0 | H49: ='COG-M'!P341 -> 0 | I49: ='COG-M'!P342 -> 0 | J49: ='COG-M'!P343 -> 0 | K49: ='COG-M'!P344 -> 0 | L49: ='COG-M'!P345 -> 0 | M49: 16,932
A50: 2200 | B50: ALIMENTOS Y UTENSILIOS | C50: =SUM(C51:C53) -> 966,084 | D50: 0 | E50: 0 | F50: 0 | G50: 0 | H50: 0 | I50: 0 | J50: =SUM(J51:J53) -> 0 | K50: =SUM(K51:K53) -> 0 | L50: =SUM(L51:L53) -> 0 | M50: =SUM(M51:M53) -> 966,084
A51: 221 | B51: Productos alimenticios para personas | C51: ='COG-M'!P347 -> 538,452 | D51: ='COG-M'!P348 -> 0 | E51: ='COG-M'!P349 -> 0 | F51: ='COG-M'!P350 -> 0 | G51: ='COG-M'!P351 -> 0 | H51: ='COG-M'!P352 -> 0 | I51: ='COG-M'!P353 -> 0 | J51: ='COG-M'!P354 -> 0 | K51: ='COG-M'!P355 -> 0 | L51: ='COG-M'!P356 -> 0 | M51: =SUM(C51:L51) -> 538,452
A52: 222 | B52: Productos alimenticios para animales | C52: ='COG-M'!P357 -> 0 | D52: ='COG-M'!P358 -> 0 | E52: ='COG-M'!P359 -> 0 | F52: ='COG-M'!P360 -> 0 | G52: ='COG-M'!P361 -> 0 | H52: ='COG-M'!P362 -> 0 | I52: ='COG-M'!P363 -> 0 | J52: ='COG-M'!P364 -> 0 | K52: ='COG-M'!P365 -> 0 | L52: ='COG-M'!P366 -> 0 | M52: =SUM(C52:L52) -> 0
A53: 223 | B53: Utensilios para el servicio de alimentación | C53: ='COG-M'!P367 -> 427,632 | D53: ='COG-M'!P368 -> 0 | E53: ='COG-M'!P369 -> 0 | F53: ='COG-M'!P370 -> 0 | G53: ='COG-M'!P371 -> 0 | H53: ='COG-M'!P372 -> 0 | I53: ='COG-M'!P373 -> 0 | J53: ='COG-M'!P374 -> 0 | K53: ='COG-M'!P375 -> 0 | L53: ='COG-M'!P376 -> 0 | M53: =SUM(C53:L53) -> 427,632
A54: 2300 | B54: MATERIAS PRIMAS Y MATERIALES DE PRODUCCIÓN Y COMERCIALIZACIÓN | C54: =SUM(C55:C63) -> 0 | D54: 0 | E54: 0 | F54: 0 | G54: 0 | H54: 0 | I54: 0 | J54: =SUM(J55:J63) -> 0 | K54: =SUM(K55:K63) -> 0 | L54: =SUM(L55:L63) -> 0 | M54: =SUM(M55:M63) -> 0
A55: 231 | B55: Productos alimenticios, agropecuarios y forestales adquiridos como materia prima | M55: =SUM(C55:L55) -> 0
A56: 232 | B56: Insumos textiles adquiridos como materia prima | M56: 0
A57: 233 | B57: Productos de papel, cartón e impresos adquiridos como materia prima | M57: 0
A58: 234 | B58: Combustibles, lubricantes, aditivos, carbón y sus derivados adquiridos como materia prima | M58: 0
A59: 235 | B59: Productos químicos, farmacéuticos y de laboratorio adquiridos como materia prima | M59: 0
A60: 236 | B60: Productos metálicos y a base de minerales no metálicos adquiridos como materia prima | M60: 0
A61: 237 | B61: Productos de cuero, piel, plástico y hule adquiridos como materia prima | M61: 0
A62: 238 | B62: Mercancías adquiridas para su comercialización | M62: 0
A63: 239 | B63: Otros productos adquiridos como materia prima | M63: 0
A64: 2400 | B64: MATERIALES Y ARTÍCULOS DE CONSTRUCCIÓN Y DE REPARACIÓN | C64: =SUM(C65:C73) -> 5,118,108 | D64: 0 | E64: 0 | F64: 0 | G64: 0 | H64: 0 | I64: 0 | J64: =SUM(J65:J73) -> 0 | K64: =SUM(K65:K73) -> 0 | L64: =SUM(L65:L73) -> 0 | M64: =SUM(M65:M73) -> 5,118,108
A65: 241 | B65: Productos minerales no metálicos | C65: ='COG-M'!P388 -> 571,932 | D65: ='COG-M'!P389 -> 0 | E65: ='COG-M'!P390 -> 0 | F65: ='COG-M'!P391 -> 0 | G65: ='COG-M'!P392 -> 0 | H65: ='COG-M'!P393 -> 0 | I65: ='COG-M'!P394 -> 0 | J65: ='COG-M'!P395 -> 0 | K65: ='COG-M'!P396 -> 0 | L65: ='COG-M'!P397 -> 0 | M65: =SUM(C65:L65) -> 571,932
A66: 242 | B66: Cemento y productos de concreto | C66: ='COG-M'!P398 -> 2,665,764 | D66: ='COG-M'!P399 -> 0 | E66: ='COG-M'!P400 -> 0 | F66: ='COG-M'!P401 -> 0 | G66: ='COG-M'!P402 -> 0 | H66: ='COG-M'!P403 -> 0 | I66: ='COG-M'!P404 -> 0 | J66: ='COG-M'!P405 -> 0 | K66: ='COG-M'!P406 -> 0 | L66: ='COG-M'!P407 -> 0 | M66: 2,665,764
A67: 243 | B67: Cal, yeso y productos de yeso | C67: ='COG-M'!P408 -> 0 | D67: ='COG-M'!P409 -> 0 | E67: ='COG-M'!P410 -> 0 | F67: ='COG-M'!P411 -> 0 | G67: ='COG-M'!P412 -> 0 | H67: ='COG-M'!P413 -> 0 | I67: ='COG-M'!P414 -> 0 | J67: ='COG-M'!P415 -> 0 | K67: ='COG-M'!P416 -> 0 | L67: ='COG-M'!P417 -> 0 | M67: 0
A68: 244 | B68: Madera y productos de madera | C68: ='COG-M'!P418 -> 3,756 | D68: ='COG-M'!P419 -> 0 | E68: ='COG-M'!P420 -> 0 | F68: ='COG-M'!P421 -> 0 | G68: ='COG-M'!P422 -> 0 | H68: ='COG-M'!P423 -> 0 | I68: ='COG-M'!P424 -> 0 | J68: ='COG-M'!P425 -> 0 | K68: ='COG-M'!P426 -> 0 | L68: ='COG-M'!P427 -> 0 | M68: 3,756
A69: 245 | B69: Vidrio y productos de vidrio | C69: ='COG-M'!P428 -> 0 | D69: ='COG-M'!P429 -> 0 | E69: ='COG-M'!P430 -> 0 | F69: ='COG-M'!P431 -> 0 | G69: ='COG-M'!P432 -> 0 | H69: ='COG-M'!P433 -> 0 | I69: ='COG-M'!P434 -> 0 | J69: ='COG-M'!P435 -> 0 | K69: ='COG-M'!P436 -> 0 | L69: ='COG-M'!P437 -> 0 | M69: 0
A70: 246 | B70: Material eléctrico y electrónico | C70: ='COG-M'!P438 -> 959,376 | D70: ='COG-M'!P439 -> 0 | E70: ='COG-M'!P440 -> 0 | F70: ='COG-M'!P441 -> 0 | G70: ='COG-M'!P442 -> 0 | H70: ='COG-M'!P443 -> 0 | I70: ='COG-M'!P444 -> 0 | J70: ='COG-M'!P445 -> 0 | K70: ='COG-M'!P446 -> 0 | L70: ='COG-M'!P447 -> 0 | M70: 959,376
A71: 247 | B71: Artículos metálicos para la construcción | C71: ='COG-M'!P448 -> 299,688 | D71: ='COG-M'!P449 -> 0 | E71: ='COG-M'!P450 -> 0 | F71: ='COG-M'!P451 -> 0 | G71: ='COG-M'!P452 -> 0 | H71: ='COG-M'!P453 -> 0 | I71: ='COG-M'!P454 -> 0 | J71: ='COG-M'!P455 -> 0 | K71: ='COG-M'!P456 -> 0 | L71: ='COG-M'!P457 -> 0 | M71: 299,688
A72: 248 | B72: Materiales complementarios | C72: ='COG-M'!P458 -> 0 | D72: ='COG-M'!P459 -> 0 | E72: ='COG-M'!P460 -> 0 | F72: ='COG-M'!P461 -> 0 | G72: ='COG-M'!P462 -> 0 | H72: ='COG-M'!P463 -> 0 | I72: ='COG-M'!P464 -> 0 | J72: ='COG-M'!P465 -> 0 | K72: ='COG-M'!P466 -> 0 | L72: ='COG-M'!P467 -> 0 | M72: 0
A73: 249 | B73: Otros materiales y artículos de construcción y reparación | C73: ='COG-M'!P468 -> 617,592 | D73: ='COG-M'!P469 -> 0 | E73: ='COG-M'!P470 -> 0 | F73: ='COG-M'!P471 -> 0 | G73: ='COG-M'!P472 -> 0 | H73: ='COG-M'!P473 -> 0 | I73: ='COG-M'!P474 -> 0 | J73: ='COG-M'!P475 -> 0 | K73: ='COG-M'!P476 -> 0 | L73: ='COG-M'!P477 -> 0 | M73: 617,592
A74: 2500 | B74: PRODUCTOS QUÍMICOS, FARMACÉUTICOS Y DE LABORATORIO | C74: =SUM(C75:C81) -> 629,688 | D74: 0 | E74: 0 | F74: 0 | G74: 0 | H74: 0 | I74: 0 | J74: =SUM(J75:J81) -> 0 | K74: =SUM(K75:K81) -> 0 | L74: =SUM(L75:L81) -> 0 | M74: =SUM(M75:M81) -> 629,688
A75: 251 | B75: Productos químicos básicos | C75: ='COG-M'!P479 -> 0 | D75: ='COG-M'!P480 -> 0 | E75: ='COG-M'!P481 -> 0 | F75: ='COG-M'!P482 -> 0 | G75: ='COG-M'!P483 -> 0 | H75: ='COG-M'!P484 -> 0 | I75: ='COG-M'!P485 -> 0 | J75: ='COG-M'!P486 -> 0 | K75: ='COG-M'!P487 -> 0 | L75: ='COG-M'!P488 -> 0 | M75: =SUM(C75:L75) -> 0
A76: 252 | B76: Fertilizantes, pesticidas y otros agroquímicos | C76: ='COG-M'!P489 -> 102,756 | D76: ='COG-M'!P490 -> 0 | E76: ='COG-M'!P491 -> 0 | F76: ='COG-M'!P492 -> 0 | G76: ='COG-M'!P493 -> 0 | H76: ='COG-M'!P494 -> 0 | I76: ='COG-M'!P495 -> 0 | J76: ='COG-M'!P496 -> 0 | K76: ='COG-M'!P497 -> 0 | L76: ='COG-M'!P498 -> 0 | M76: 102,756
A77: 253 | B77: Medicinas y productos farmacéuticos | C77: ='COG-M'!P499 -> 208,608 | D77: ='COG-M'!P500 -> 0 | E77: ='COG-M'!P501 -> 0 | F77: ='COG-M'!P502 -> 0 | G77: ='COG-M'!P503 -> 0 | H77: ='COG-M'!P504 -> 0 | I77: ='COG-M'!P505 -> 0 | J77: ='COG-M'!P506 -> 0 | K77: ='COG-M'!P507 -> 0 | L77: ='COG-M'!P508 -> 0 | M77: 208,608
A78: 254 | B78: Materiales, accesorios y suministros médicos | C78: ='COG-M'!P509 -> 3,660 | D78: ='COG-M'!P510 -> 0 | E78: ='COG-M'!P511 -> 0 | F78: ='COG-M'!P512 -> 0 | G78: ='COG-M'!P513 -> 0 | H78: ='COG-M'!P514 -> 0 | I78: ='COG-M'!P515 -> 0 | J78: ='COG-M'!P516 -> 0 | K78: ='COG-M'!P517 -> 0 | L78: ='COG-M'!P518 -> 0 | M78: 3,660
A79: 255 | B79: Materiales, accesorios y suministros de laboratorio | C79: ='COG-M'!P519 -> 0 | D79: ='COG-M'!P520 -> 0 | E79: ='COG-M'!P521 -> 0 | F79: ='COG-M'!P522 -> 0 | G79: ='COG-M'!P523 -> 0 | H79: ='COG-M'!P524 -> 0 | I79: ='COG-M'!P525 -> 0 | J79: ='COG-M'!P526 -> 0 | K79: ='COG-M'!P527 -> 0 | L79: ='COG-M'!P528 -> 0 | M79: 0
A80: 256 | B80: Fibras sintéticas, hules plásticos y derivados | C80: ='COG-M'!P529 -> 30,000 | D80: ='COG-M'!P530 -> 0 | E80: ='COG-M'!P531 -> 0 | F80: ='COG-M'!P532 -> 0 | G80: ='COG-M'!P533 -> 0 | H80: ='COG-M'!P534 -> 0 | I80: ='COG-M'!P535 -> 0 | J80: ='COG-M'!P536 -> 0 | K80: ='COG-M'!P537 -> 0 | L80: ='COG-M'!P538 -> 0 | M80: 30,000
A81: 259 | B81: Otros productos químicos | C81: ='COG-M'!P539 -> 284,664 | D81: ='COG-M'!P540 -> 0 | E81: ='COG-M'!P541 -> 0 | F81: ='COG-M'!P542 -> 0 | G81: ='COG-M'!P543 -> 0 | H81: ='COG-M'!P544 -> 0 | I81: ='COG-M'!P545 -> 0 | J81: ='COG-M'!P546 -> 0 | K81: ='COG-M'!P547 -> 0 | L81: ='COG-M'!P548 -> 0 | M81: 284,664
A82: 2600 | B82: COMBUSTIBLES, LUBRICANTES Y ADITIVOS | C82: =SUM(C83:C84) -> 9,791,304 | D82: 0 | E82: 0 | F82: 0 | G82: 0 | H82: 0 | I82: 0 | J82: =SUM(J83:J84) -> 0 | K82: =SUM(K83:K84) -> 0 | L82: =SUM(L83:L84) -> 0 | M82: =SUM(M83:M84) -> 9,791,304
A83: 261 | B83: Combustibles, lubricantes y aditivos | C83: ='COG-M'!P550 -> 9,791,304 | D83: ='COG-M'!P551 -> 0 | E83: ='COG-M'!P552 -> 0 | F83: ='COG-M'!P553 -> 0 | G83: ='COG-M'!P554 -> 0 | H83: ='COG-M'!P555 -> 0 | I83: ='COG-M'!P556 -> 0 | J83: ='COG-M'!P557 -> 0 | K83: ='COG-M'!P558 -> 0 | L83: ='COG-M'!P559 -> 0 | M83: =SUM(C83:L83) -> 9,791,304
A84: 262 | B84: Carbón y sus derivados | C84: ='COG-M'!P560 -> 0 | D84: ='COG-M'!P561 -> 0 | E84: ='COG-M'!P562 -> 0 | F84: ='COG-M'!P563 -> 0 | G84: ='COG-M'!P564 -> 0 | H84: ='COG-M'!P565 -> 0 | I84: ='COG-M'!P566 -> 0 | J84: ='COG-M'!P567 -> 0 | K84: ='COG-M'!P568 -> 0 | L84: ='COG-M'!P569 -> 0 | M84: =SUM(C84:L84) -> 0
A85: 2700 | B85: VESTUARIO, BLANCOS, PRENDAS DE PROTECCIÓN Y ARTÍCULOS DEPORTIVOS | C85: =SUM(C86:C90) -> 411,108 | D85: 0 | E85: 0 | F85: 0 | G85: 0 | H85: 0 | I85: 0 | J85: =SUM(J86:J90) -> 0 | K85: =SUM(K86:K90) -> 0 | L85: =SUM(L86:L90) -> 0 | M85: =SUM(M86:M90) -> 411,108
A86: 271 | B86: Vestuario y uniformes | C86: ='COG-M'!P571 -> 273,168 | D86: ='COG-M'!P572 -> 0 | E86: ='COG-M'!P573 -> 0 | F86: ='COG-M'!P574 -> 0 | G86: ='COG-M'!P575 -> 0 | H86: ='COG-M'!P576 -> 0 | I86: ='COG-M'!P577 -> 0 | J86: ='COG-M'!P578 -> 0 | K86: ='COG-M'!P579 -> 0 | L86: ='COG-M'!P580 -> 0 | M86: =SUM(C86:L86) -> 273,168
A87: 272 | B87: Prendas de seguridad y protección personal | C87: ='COG-M'!P581 -> 0 | D87: ='COG-M'!P582 -> 0 | E87: ='COG-M'!P583 -> 0 | F87: ='COG-M'!P584 -> 0 | G87: ='COG-M'!P585 -> 0 | H87: ='COG-M'!P586 -> 0 | I87: ='COG-M'!P587 -> 0 | J87: ='COG-M'!P588 -> 0 | K87: ='COG-M'!P589 -> 0 | L87: ='COG-M'!P590 -> 0 | M87: =SUM(C87:L87) -> 0
A88: 273 | B88: Artículos deportivos | C88: ='COG-M'!P591 -> 137,940 | D88: ='COG-M'!P592 -> 0 | E88: ='COG-M'!P593 -> 0 | F88: ='COG-M'!P594 -> 0 | G88: ='COG-M'!P595 -> 0 | H88: ='COG-M'!P596 -> 0 | I88: ='COG-M'!P597 -> 0 | J88: ='COG-M'!P598 -> 0 | K88: ='COG-M'!P599 -> 0 | L88: ='COG-M'!P600 -> 0 | M88: =SUM(C88:L88) -> 137,940
A89: 274 | B89: Productos textiles | C89: ='COG-M'!P601 -> 0 | D89: ='COG-M'!P602 -> 0 | E89: ='COG-M'!P603 -> 0 | F89: ='COG-M'!P604 -> 0 | G89: ='COG-M'!P605 -> 0 | H89: ='COG-M'!P606 -> 0 | I89: ='COG-M'!P607 -> 0 | J89: ='COG-M'!P608 -> 0 | K89: ='COG-M'!P609 -> 0 | L89: ='COG-M'!P610 -> 0 | M89: =SUM(C89:L89) -> 0
A90: 275 | B90: Blancos y otros productos textiles, excepto prendas de vestir | C90: ='COG-M'!P611 -> 0 | D90: ='COG-M'!P612 -> 0 | E90: ='COG-M'!P613 -> 0 | F90: ='COG-M'!P614 -> 0 | G90: ='COG-M'!P615 -> 0 | H90: ='COG-M'!P616 -> 0 | I90: ='COG-M'!P617 -> 0 | J90: ='COG-M'!P618 -> 0 | K90: ='COG-M'!P619 -> 0 | L90: ='COG-M'!P620 -> 0 | M90: =SUM(C90:L90) -> 0
A91: 2800 | B91: MATERIALES Y SUMINISTROS PARA SEGURIDAD | C91: =SUM(C92:C94) -> 143,928 | D91: 0 | E91: 0 | F91: 0 | G91: 0 | H91: 0 | I91: 0 | J91: =SUM(J92:J94) -> 0 | K91: =SUM(K92:K94) -> 0 | L91: =SUM(L92:L94) -> 0 | M91: =SUM(M92:M94) -> 143,928
A92: 281 | B92: Sustancias y materiales explosivos | C92: ='COG-M'!P622 -> 0 | D92: ='COG-M'!P623 -> 0 | E92: ='COG-M'!P624 -> 0 | F92: ='COG-M'!P625 -> 0 | G92: ='COG-M'!P626 -> 0 | H92: ='COG-M'!P627 -> 0 | I92: ='COG-M'!P628 -> 0 | J92: ='COG-M'!P629 -> 0 | K92: ='COG-M'!P630 -> 0 | L92: ='COG-M'!P631 -> 0 | M92: =SUM(C92:L92) -> 0
A93: 282 | B93: Materiales de seguridad pública | C93: ='COG-M'!P632 -> 143,928 | D93: ='COG-M'!P633 -> 0 | E93: ='COG-M'!P634 -> 0 | F93: ='COG-M'!P635 -> 0 | G93: ='COG-M'!P636 -> 0 | H93: ='COG-M'!P637 -> 0 | I93: ='COG-M'!P638 -> 0 | J93: ='COG-M'!P639 -> 0 | K93: ='COG-M'!P640 -> 0 | L93: ='COG-M'!P641 -> 0 | M93: =SUM(C93:L93) -> 143,928
A94: 283 | B94: Prendas de protección para seguridad pública y nacional | C94: ='COG-M'!P642 -> 0 | D94: ='COG-M'!P643 -> 0 | E94: ='COG-M'!P644 -> 0 | F94: ='COG-M'!P645 -> 0 | G94: ='COG-M'!P646 -> 0 | H94: ='COG-M'!P647 -> 0 | I94: ='COG-M'!P648 -> 0 | J94: ='COG-M'!P649 -> 0 | K94: ='COG-M'!P650 -> 0 | L94: ='COG-M'!P651 -> 0 | M94: =SUM(C94:L94) -> 0
A95: 2900 | B95: HERRAMIENTAS, REFACCIONES Y ACCESORIOS MENORES | C95: =SUM(C96:C104) -> 2,611,536 | D95: 0 | E95: 0 | F95: 0 | G95: 0 | H95: 0 | I95: 0 | J95: =SUM(J96:J104) -> 0 | K95: =SUM(K96:K104) -> 0 | L95: =SUM(L96:L104) -> 0 | M95: =SUM(M96:M104) -> 2,611,536
A96: 291 | B96: Herramientas menores | C96: ='COG-M'!P653 -> 484,392 | D96: ='COG-M'!P654 -> 0 | E96: ='COG-M'!P655 -> 0 | F96: ='COG-M'!P656 -> 0 | G96: ='COG-M'!P657 -> 0 | H96: ='COG-M'!P658 -> 0 | I96: ='COG-M'!P659 -> 0 | J96: ='COG-M'!P660 -> 0 | K96: ='COG-M'!P661 -> 0 | L96: ='COG-M'!P662 -> 0 | M96: =SUM(C96:L96) -> 484,392
A97: 292 | B97: Refacciones y accesorios menores de edificios | C97: ='COG-M'!P663 -> 37,068 | D97: ='COG-M'!P664 -> 0 | E97: ='COG-M'!P665 -> 0 | F97: ='COG-M'!P666 -> 0 | G97: ='COG-M'!P667 -> 0 | H97: ='COG-M'!P668 -> 0 | I97: ='COG-M'!P669 -> 0 | J97: ='COG-M'!P670 -> 0 | K97: ='COG-M'!P671 -> 0 | L97: ='COG-M'!P672 -> 0 | M97: 37,068
A98: 293 | B98: Refacciones y accesorios menores de mobiliario y equipo de administración, educacional y recreativo | C98: ='COG-M'!P673 -> 9,744 | D98: ='COG-M'!P674 -> 0 | E98: ='COG-M'!P675 -> 0 | F98: ='COG-M'!P676 -> 0 | G98: ='COG-M'!P677 -> 0 | H98: ='COG-M'!P678 -> 0 | I98: ='COG-M'!P679 -> 0 | J98: ='COG-M'!P680 -> 0 | K98: ='COG-M'!P681 -> 0 | L98: ='COG-M'!P682 -> 0 | M98: 9,744
A99: 294 | B99: Refacciones y accesorios menores de equipo de cómputo y tecnologías de la información | C99: ='COG-M'!P683 -> 59,760 | D99: ='COG-M'!P684 -> 0 | E99: ='COG-M'!P685 -> 0 | F99: ='COG-M'!P686 -> 0 | G99: ='COG-M'!P687 -> 0 | H99: ='COG-M'!P688 -> 0 | I99: ='COG-M'!P689 -> 0 | J99: ='COG-M'!P690 -> 0 | K99: ='COG-M'!P691 -> 0 | L99: ='COG-M'!P692 -> 0 | M99: 59,760
A100: 295 | B100: Refacciones y accesorios menores de equipo e instrumental médico y de laboratorio | C100: ='COG-M'!P693 -> 0 | D100: ='COG-M'!P694 -> 0 | E100: ='COG-M'!P695 -> 0 | F100: ='COG-M'!P696 -> 0 | G100: ='COG-M'!P697 -> 0 | H100: ='COG-M'!P698 -> 0 | I100: ='COG-M'!P699 -> 0 | J100: ='COG-M'!P700 -> 0 | K100: ='COG-M'!P701 -> 0 | L100: ='COG-M'!P702 -> 0 | M100: 0
A101: 296 | B101: Refacciones y accesorios menores de equipo de transporte | C101: ='COG-M'!P703 -> 1,115,472 | D101: ='COG-M'!P704 -> 0 | E101: ='COG-M'!P705 -> 0 | F101: ='COG-M'!P706 -> 0 | G101: ='COG-M'!P707 -> 0 | H101: ='COG-M'!P708 -> 0 | I101: ='COG-M'!P709 -> 0 | J101: ='COG-M'!P710 -> 0 | K101: ='COG-M'!P711 -> 0 | L101: ='COG-M'!P712 -> 0 | M101: 1,115,472
A102: 297 | B102: Refacciones y accesorios menores de equipo de defensa y seguridad | C102: ='COG-M'!P713 -> 0 | D102: ='COG-M'!P714 -> 0 | E102: ='COG-M'!P715 -> 0 | F102: ='COG-M'!P716 -> 0 | G102: ='COG-M'!P717 -> 0 | H102: ='COG-M'!P718 -> 0 | I102: ='COG-M'!P719 -> 0 | J102: ='COG-M'!P720 -> 0 | K102: ='COG-M'!P721 -> 0 | L102: ='COG-M'!P722 -> 0 | M102: 0
A103: 298 | B103: Refacciones y accesorios menores de maquinaria y otros equipos | C103: ='COG-M'!P723 -> 905,100 | D103: ='COG-M'!P724 -> 0 | E103: ='COG-M'!P725 -> 0 | F103: ='COG-M'!P726 -> 0 | G103: ='COG-M'!P727 -> 0 | H103: ='COG-M'!P728 -> 0 | I103: ='COG-M'!P729 -> 0 | J103: ='COG-M'!P730 -> 0 | K103: ='COG-M'!P731 -> 0 | L103: ='COG-M'!P732 -> 0 | M103: 905,100
A104: 299 | B104: Refacciones y accesorios menores otros bienes muebles | C104: ='COG-M'!P733 -> 0 | D104: ='COG-M'!P734 -> 0 | E104: ='COG-M'!P735 -> 0 | F104: ='COG-M'!P736 -> 0 | G104: ='COG-M'!P737 -> 0 | H104: ='COG-M'!P738 -> 0 | I104: ='COG-M'!P739 -> 0 | J104: ='COG-M'!P740 -> 0 | K104: ='COG-M'!P741 -> 0 | L104: ='COG-M'!P742 -> 0 | M104: 0
A105: 3000 | B105: SERVICIOS GENERALES | C105: =C106+C116+C126+C136+C146+C156+C164+C174+C180 -> 28,688,652 | D105: =D106+D116+D126+D136+D146+D156+D164+D174+D180 -> 0 | E105: 0 | F105: 0 | G105: 0 | H105: 0 | I105: 0 | J105: 0 | K105: 0 | L105: 0 | M105: 28,688,652
A106: 3100 | B106: SERVICIOS BÁSICOS | C106: =SUM(C107:C115) -> 5,368,704 | D106: =SUM(D107:D115) -> 0 | E106: 0 | F106: 0 | G106: 0 | H106: 0 | I106: 0 | J106: 0 | K106: 0 | L106: 0 | M106: 5,368,704
A107: 311 | B107: Energía eléctrica | C107: ='COG-M'!P745 -> 4,985,052 | D107: ='COG-M'!P746 -> 0 | E107: ='COG-M'!P747 -> 0 | F107: ='COG-M'!P748 -> 0 | G107: ='COG-M'!P749 -> 0 | H107: ='COG-M'!P750 -> 0 | I107: ='COG-M'!P751 -> 0 | J107: ='COG-M'!P752 -> 0 | K107: ='COG-M'!P753 -> 0 | L107: ='COG-M'!P754 -> 0 | M107: =SUM(C107:L107) -> 4,985,052
A108: 312 | B108: Gas | C108: ='COG-M'!P755 -> 25,044 | D108: ='COG-M'!P756 -> 0 | E108: ='COG-M'!P757 -> 0 | F108: ='COG-M'!P758 -> 0 | G108: ='COG-M'!P759 -> 0 | H108: ='COG-M'!P760 -> 0 | I108: ='COG-M'!P761 -> 0 | J108: ='COG-M'!P762 -> 0 | K108: ='COG-M'!P763 -> 0 | L108: ='COG-M'!P764 -> 0 | M108: 25,044
A109: 313 | B109: Agua | C109: ='COG-M'!P765 -> 0 | D109: ='COG-M'!P766 -> 0 | E109: ='COG-M'!P767 -> 0 | F109: ='COG-M'!P768 -> 0 | G109: ='COG-M'!P769 -> 0 | H109: ='COG-M'!P770 -> 0 | I109: ='COG-M'!P771 -> 0 | J109: ='COG-M'!P772 -> 0 | K109: ='COG-M'!P773 -> 0 | L109: ='COG-M'!P774 -> 0 | M109: 0
A110: 314 | B110: Telefonía tradicional | C110: ='COG-M'!P775 -> 146,292 | D110: ='COG-M'!P776 -> 0 | E110: ='COG-M'!P777 -> 0 | F110: ='COG-M'!P778 -> 0 | G110: ='COG-M'!P779 -> 0 | H110: ='COG-M'!P780 -> 0 | I110: ='COG-M'!P781 -> 0 | J110: ='COG-M'!P782 -> 0 | K110: ='COG-M'!P783 -> 0 | L110: ='COG-M'!P784 -> 0 | M110: 146,292
A111: 315 | B111: Telefonía celular | C111: ='COG-M'!P785 -> 72,420 | D111: ='COG-M'!P786 -> 0 | E111: ='COG-M'!P787 -> 0 | F111: ='COG-M'!P788 -> 0 | G111: ='COG-M'!P789 -> 0 | H111: ='COG-M'!P790 -> 0 | I111: ='COG-M'!P791 -> 0 | J111: ='COG-M'!P792 -> 0 | K111: ='COG-M'!P793 -> 0 | L111: ='COG-M'!P794 -> 0 | M111: 72,420
A112: 316 | B112: Servicios de telecomunicaciones y satélites | C112: ='COG-M'!P795 -> 0 | D112: ='COG-M'!P796 -> 0 | E112: ='COG-M'!P797 -> 0 | F112: ='COG-M'!P798 -> 0 | G112: ='COG-M'!P799 -> 0 | H112: ='COG-M'!P800 -> 0 | I112: ='COG-M'!P801 -> 0 | J112: ='COG-M'!P802 -> 0 | K112: ='COG-M'!P803 -> 0 | L112: ='COG-M'!P804 -> 0 | M112: 0
A113: 317 | B113: Servicios de acceso de Internet, redes y procesamiento de información | C113: ='COG-M'!P805 -> 139,368 | D113: ='COG-M'!P806 -> 0 | E113: ='COG-M'!P807 -> 0 | F113: ='COG-M'!P808 -> 0 | G113: ='COG-M'!P809 -> 0 | H113: ='COG-M'!P810 -> 0 | I113: ='COG-M'!P811 -> 0 | J113: ='COG-M'!P812 -> 0 | K113: ='COG-M'!P813 -> 0 | L113: ='COG-M'!P814 -> 0 | M113: 139,368
A114: 318 | B114: Servicios postales y telegráficos | C114: ='COG-M'!P815 -> 528 | D114: ='COG-M'!P816 -> 0 | E114: ='COG-M'!P817 -> 0 | F114: ='COG-M'!P818 -> 0 | G114: ='COG-M'!P819 -> 0 | H114: ='COG-M'!P820 -> 0 | I114: ='COG-M'!P821 -> 0 | J114: ='COG-M'!P822 -> 0 | K114: ='COG-M'!P823 -> 0 | L114: ='COG-M'!P824 -> 0 | M114: 528
A115: 319 | B115: Servicios integrales y otros servicios | C115: ='COG-M'!P825 -> 0 | D115: ='COG-M'!P826 -> 0 | E115: ='COG-M'!P827 -> 0 | F115: ='COG-M'!P828 -> 0 | G115: ='COG-M'!P829 -> 0 | H115: ='COG-M'!P830 -> 0 | I115: ='COG-M'!P831 -> 0 | J115: ='COG-M'!P832 -> 0 | K115: ='COG-M'!P833 -> 0 | L115: ='COG-M'!P834 -> 0 | M115: 0
A116: 3200 | B116: SERVICIOS DE ARRENDAMIENTO | C116: =SUM(C117:C125) -> 9,355,956 | D116: =SUM(D117:D125) -> 0 | E116: 0 | F116: 0 | G116: 0 | H116: 0 | I116: 0 | J116: 0 | K116: 0 | L116: 0 | M116: 9,355,956
A117: 321 | B117: Arrendamiento de terrenos | C117: ='COG-M'!P836 -> 0 | D117: ='COG-M'!P837 -> 0 | E117: ='COG-M'!P838 -> 0 | F117: ='COG-M'!P839 -> 0 | G117: ='COG-M'!P840 -> 0 | H117: ='COG-M'!P841 -> 0 | I117: ='COG-M'!P842 -> 0 | J117: ='COG-M'!P843 -> 0 | K117: ='COG-M'!P844 -> 0 | L117: ='COG-M'!P845 -> 0 | M117: =SUM(C117:L117) -> 0
A118: 322 | B118: Arrendamiento de edificios | C118: ='COG-M'!P846 -> 171,000 | D118: ='COG-M'!P847 -> 0 | E118: ='COG-M'!P848 -> 0 | F118: ='COG-M'!P849 -> 0 | G118: ='COG-M'!P850 -> 0 | H118: ='COG-M'!P851 -> 0 | I118: ='COG-M'!P852 -> 0 | J118: ='COG-M'!P853 -> 0 | K118: ='COG-M'!P854 -> 0 | L118: ='COG-M'!P855 -> 0 | M118: 171,000
A119: 323 | B119: Arrendamiento de mobiliario y equipo de administración, educacional y recreativo | C119: ='COG-M'!P856 -> 0 | D119: ='COG-M'!P857 -> 0 | E119: ='COG-M'!P858 -> 0 | F119: ='COG-M'!P859 -> 0 | G119: ='COG-M'!P860 -> 0 | H119: ='COG-M'!P861 -> 0 | I119: ='COG-M'!P862 -> 0 | J119: ='COG-M'!P863 -> 0 | K119: ='COG-M'!P864 -> 0 | L119: ='COG-M'!P865 -> 0 | M119: 0
A120: 324 | B120: Arrendamiento de equipo e instrumental médico y de laboratorio | C120: ='COG-M'!P866 -> 0 | D120: ='COG-M'!P867 -> 0 | E120: ='COG-M'!P868 -> 0 | F120: ='COG-M'!P869 -> 0 | G120: ='COG-M'!P870 -> 0 | H120: ='COG-M'!P871 -> 0 | I120: ='COG-M'!P872 -> 0 | J120: ='COG-M'!P873 -> 0 | K120: ='COG-M'!P874 -> 0 | L120: ='COG-M'!P875 -> 0 | M120: 0
A121: 325 | B121: Arrendamiento de equipo de transporte | C121: ='COG-M'!P876 -> 0 | D121: ='COG-M'!P877 -> 0 | E121: ='COG-M'!P878 -> 0 | F121: ='COG-M'!P879 -> 0 | G121: ='COG-M'!P880 -> 0 | H121: ='COG-M'!P881 -> 0 | I121: ='COG-M'!P882 -> 0 | J121: ='COG-M'!P883 -> 0 | K121: ='COG-M'!P884 -> 0 | L121: ='COG-M'!P885 -> 0 | M121: 0
A122: 326 | B122: Arrendamiento de maquinaria, otros equipos y herramientas | C122: ='COG-M'!P886 -> 9,184,956 | D122: ='COG-M'!P887 -> 0 | E122: ='COG-M'!P888 -> 0 | F122: ='COG-M'!P889 -> 0 | G122: ='COG-M'!P890 -> 0 | H122: ='COG-M'!P891 -> 0 | I122: ='COG-M'!P892 -> 0 | J122: ='COG-M'!P893 -> 0 | K122: ='COG-M'!P894 -> 0 | L122: ='COG-M'!P895 -> 0 | M122: 9,184,956
A123: 327 | B123: Arrendamiento de activos intangibles | C123: ='COG-M'!P896 -> 0 | D123: ='COG-M'!P897 -> 0 | E123: ='COG-M'!P898 -> 0 | F123: ='COG-M'!P899 -> 0 | G123: ='COG-M'!P900 -> 0 | H123: ='COG-M'!P901 -> 0 | I123: ='COG-M'!P902 -> 0 | J123: ='COG-M'!P903 -> 0 | K123: ='COG-M'!P904 -> 0 | L123: ='COG-M'!P905 -> 0 | M123: 0
A124: 328 | B124: Arrendamiento financiero | C124: ='COG-M'!P906 -> 0 | D124: ='COG-M'!P907 -> 0 | E124: ='COG-M'!P908 -> 0 | F124: ='COG-M'!P909 -> 0 | G124: ='COG-M'!P910 -> 0 | H124: ='COG-M'!P911 -> 0 | I124: ='COG-M'!P912 -> 0 | J124: ='COG-M'!P913 -> 0 | K124: ='COG-M'!P914 -> 0 | L124: ='COG-M'!P915 -> 0 | M124: 0
A125: 329 | B125: Otros arrendamientos | C125: ='COG-M'!P916 -> 0 | D125: ='COG-M'!P917 -> 0 | E125: ='COG-M'!P918 -> 0 | F125: ='COG-M'!P919 -> 0 | G125: ='COG-M'!P920 -> 0 | H125: ='COG-M'!P921 -> 0 | I125: ='COG-M'!P922 -> 0 | J125: ='COG-M'!P923 -> 0 | K125: ='COG-M'!P924 -> 0 | L125: ='COG-M'!P925 -> 0 | M125: 0
A126: 3300 | B126: SERVICIOS PROFESIONALES, CIENTÍFICOS, TÉCNICOS Y OTROS SERVICIOS | C126: =SUM(C127:C135) -> 1,786,200 | D126: =SUM(D127:D135) -> 0 | E126: 0 | F126: 0 | G126: 0 | H126: 0 | I126: 0 | J126: 0 | K126: 0 | L126: 0 | M126: 1,786,200
A127: 331 | B127: Servicios legales, de contabilidad, auditoría y relacionados | C127: ='COG-M'!P927 -> 1,195,776 | D127: ='COG-M'!P928 -> 0 | E127: ='COG-M'!P929 -> 0 | F127: ='COG-M'!P930 -> 0 | G127: ='COG-M'!P931 -> 0 | H127: ='COG-M'!P932 -> 0 | I127: ='COG-M'!P933 -> 0 | J127: ='COG-M'!P934 -> 0 | K127: ='COG-M'!P935 -> 0 | L127: ='COG-M'!P936 -> 0 | M127: =SUM(C127:L127) -> 1,195,776
A128: 332 | B128: Servicios de diseño, arquitectura, ingeniería y actividades relacionadas | C128: ='COG-M'!P937 -> 31,140 | D128: ='COG-M'!P938 -> 0 | E128: ='COG-M'!P939 -> 0 | F128: ='COG-M'!P940 -> 0 | G128: ='COG-M'!P941 -> 0 | H128: ='COG-M'!P942 -> 0 | I128: ='COG-M'!P943 -> 0 | J128: ='COG-M'!P944 -> 0 | K128: ='COG-M'!P945 -> 0 | L128: ='COG-M'!P946 -> 0 | M128: 31,140
A129: 333 | B129: Servicios de consultoría administrativa, procesos, técnica y en tecnologías de la información | C129: ='COG-M'!P947 -> 0 | D129: ='COG-M'!P948 -> 0 | E129: ='COG-M'!P949 -> 0 | F129: ='COG-M'!P950 -> 0 | G129: ='COG-M'!P951 -> 0 | H129: ='COG-M'!P952 -> 0 | I129: ='COG-M'!P953 -> 0 | J129: ='COG-M'!P954 -> 0 | K129: ='COG-M'!P955 -> 0 | L129: ='COG-M'!P956 -> 0 | M129: 0
A130: 334 | B130: Servicios de capacitación | C130: ='COG-M'!P957 -> 389,508 | D130: ='COG-M'!P958 -> 0 | E130: ='COG-M'!P959 -> 0 | F130: ='COG-M'!P960 -> 0 | G130: ='COG-M'!P961 -> 0 | H130: ='COG-M'!P962 -> 0 | I130: ='COG-M'!P963 -> 0 | J130: ='COG-M'!P964 -> 0 | K130: ='COG-M'!P965 -> 0 | L130: ='COG-M'!P966 -> 0 | M130: 389,508
A131: 335 | B131: Servicios de investigación científica y desarrollo | C131: ='COG-M'!P967 -> 0 | D131: ='COG-M'!P968 -> 0 | E131: ='COG-M'!P969 -> 0 | F131: ='COG-M'!P970 -> 0 | G131: ='COG-M'!P971 -> 0 | H131: ='COG-M'!P972 -> 0 | I131: ='COG-M'!P973 -> 0 | J131: ='COG-M'!P974 -> 0 | K131: ='COG-M'!P975 -> 0 | L131: ='COG-M'!P976 -> 0 | M131: 0
A132: 336 | B132: Servicios de apoyo administrativo, traducción, fotocopiado e impresión | C132: ='COG-M'!P977 -> 169,776 | D132: ='COG-M'!P978 -> 0 | E132: ='COG-M'!P979 -> 0 | F132: ='COG-M'!P980 -> 0 | G132: ='COG-M'!P981 -> 0 | H132: ='COG-M'!P982 -> 0 | I132: ='COG-M'!P983 -> 0 | J132: ='COG-M'!P984 -> 0 | K132: ='COG-M'!P985 -> 0 | L132: ='COG-M'!P986 -> 0 | M132: 169,776
A133: 337 | B133: Servicios de protección y seguridad | C133: ='COG-M'!P987 -> 0 | D133: ='COG-M'!P988 -> 0 | E133: ='COG-M'!P989 -> 0 | F133: ='COG-M'!P990 -> 0 | G133: ='COG-M'!P991 -> 0 | H133: ='COG-M'!P992 -> 0 | I133: ='COG-M'!P993 -> 0 | J133: ='COG-M'!P994 -> 0 | K133: ='COG-M'!P995 -> 0 | L133: ='COG-M'!P996 -> 0 | M133: 0
A134: 338 | B134: Servicios de vigilancia | C134: ='COG-M'!P997 -> 0 | D134: ='COG-M'!P998 -> 0 | E134: ='COG-M'!P999 -> 0 | F134: ='COG-M'!P1000 -> 0 | G134: ='COG-M'!P1001 -> 0 | H134: ='COG-M'!P1002 -> 0 | I134: ='COG-M'!P1003 -> 0 | J134: ='COG-M'!P1004 -> 0 | K134: ='COG-M'!P1005 -> 0 | L134: ='COG-M'!P1006 -> 0 | M134: 0
A135: 339 | B135: Servicios profesionales, científicos y técnicos integrales | C135: ='COG-M'!P1007 -> 0 | D135: ='COG-M'!P1008 -> 0 | E135: ='COG-M'!P1009 -> 0 | F135: ='COG-M'!P1010 -> 0 | G135: ='COG-M'!P1011 -> 0 | H135: ='COG-M'!P1012 -> 0 | I135: ='COG-M'!P1013 -> 0 | J135: ='COG-M'!P1014 -> 0 | K135: ='COG-M'!P1015 -> 0 | L135: ='COG-M'!P1016 -> 0 | M135: 0
A136: 3400 | B136: SERVICIOS FINANCIEROS, BANCARIOS Y COMERCIALES | C136: =SUM(C137:C145) -> 642,672 | D136: =SUM(D137:D145) -> 0 | E136: 0 | F136: 0 | G136: 0 | H136: 0 | I136: 0 | J136: 0 | K136: 0 | L136: 0 | M136: 642,672
A137: 341 | B137: Servicios financieros y bancarios | C137: ='COG-M'!P1018 -> 107,568 | D137: ='COG-M'!P1019 -> 0 | E137: ='COG-M'!P1020 -> 0 | F137: ='COG-M'!P1021 -> 0 | G137: ='COG-M'!P1022 -> 0 | H137: ='COG-M'!P1023 -> 0 | I137: ='COG-M'!P1024 -> 0 | J137: ='COG-M'!P1025 -> 0 | K137: ='COG-M'!P1026 -> 0 | L137: ='COG-M'!P1027 -> 0 | M137: =SUM(C137:L137) -> 107,568
A138: 342 | B138: Servicios de cobranza, investigación crediticia y similar | C138: ='COG-M'!P1028 -> 0 | D138: ='COG-M'!P1029 -> 0 | E138: ='COG-M'!P1030 -> 0 | F138: ='COG-M'!P1031 -> 0 | G138: ='COG-M'!P1032 -> 0 | H138: ='COG-M'!P1033 -> 0 | I138: ='COG-M'!P1034 -> 0 | J138: ='COG-M'!P1035 -> 0 | K138: ='COG-M'!P1036 -> 0 | L138: ='COG-M'!P1037 -> 0 | M138: 0
A139: 343 | B139: Servicios de recaudación, traslado y custodia de valores | C139: ='COG-M'!P1038 -> 0 | D139: ='COG-M'!P1039 -> 0 | E139: ='COG-M'!P1040 -> 0 | F139: ='COG-M'!P1041 -> 0 | G139: ='COG-M'!P1042 -> 0 | H139: ='COG-M'!P1043 -> 0 | I139: ='COG-M'!P1044 -> 0 | J139: ='COG-M'!P1045 -> 0 | K139: ='COG-M'!P1046 -> 0 | L139: ='COG-M'!P1047 -> 0 | M139: 0
A140: 344 | B140: Seguros de responsabilidad patrimonial y fianzas | C140: ='COG-M'!P1048 -> 120,000 | D140: ='COG-M'!P1049 -> 0 | E140: ='COG-M'!P1050 -> 0 | F140: ='COG-M'!P1051 -> 0 | G140: ='COG-M'!P1052 -> 0 | H140: ='COG-M'!P1053 -> 0 | I140: ='COG-M'!P1054 -> 0 | J140: ='COG-M'!P1055 -> 0 | K140: ='COG-M'!P1056 -> 0 | L140: ='COG-M'!P1057 -> 0 | M140: 120,000
A141: 345 | B141: Seguro de bienes patrimoniales | C141: ='COG-M'!P1058 -> 219,996 | D141: ='COG-M'!P1059 -> 0 | E141: ='COG-M'!P1060 -> 0 | F141: ='COG-M'!P1061 -> 0 | G141: ='COG-M'!P1062 -> 0 | H141: ='COG-M'!P1063 -> 0 | I141: ='COG-M'!P1064 -> 0 | J141: ='COG-M'!P1065 -> 0 | K141: ='COG-M'!P1066 -> 0 | L141: ='COG-M'!P1067 -> 0 | M141: 219,996
A142: 346 | B142: Almacenaje, envase y embalaje | C142: ='COG-M'!P1068 -> 0 | D142: ='COG-M'!P1069 -> 0 | E142: ='COG-M'!P1070 -> 0 | F142: ='COG-M'!P1071 -> 0 | G142: ='COG-M'!P1072 -> 0 | H142: ='COG-M'!P1073 -> 0 | I142: ='COG-M'!P1074 -> 0 | J142: ='COG-M'!P1075 -> 0 | K142: ='COG-M'!P1076 -> 0 | L142: ='COG-M'!P1077 -> 0 | M142: 0
A143: 347 | B143: Fletes y maniobras | C143: ='COG-M'!P1078 -> 187,572 | D143: ='COG-M'!P1079 -> 0 | E143: ='COG-M'!P1080 -> 0 | F143: ='COG-M'!P1081 -> 0 | G143: ='COG-M'!P1082 -> 0 | H143: ='COG-M'!P1083 -> 0 | I143: ='COG-M'!P1084 -> 0 | J143: ='COG-M'!P1085 -> 0 | K143: ='COG-M'!P1086 -> 0 | L143: ='COG-M'!P1087 -> 0 | M143: 187,572
A144: 348 | B144: Comisiones por ventas | C144: ='COG-M'!P1088 -> 0 | D144: ='COG-M'!P1089 -> 0 | E144: ='COG-M'!P1090 -> 0 | F144: ='COG-M'!P1091 -> 0 | G144: ='COG-M'!P1092 -> 0 | H144: ='COG-M'!P1093 -> 0 | I144: ='COG-M'!P1094 -> 0 | J144: ='COG-M'!P1095 -> 0 | K144: ='COG-M'!P1096 -> 0 | L144: ='COG-M'!P1097 -> 0 | M144: 0
A145: 349 | B145: Servicios financieros, bancarios y comerciales integrales | C145: ='COG-M'!P1098 -> 7,536 | D145: ='COG-M'!P1099 -> 0 | E145: ='COG-M'!P1100 -> 0 | F145: ='COG-M'!P1101 -> 0 | G145: ='COG-M'!P1102 -> 0 | H145: ='COG-M'!P1103 -> 0 | I145: ='COG-M'!P1104 -> 0 | J145: ='COG-M'!P1105 -> 0 | K145: ='COG-M'!P1106 -> 0 | L145: ='COG-M'!P1107 -> 0 | M145: 7,536
A146: 3500 | B146: SERVICIOS DE INSTALACIÓN, REPARACIÓN, MANTENIMIENTO Y CONSERVACIÓN | C146: =SUM(C147:C155) -> 5,236,836 | D146: =SUM(D147:D155) -> 0 | E146: 0 | F146: 0 | G146: 0 | H146: 0 | I146: 0 | J146: 0 | K146: 0 | L146: 0 | M146: 5,236,836
A147: 351 | B147: Conservación y mantenimiento menor de inmuebles | C147: ='COG-M'!P1109 -> 1,816,188 | D147: ='COG-M'!P1110 -> 0 | E147: ='COG-M'!P1111 -> 0 | F147: ='COG-M'!P1112 -> 0 | G147: ='COG-M'!P1113 -> 0 | H147: ='COG-M'!P1114 -> 0 | I147: ='COG-M'!P1115 -> 0 | J147: ='COG-M'!P1116 -> 0 | K147: ='COG-M'!P1117 -> 0 | L147: ='COG-M'!P1118 -> 0 | M147: =SUM(C147:L147) -> 1,816,188
A148: 352 | B148: Instalación, reparación y mantenimiento de mobiliario y equipo de administración, educacional y recreativo | C148: ='COG-M'!P1119 -> 32,712 | D148: ='COG-M'!P1120 -> 0 | E148: ='COG-M'!P1121 -> 0 | F148: ='COG-M'!P1122 -> 0 | G148: ='COG-M'!P1123 -> 0 | H148: ='COG-M'!P1124 -> 0 | I148: ='COG-M'!P1125 -> 0 | J148: ='COG-M'!P1126 -> 0 | K148: ='COG-M'!P1127 -> 0 | L148: ='COG-M'!P1128 -> 0 | M148: 32,712
A149: 353 | B149: Instalación, reparación y mantenimiento de equipo de cómputo y tecnología de la información | C149: ='COG-M'!P1129 -> 0 | D149: ='COG-M'!P1130 -> 0 | E149: ='COG-M'!P1131 -> 0 | F149: ='COG-M'!P1132 -> 0 | G149: ='COG-M'!P1133 -> 0 | H149: ='COG-M'!P1134 -> 0 | I149: ='COG-M'!P1135 -> 0 | J149: ='COG-M'!P1136 -> 0 | K149: ='COG-M'!P1137 -> 0 | L149: ='COG-M'!P1138 -> 0 | M149: 0
A150: 354 | B150: Instalación, reparación y mantenimiento de equipo e instrumental médico y de laboratorio | C150: ='COG-M'!P1139 -> 0 | D150: ='COG-M'!P1140 -> 0 | E150: ='COG-M'!P1141 -> 0 | F150: ='COG-M'!P1142 -> 0 | G150: ='COG-M'!P1143 -> 0 | H150: ='COG-M'!P1144 -> 0 | I150: ='COG-M'!P1145 -> 0 | J150: ='COG-M'!P1146 -> 0 | K150: ='COG-M'!P1147 -> 0 | L150: ='COG-M'!P1148 -> 0 | M150: 0
A151: 355 | B151: Reparación y mantenimiento de equipo de transporte | C151: ='COG-M'!P1149 -> 2,399,880 | D151: ='COG-M'!P1150 -> 0 | E151: ='COG-M'!P1151 -> 0 | F151: ='COG-M'!P1152 -> 0 | G151: ='COG-M'!P1153 -> 0 | H151: ='COG-M'!P1154 -> 0 | I151: ='COG-M'!P1155 -> 0 | J151: ='COG-M'!P1156 -> 0 | K151: ='COG-M'!P1157 -> 0 | L151: ='COG-M'!P1158 -> 0 | M151: 2,399,880
A152: 356 | B152: Reparación y mantenimiento de equipo de defensa y seguridad | C152: ='COG-M'!P1159 -> 0 | D152: ='COG-M'!P1160 -> 0 | E152: ='COG-M'!P1161 -> 0 | F152: ='COG-M'!P1162 -> 0 | G152: ='COG-M'!P1163 -> 0 | H152: ='COG-M'!P1164 -> 0 | I152: ='COG-M'!P1165 -> 0 | J152: ='COG-M'!P1166 -> 0 | K152: ='COG-M'!P1167 -> 0 | L152: ='COG-M'!P1168 -> 0 | M152: 0
A153: 357 | B153: Instalación, reparación y mantenimiento de maquinaria, otros equipos y herramienta | C153: ='COG-M'!P1169 -> 557,088 | D153: ='COG-M'!P1170 -> 0 | E153: ='COG-M'!P1171 -> 0 | F153: ='COG-M'!P1172 -> 0 | G153: ='COG-M'!P1173 -> 0 | H153: ='COG-M'!P1174 -> 0 | I153: ='COG-M'!P1175 -> 0 | J153: ='COG-M'!P1176 -> 0 | K153: ='COG-M'!P1177 -> 0 | L153: ='COG-M'!P1178 -> 0 | M153: 557,088
A154: 358 | B154: Servicios de limpieza y manejo de desechos | C154: ='COG-M'!P1179 -> 247,056 | D154: ='COG-M'!P1180 -> 0 | E154: ='COG-M'!P1181 -> 0 | F154: ='COG-M'!P1182 -> 0 | G154: ='COG-M'!P1183 -> 0 | H154: ='COG-M'!P1184 -> 0 | I154: ='COG-M'!P1185 -> 0 | J154: ='COG-M'!P1186 -> 0 | K154: ='COG-M'!P1187 -> 0 | L154: ='COG-M'!P1188 -> 0 | M154: 247,056
A155: 359 | B155: Servicios de jardinería y fumigación | C155: ='COG-M'!P1189 -> 183,912 | D155: ='COG-M'!P1190 -> 0 | E155: ='COG-M'!P1191 -> 0 | F155: ='COG-M'!P1192 -> 0 | G155: ='COG-M'!P1193 -> 0 | H155: ='COG-M'!P1194 -> 0 | I155: ='COG-M'!P1195 -> 0 | J155: ='COG-M'!P1196 -> 0 | K155: ='COG-M'!P1197 -> 0 | L155: ='COG-M'!P1198 -> 0 | M155: 183,912
A156: 3600 | B156: SERVICIOS DE COMUNICACIÓN SOCIAL Y PUBLICIDAD | C156: =SUM(C157:C163) -> 40,272 | D156: =SUM(D157:D163) -> 0 | E156: 0 | F156: 0 | G156: 0 | H156: 0 | I156: 0 | J156: 0 | K156: 0 | L156: 0 | M156: 40,272
A157: 361 | B157: Difusión por radio, televisión y otros medios de mensajes sobre programas y actividades gubernamentales | C157: ='COG-M'!P1200 -> 40,272 | D157: ='COG-M'!P1201 -> 0 | E157: ='COG-M'!P1202 -> 0 | F157: ='COG-M'!P1203 -> 0 | G157: ='COG-M'!P1204 -> 0 | H157: ='COG-M'!P1205 -> 0 | I157: ='COG-M'!P1206 -> 0 | J157: ='COG-M'!P1207 -> 0 | K157: ='COG-M'!P1208 -> 0 | L157: ='COG-M'!P1209 -> 0 | M157: =SUM(C157:L157) -> 40,272
A158: 362 | B158: Difusión por radio, televisión y otros medios de mensajes comerciales para promover la venta de bienes o servicios | C158: ='COG-M'!P1210 -> 0 | D158: ='COG-M'!P1211 -> 0 | E158: ='COG-M'!P1212 -> 0 | F158: ='COG-M'!P1213 -> 0 | G158: ='COG-M'!P1214 -> 0 | H158: ='COG-M'!P1215 -> 0 | I158: ='COG-M'!P1216 -> 0 | J158: ='COG-M'!P1217 -> 0 | K158: ='COG-M'!P1218 -> 0 | L158: ='COG-M'!P1219 -> 0 | M158: 0
A159: 363 | B159: Servicios de creatividad, preproducción y producción de publicidad, excepto Internet | C159: ='COG-M'!P1220 -> 0 | D159: ='COG-M'!P1221 -> 0 | E159: ='COG-M'!P1222 -> 0 | F159: ='COG-M'!P1223 -> 0 | G159: ='COG-M'!P1224 -> 0 | H159: ='COG-M'!P1225 -> 0 | I159: ='COG-M'!P1226 -> 0 | J159: ='COG-M'!P1227 -> 0 | K159: ='COG-M'!P1228 -> 0 | L159: ='COG-M'!P1229 -> 0 | M159: 0
A160: 364 | B160: Servicios de revelado de fotografías | C160: ='COG-M'!P1230 -> 0 | D160: ='COG-M'!P1231 -> 0 | E160: ='COG-M'!P1232 -> 0 | F160: ='COG-M'!P1233 -> 0 | G160: ='COG-M'!P1234 -> 0 | H160: ='COG-M'!P1235 -> 0 | I160: ='COG-M'!P1236 -> 0 | J160: ='COG-M'!P1237 -> 0 | K160: ='COG-M'!P1238 -> 0 | L160: ='COG-M'!P1239 -> 0 | M160: 0
A161: 365 | B161: Servicios de la industria fílmica, del sonido y del video | C161: ='COG-M'!P1240 -> 0 | D161: ='COG-M'!P1241 -> 0 | E161: ='COG-M'!P1242 -> 0 | F161: ='COG-M'!P1243 -> 0 | G161: ='COG-M'!P1244 -> 0 | H161: ='COG-M'!P1245 -> 0 | I161: ='COG-M'!P1246 -> 0 | J161: ='COG-M'!P1247 -> 0 | K161: ='COG-M'!P1248 -> 0 | L161: ='COG-M'!P1249 -> 0 | M161: 0
A162: 366 | B162: Servicio de creación y difusión de contenido exclusivamente a través de Internet | C162: ='COG-M'!P1250 -> 0 | D162: ='COG-M'!P1251 -> 0 | E162: ='COG-M'!P1252 -> 0 | F162: ='COG-M'!P1253 -> 0 | G162: ='COG-M'!P1254 -> 0 | H162: ='COG-M'!P1255 -> 0 | I162: ='COG-M'!P1256 -> 0 | J162: ='COG-M'!P1257 -> 0 | K162: ='COG-M'!P1258 -> 0 | L162: ='COG-M'!P1259 -> 0 | M162: 0
A163: 369 | B163: Otros servicios de información | C163: ='COG-M'!P1260 -> 0 | D163: ='COG-M'!P1261 -> 0 | E163: ='COG-M'!P1262 -> 0 | F163: ='COG-M'!P1263 -> 0 | G163: ='COG-M'!P1264 -> 0 | H163: ='COG-M'!P1265 -> 0 | I163: ='COG-M'!P1266 -> 0 | J163: ='COG-M'!P1267 -> 0 | K163: ='COG-M'!P1268 -> 0 | L163: ='COG-M'!P1269 -> 0 | M163: 0
A164: 3700 | B164: SERVICIOS DE TRASLADO Y VIÁTICOS | C164: =SUM(C165:C173) -> 1,063,620 | D164: =SUM(D165:D173) -> 0 | E164: 0 | F164: 0 | G164: 0 | H164: 0 | I164: 0 | J164: 0 | K164: 0 | L164: 0 | M164: =SUM(M165:M173) -> 1,063,620
A165: 371 | B165: Pasajes aéreos | C165: ='COG-M'!P1271 -> 0 | D165: ='COG-M'!P1272 -> 0 | E165: ='COG-M'!P1273 -> 0 | F165: ='COG-M'!P1274 -> 0 | G165: ='COG-M'!P1275 -> 0 | H165: ='COG-M'!P1276 -> 0 | I165: ='COG-M'!P1277 -> 0 | J165: ='COG-M'!P1278 -> 0 | K165: ='COG-M'!P1279 -> 0 | L165: ='COG-M'!P1280 -> 0 | M165: =SUM(C165:L165) -> 0
A166: 372 | B166: Pasajes terrestres | C166: ='COG-M'!P1281 -> 0 | D166: ='COG-M'!P1282 -> 0 | E166: ='COG-M'!P1283 -> 0 | F166: ='COG-M'!P1284 -> 0 | G166: ='COG-M'!P1285 -> 0 | H166: ='COG-M'!P1286 -> 0 | I166: ='COG-M'!P1287 -> 0 | J166: ='COG-M'!P1288 -> 0 | K166: ='COG-M'!P1289 -> 0 | L166: ='COG-M'!P1290 -> 0 | M166: 0
A167: 373 | B167: Pasajes marítimos, lacustres y fluviales | C167: ='COG-M'!P1291 -> 0 | D167: ='COG-M'!P1292 -> 0 | E167: ='COG-M'!P1293 -> 0 | F167: ='COG-M'!P1294 -> 0 | G167: ='COG-M'!P1295 -> 0 | H167: ='COG-M'!P1296 -> 0 | I167: ='COG-M'!P1297 -> 0 | J167: ='COG-M'!P1298 -> 0 | K167: ='COG-M'!P1299 -> 0 | L167: ='COG-M'!P1300 -> 0 | M167: 0
A168: 374 | B168: Autotransporte | C168: ='COG-M'!P1301 -> 0 | D168: ='COG-M'!P1302 -> 0 | E168: ='COG-M'!P1303 -> 0 | F168: ='COG-M'!P1304 -> 0 | G168: ='COG-M'!P1305 -> 0 | H168: ='COG-M'!P1306 -> 0 | I168: ='COG-M'!P1307 -> 0 | J168: ='COG-M'!P1308 -> 0 | K168: ='COG-M'!P1309 -> 0 | L168: ='COG-M'!P1310 -> 0 | M168: 0
A169: 375 | B169: Viáticos en el país | C169: ='COG-M'!P1311 -> 1,063,620 | D169: ='COG-M'!P1312 -> 0 | E169: ='COG-M'!P1313 -> 0 | F169: ='COG-M'!P1314 -> 0 | G169: ='COG-M'!P1315 -> 0 | H169: ='COG-M'!P1316 -> 0 | I169: ='COG-M'!P1317 -> 0 | J169: ='COG-M'!P1318 -> 0 | K169: ='COG-M'!P1319 -> 0 | L169: ='COG-M'!P1320 -> 0 | M169: 1,063,620
A170: 376 | B170: Viáticos en el extranjero | C170: ='COG-M'!P1321 -> 0 | D170: ='COG-M'!P1322 -> 0 | E170: ='COG-M'!P1323 -> 0 | F170: ='COG-M'!P1324 -> 0 | G170: ='COG-M'!P1325 -> 0 | H170: ='COG-M'!P1326 -> 0 | I170: ='COG-M'!P1327 -> 0 | J170: ='COG-M'!P1328 -> 0 | K170: ='COG-M'!P1329 -> 0 | L170: ='COG-M'!P1330 -> 0 | M170: 0
A171: 377 | B171: Gastos de instalación y traslado de menaje | C171: ='COG-M'!P1331 -> 0 | D171: ='COG-M'!P1332 -> 0 | E171: ='COG-M'!P1333 -> 0 | F171: ='COG-M'!P1334 -> 0 | G171: ='COG-M'!P1335 -> 0 | H171: ='COG-M'!P1336 -> 0 | I171: ='COG-M'!P1337 -> 0 | J171: ='COG-M'!P1338 -> 0 | K171: ='COG-M'!P1339 -> 0 | L171: ='COG-M'!P1340 -> 0 | M171: 0
A172: 378 | B172: Servicios integrales de traslado y viáticos | C172: ='COG-M'!P1341 -> 0 | D172: ='COG-M'!P1342 -> 0 | E172: ='COG-M'!P1343 -> 0 | F172: ='COG-M'!P1344 -> 0 | G172: ='COG-M'!P1345 -> 0 | H172: ='COG-M'!P1346 -> 0 | I172: ='COG-M'!P1347 -> 0 | J172: ='COG-M'!P1348 -> 0 | K172: ='COG-M'!P1349 -> 0 | L172: ='COG-M'!P1350 -> 0 | M172: 0
A173: 379 | B173: Otros servicios de traslado y hospedaje | C173: ='COG-M'!P1351 -> 0 | D173: ='COG-M'!P1352 -> 0 | E173: ='COG-M'!P1353 -> 0 | F173: ='COG-M'!P1354 -> 0 | G173: ='COG-M'!P1355 -> 0 | H173: ='COG-M'!P1356 -> 0 | I173: ='COG-M'!P1357 -> 0 | J173: ='COG-M'!P1358 -> 0 | K173: ='COG-M'!P1359 -> 0 | L173: ='COG-M'!P1360 -> 0 | M173: 0
A174: 3800 | B174: SERVICIOS OFICIALES | C174: =SUM(C175:C179) -> 2,825,100 | D174: =SUM(D175:D179) -> 0 | E174: 0 | F174: 0 | G174: 0 | H174: 0 | I174: 0 | J174: 0 | K174: 0 | L174: 0 | M174: 2,825,100
A175: 381 | B175: Gastos de ceremonial | C175: ='COG-M'!P1362 -> 0 | D175: ='COG-M'!P1363 -> 0 | E175: ='COG-M'!P1364 -> 0 | F175: ='COG-M'!P1365 -> 0 | G175: ='COG-M'!P1366 -> 0 | H175: ='COG-M'!P1367 -> 0 | I175: ='COG-M'!P1368 -> 0 | J175: ='COG-M'!P1369 -> 0 | K175: ='COG-M'!P1370 -> 0 | L175: ='COG-M'!P1371 -> 0 | M175: =SUM(C175:L175) -> 0
A176: 382 | B176: Gastos de orden social y cultural | C176: ='COG-M'!P1372 -> 2,825,100 | D176: ='COG-M'!P1373 -> 0 | E176: ='COG-M'!P1374 -> 0 | F176: ='COG-M'!P1375 -> 0 | G176: ='COG-M'!P1376 -> 0 | H176: ='COG-M'!P1377 -> 0 | I176: ='COG-M'!P1378 -> 0 | J176: ='COG-M'!P1379 -> 0 | K176: ='COG-M'!P1380 -> 0 | L176: ='COG-M'!P1381 -> 0 | M176: =SUM(C176:L176) -> 2,825,100
A177: 383 | B177: Congresos y convenciones | C177: ='COG-M'!P1382 -> 0 | D177: ='COG-M'!P1383 -> 0 | E177: ='COG-M'!P1384 -> 0 | F177: ='COG-M'!P1385 -> 0 | G177: ='COG-M'!P1386 -> 0 | H177: ='COG-M'!P1387 -> 0 | I177: ='COG-M'!P1388 -> 0 | J177: ='COG-M'!P1389 -> 0 | K177: ='COG-M'!P1390 -> 0 | L177: ='COG-M'!P1391 -> 0 | M177: =SUM(C177:L177) -> 0
A178: 384 | B178: Exposiciones | C178: ='COG-M'!P1392 -> 0 | D178: ='COG-M'!P1393 -> 0 | E178: ='COG-M'!P1394 -> 0 | F178: ='COG-M'!P1395 -> 0 | G178: ='COG-M'!P1396 -> 0 | H178: ='COG-M'!P1397 -> 0 | I178: ='COG-M'!P1398 -> 0 | J178: ='COG-M'!P1399 -> 0 | K178: ='COG-M'!P1400 -> 0 | L178: ='COG-M'!P1401 -> 0 | M178: =SUM(C178:L178) -> 0
A179: 385 | B179: Gastos de representación | C179: ='COG-M'!P1402 -> 0 | D179: ='COG-M'!P1403 -> 0 | E179: ='COG-M'!P1404 -> 0 | F179: ='COG-M'!P1405 -> 0 | G179: ='COG-M'!P1406 -> 0 | H179: ='COG-M'!P1407 -> 0 | I179: ='COG-M'!P1408 -> 0 | J179: ='COG-M'!P1409 -> 0 | K179: ='COG-M'!P1410 -> 0 | L179: ='COG-M'!P1411 -> 0 | M179: =SUM(C179:L179) -> 0
A180: 3900 | B180: OTROS SERVICIOS GENERALES | C180: =SUM(C181:C189) -> 2,369,292 | D180: =SUM(D181:D189) -> 0 | E180: 0 | F180: 0 | G180: 0 | H180: 0 | I180: 0 | J180: 0 | K180: 0 | L180: 0 | M180: 2,369,292
A181: 391 | B181: Servicios funerarios y de cementerios | C181: ='COG-M'!P1413 -> 240,000 | D181: ='COG-M'!P1414 -> 0 | E181: ='COG-M'!P1415 -> 0 | F181: ='COG-M'!P1416 -> 0 | G181: ='COG-M'!P1417 -> 0 | H181: ='COG-M'!P1418 -> 0 | I181: ='COG-M'!P1419 -> 0 | J181: ='COG-M'!P1420 -> 0 | K181: ='COG-M'!P1421 -> 0 | L181: ='COG-M'!P1422 -> 0 | M181: =SUM(C181:L181) -> 240,000
A182: 392 | B182: Impuestos y derechos | C182: ='COG-M'!P1423 -> 349,296 | D182: ='COG-M'!P1424 -> 0 | E182: ='COG-M'!P1425 -> 0 | F182: ='COG-M'!P1426 -> 0 | G182: ='COG-M'!P1427 -> 0 | H182: ='COG-M'!P1428 -> 0 | I182: ='COG-M'!P1429 -> 0 | J182: ='COG-M'!P1430 -> 0 | K182: ='COG-M'!P1431 -> 0 | L182: ='COG-M'!P1432 -> 0 | M182: 349,296
A183: 393 | B183: Impuestos y derechos de importación | C183: ='COG-M'!P1433 -> 0 | D183: ='COG-M'!P1434 -> 0 | E183: ='COG-M'!P1435 -> 0 | F183: ='COG-M'!P1436 -> 0 | G183: ='COG-M'!P1437 -> 0 | H183: ='COG-M'!P1438 -> 0 | I183: ='COG-M'!P1439 -> 0 | J183: ='COG-M'!P1440 -> 0 | K183: ='COG-M'!P1441 -> 0 | L183: ='COG-M'!P1442 -> 0 | M183: 0
A184: 394 | B184: Sentencias y resoluciones por autoridad competente | C184: ='COG-M'!P1443 -> 0 | D184: ='COG-M'!P1444 -> 0 | E184: ='COG-M'!P1445 -> 0 | F184: ='COG-M'!P1446 -> 0 | G184: ='COG-M'!P1447 -> 0 | H184: ='COG-M'!P1448 -> 0 | I184: ='COG-M'!P1449 -> 0 | J184: ='COG-M'!P1450 -> 0 | K184: ='COG-M'!P1451 -> 0 | L184: ='COG-M'!P1452 -> 0 | M184: 0
A185: 395 | B185: Penas, multas, accesorios y actualizaciones | C185: ='COG-M'!P1453 -> 180,000 | D185: ='COG-M'!P1454 -> 0 | E185: ='COG-M'!P1455 -> 0 | F185: ='COG-M'!P1456 -> 0 | G185: ='COG-M'!P1457 -> 0 | H185: ='COG-M'!P1458 -> 0 | I185: ='COG-M'!P1459 -> 0 | J185: ='COG-M'!P1460 -> 0 | K185: ='COG-M'!P1461 -> 0 | L185: ='COG-M'!P1462 -> 0 | M185: 180,000
A186: 396 | B186: Otros gastos por responsabilidades | C186: ='COG-M'!P1463 -> 0 | D186: ='COG-M'!P1464 -> 0 | E186: ='COG-M'!P1465 -> 0 | F186: ='COG-M'!P1466 -> 0 | G186: ='COG-M'!P1467 -> 0 | H186: ='COG-M'!P1468 -> 0 | I186: ='COG-M'!P1469 -> 0 | J186: ='COG-M'!P1470 -> 0 | K186: ='COG-M'!P1471 -> 0 | L186: ='COG-M'!P1472 -> 0 | M186: 0
A187: 397 | B187: Utilidades | M187: 0
A188: 398 | B188: Impuesto sobre nómina y otros que se deriven de una relación laboral | C188: ='COG-M'!P1474 -> 1,599,996 | D188: ='COG-M'!P1475 -> 0 | E188: ='COG-M'!P1476 -> 0 | F188: ='COG-M'!P1477 -> 0 | G188: ='COG-M'!P1478 -> 0 | H188: ='COG-M'!P1479 -> 0 | I188: ='COG-M'!P1480 -> 0 | J188: ='COG-M'!P1481 -> 0 | K188: ='COG-M'!P1482 -> 0 | L188: ='COG-M'!P1483 -> 0 | M188: 1,599,996
A189: 399 | B189: Otros servicios generales | C189: ='COG-M'!P1484 -> 0 | D189: ='COG-M'!P1485 -> 0 | E189: ='COG-M'!P1486 -> 0 | F189: ='COG-M'!P1487 -> 0 | G189: ='COG-M'!P1488 -> 0 | H189: ='COG-M'!P1489 -> 0 | I189: ='COG-M'!P1490 -> 0 | J189: ='COG-M'!P1491 -> 0 | K189: ='COG-M'!P1492 -> 0 | L189: ='COG-M'!P1493 -> 0 | M189: 0
A190: 4000 | B190: TRANSFERENCIAS, ASIGNACIONES, SUBSIDIOS Y OTRAS AYUDAS | C190: =C191+C201+C207+C217+C226+C230+C238+C240+C246 -> 8,791,056 | D190: =D191+D201+D207+D217+D226+D230+D238+D240+D246 -> 0 | E190: 0 | F190: 0 | G190: 0 | H190: 0 | I190: 0 | J190: 0 | K190: 0 | L190: 0 | M190: 8,791,056
A191: 4100 | B191: TRANSFERENCIAS INTERNAS Y ASIGNACIONES AL SECTOR PÚBLICO | C191: =SUM(C192:C200) -> 0 | D191: =SUM(D192:D200) -> 0 | E191: 0 | F191: 0 | G191: 0 | H191: 0 | I191: 0 | J191: 0 | K191: 0 | L191: 0 | M191: 0
A192: 411 | B192: Asignaciones presupuestarias al Poder Ejecutivo | M192: =SUM(C192:L192) -> 0
A193: 412 | B193: Asignaciones presupuestarias al Poder Legislativo | M193: 0
A194: 413 | B194: Asignaciones presupuestarias al Poder Judicial | M194: 0
A195: 414 | B195: Asignaciones presupuestarias a Órganos Autónomos | M195: 0
A196: 415 | B196: Transferencias internas otorgadas a entidades paraestatales no empresariales y no financieras | C196: ='COG-M'!P1500 -> 0 | D196: ='COG-M'!P1501 -> 0 | E196: ='COG-M'!P1502 -> 0 | F196: ='COG-M'!P1503 -> 0 | G196: ='COG-M'!P1504 -> 0 | H196: ='COG-M'!P1505 -> 0 | I196: ='COG-M'!P1506 -> 0 | J196: ='COG-M'!P1507 -> 0 | K196: ='COG-M'!P1508 -> 0 | L196: ='COG-M'!P1509 -> 0 | M196: 0
A197: 416 | B197: Transferencias internas otorgadas a entidades paraestatales empresariales y no financieras | M197: 0
A198: 417 | B198: Transferencias internas otorgadas a fideicomisos públicos empresariales y no financieros | C198: ='COG-M'!P1511 -> 0 | D198: ='COG-M'!P1512 -> 0 | E198: ='COG-M'!P1513 -> 0 | F198: ='COG-M'!P1514 -> 0 | G198: ='COG-M'!P1515 -> 0 | H198: ='COG-M'!P1516 -> 0 | I198: ='COG-M'!P1517 -> 0 | J198: ='COG-M'!P1518 -> 0 | K198: ='COG-M'!P1519 -> 0 | L198: ='COG-M'!P1520 -> 0 | M198: 0
A199: 418 | B199: Transferencias internas otorgadas a instituciones paraestatales públicas financieras | M199: 0
A200: 419 | B200: Transferencias internas otorgadas a fideicomisos públicos financieros | M200: 0
... 229 more rows

Sheet CTG-FF
A1: CTG | B1: DESCRIPCIÓN | C1: 1. NO ETIQUETADO | J1: 2. ETIQUETADO | M1: TOTAL ANUAL
C2: 1.1 RECURSOS FISCALES | D2: 1.2 FINANCIAMIENTOS INTERNOS | E2: 1.3 FINANCIAMIENTOS EXTERNOS | F2: 1.4 INGRESOS PROPIOS | G2: 1.5 RECURSOS FEDERALES | H2: 1.6 RECURSOS ESTATALES | I2: 1.7 OTROS RECURSOS DE LIBRE DISPOSICIÓN | J2: 2.5 RECURSOS FEDERALES | K2: 2.6 RECURSOS ESTATALES | L2: 2.7 OTROS RECURSOS DE TRANSFERENCIAS FEDERALES ETIQUETADAS
A3: 1 | B3: Gasto corriente | C3: =SUM('COG-FF'!C3+'COG-FF'!C40+'COG-FF'!C105+'COG-FF'!C190-'COG-FF'!C226) -> 83,728,372 | D3: =SUM('COG-FF'!D3+'COG-FF'!D40+'COG-FF'!D105+'COG-FF'!D190-'COG-FF'!D226) -> 0 | E3: =SUM('COG-FF'!E3+'COG-FF'!E40+'COG-FF'!E105+'COG-FF'!E190-'COG-FF'!E226) -> 0 | F3: =SUM('COG-FF'!F3+'COG-FF'!F40+'COG-FF'!F105+'COG-FF'!F190-'COG-FF'!F226) -> 0 | G3: =SUM('COG-FF'!G3+'COG-FF'!G40+'COG-FF'!G105+'COG-FF'!G190-'COG-FF'!G226) -> 0 | H3: =SUM('COG-FF'!H3+'COG-FF'!H40+'COG-FF'!H105+'COG-FF'!H190-'COG-FF'!H226) -> 0 | I3: =SUM('COG-FF'!I3+'COG-FF'!I40+'COG-FF'!I105+'COG-FF'!I190-'COG-FF'!I226) -> 0 | J3: =SUM('COG-FF'!J3+'COG-FF'!J40+'COG-FF'!J105+'COG-FF'!J190-'COG-FF'!J226) -> 0 | K3: =SUM('COG-FF'!K3+'COG-FF'!K40+'COG-FF'!K105+'COG-FF'!K190-'COG-FF'!K226) -> 0 | L3: =SUM('COG-FF'!L3+'COG-FF'!L40+'COG-FF'!L105+'COG-FF'!L190-'COG-FF'!L226) -> 0 | M3: =SUM(C3:L3) -> 83,728,372
A4: 2 | B4: Gasto de capital | C4: =SUM('COG-FF'!C250+'COG-FF'!C309+'COG-FF'!C331) -> 19,867,800 | D4: =SUM('COG-FF'!D250+'COG-FF'!D309+'COG-FF'!D331) -> 0 | E4: =SUM('COG-FF'!E250+'COG-FF'!E309+'COG-FF'!E331) -> 0 | F4: =SUM('COG-FF'!F250+'COG-FF'!F309+'COG-FF'!F331) -> 0 | G4: =SUM('COG-FF'!G250+'COG-FF'!G309+'COG-FF'!G331) -> 0 | H4: =SUM('COG-FF'!H250+'COG-FF'!H309+'COG-FF'!H331) -> 0 | I4: =SUM('COG-FF'!I250+'COG-FF'!I309+'COG-FF'!I331) -> 0 | J4: =SUM('COG-FF'!J250+'COG-FF'!J309+'COG-FF'!J331) -> 3,285,228 | K4: =SUM('COG-FF'!K250+'COG-FF'!K309+'COG-FF'!K331) -> 0 | L4: =SUM('COG-FF'!L250+'COG-FF'!L309+'COG-FF'!L331) -> 0 | M4: =SUM(C4:L4) -> 23,153,028
A5: 3 | B5: Amortización de la deuda y disminución de pasivos | C5: =SUM('COG-FF'!C397) -> 0 | D5: =SUM('COG-FF'!D397) -> 0 | E5: =SUM('COG-FF'!E397) -> 0 | F5: =SUM('COG-FF'!F397) -> 0 | G5: =SUM('COG-FF'!G397) -> 0 | H5: =SUM('COG-FF'!H397) -> 0 | I5: =SUM('COG-FF'!I397) -> 0 | J5: =SUM('COG-FF'!J397) -> 0 | K5: =SUM('COG-FF'!K397) -> 0 | L5: =SUM('COG-FF'!L397) -> 0 | M5: =SUM(C5:L5) -> 0
A6: 4 | B6: Pensiones y jubilaciones | C6: =SUM('COG-FF'!C226) -> 147,096 | D6: =SUM('COG-FF'!D226) -> 0 | E6: =SUM('COG-FF'!E226) -> 0 | F6: =SUM('COG-FF'!F226) -> 0 | G6: =SUM('COG-FF'!G226) -> 0 | H6: =SUM('COG-FF'!H226) -> 0 | I6: =SUM('COG-FF'!I226) -> 0 | J6: =SUM('COG-FF'!J226) -> 0 | K6: =SUM('COG-FF'!K226) -> 0 | L6: =SUM('COG-FF'!L226) -> 0 | M6: =SUM(C6:L6) -> 147,096
A7: 5 | B7: Participaciones | C7: =SUM('COG-FF'!C379) -> 0 | D7: =SUM('COG-FF'!D379) -> 0 | E7: =SUM('COG-FF'!E379) -> 0 | F7: =SUM('COG-FF'!F379) -> 0 | G7: =SUM('COG-FF'!G379) -> 0 | H7: =SUM('COG-FF'!H379) -> 0 | I7: =SUM('COG-FF'!I379) -> 0 | J7: =SUM('COG-FF'!J379) -> 0 | K7: =SUM('COG-FF'!K379) -> 0 | L7: =SUM('COG-FF'!L379) -> 0 | M7: =SUM(C7:L7) -> 0
B8: TOTAL DE EGRESOS | C8: =SUM(C3:C7) -> 103,743,268 | D8: =SUM(D3:D7) -> 0 | E8: 0 | F8: 0 | G8: 0 | H8: 0 | I8: 0 | J8: 3,285,228 | K8: 0 | L8: 0 | M8: 107,028,496
A13: COG | B13: DESCRIPCIÓN | C13: CAPÍTULO 1000 | D13: CAPÍTULO 2000 | E13: CAPÍTULO 3000 | F13: CAPÍTULO 4000 | G13: CAPÍTULO 5000 | H13: CAPÍTULO 6000 | I13: CAPÍTULO 7000 | J13: CAPÍTULO 8000 | K13: CAPÍTULO 9000 | L13: TOTAL ANUAL
A14: 1 | B14: Gasto corriente | C14: ='COG-FF'!M3 -> 24,871,540 | D14: ='COG-FF'!M40 -> 21,524,220 | E14: ='COG-FF'!M105 -> 28,688,652 | F14: =SUM('COG-FF'!M190-'COG-FF'!M226) -> 8,643,960 | L14: =SUM(C14:K14) -> 83,728,372
A15: 2 | B15: Gasto de capital | G15: ='COG-FF'!M250 -> 2,052,348 | H15: ='COG-FF'!M309 -> 21,100,680 | I15: ='COG-FF'!M331 -> 0 | L15: =SUM(C15:K15) -> 23,153,028
A16: 3 | B16: Amortización de la deuda y disminución de pasivos | K16: ='COG-FF'!M397 -> 0 | L16: =SUM(C16:K16) -> 0
A17: 4 | B17: Pensiones y jubilaciones | F17: ='COG-FF'!M226 -> 147,096 | L17: =SUM(C17:K17) -> 147,096
A18: 5 | B18: Participaciones | J18: ='COG-FF'!M379 -> 0 | L18: =SUM(C18:K18) -> 0
B19: TOTAL DE EGRESOS | C19: =C14 -> 24,871,540 | D19: =D14 -> 21,524,220 | E19: =E14 -> 28,688,652 | F19: =SUM(F14+F17) -> 8,791,056 | G19: =G15 -> 2,052,348 | H19: =H15 -> 21,100,680 | I19: =I15 -> 0 | J19: =J18 -> 0 | K19: =K16 -> 0 | L19: =SUM(L14:L18) -> 107,028,496
